Capital or Revenue,Directorate,Transaction Number,Date,Service Area,Expenses Type,Amount,Supplier Name
Revenue,Community Wellbeing & Social Care,5105650243,29.01.2014,Drug Misuse - Adults,Charges from Independent Providers,120.00,REDACTED PERSONAL DATA
Revenue,Community Wellbeing & Social Care,5105646636,15.01.2014,Drug Misuse - Adults,Charges from Independent Providers,120.00,REDACTED PERSONAL DATA
Revenue,Community Wellbeing & Social Care,5105648361,22.01.2014,Leaseholds by LA,Accommodation Costs - Leaseholder Payments,695.89,REDACTED PERSONAL DATA
Revenue,Community Wellbeing & Social Care,5105648361,22.01.2014,Leaseholds by LA,Accommodation Costs - Leaseholder Payments,695.89,REDACTED PERSONAL DATA
Revenue,Community Wellbeing & Social Care,5105648361,22.01.2014,Leaseholds by LA,Accommodation Costs - Leaseholder Payments,695.89,REDACTED PERSONAL DATA
Revenue,Community Wellbeing & Social Care,5105648361,22.01.2014,Leaseholds by LA,Accommodation Costs - Leaseholder Payments,695.89,REDACTED PERSONAL DATA
Revenue,Community Wellbeing & Social Care,5105648361,22.01.2014,Leaseholds by LA,Accommodation Costs - Leaseholder Payments,695.89,REDACTED PERSONAL DATA
Revenue,Community Wellbeing & Social Care,5105645412,08.01.2014,Public Health Core,Payment to Private Contractors,"2,250.00",REDACTED PERSONAL DATA
Revenue,Community Wellbeing & Social Care,5105650444,29.01.2014,Warm Homes Healthy People DoH,Operational Equipment,668.96,REDACTED PERSONAL DATA
Revenue,Community Wellbeing & Social Care,5105650445,29.01.2014,Warm Homes Healthy People DoH,Operational Equipment,126.63,REDACTED PERSONAL DATA
Revenue,Community Wellbeing & Social Care,5105648305,22.01.2014,Arts Projects,Professional Services,200.00,REDACTED PERSONAL DATA
Revenue,Childrens Services,5105647883,27.01.2014,Duty and Assessment 2,Professional Services,208.50,REDACTED PERSONAL DATA
Revenue,Childrens Services,5105644094,15.01.2014,Duty and Assessment 2,Professional Services,206.70,REDACTED PERSONAL DATA
Revenue,Childrens Services,5105644124,15.01.2014,Duty and Assessment 2,Professional Services,240.40,REDACTED PERSONAL DATA
Revenue,Childrens Services,5105647156,15.01.2014,Thompson House Tuition Centre (PRU),Professional Services,450.00,BFIT
Revenue,Childrens Services,5105648545,24.01.2014,Thompson House Tuition Centre (PRU),Professional Services,375.00,BFIT
Revenue,Childrens Services,5105647849,27.01.2014,Adult Social Care - Workforce Development,Training,150.00,REDACTED PERSONAL DATA
Revenue,Childrens Services,5105647849,27.01.2014,Adult Social Care - Workforce Development,Training,150.00,REDACTED PERSONAL DATA
Revenue,Economy & Environment,5105648995,31.01.2014,Old Cowes Enterprise College,Security of Buildings,120.00,REDACTED PERSONAL DATA
Revenue,Economy & Environment,5105648995,31.01.2014,Old Cowes Enterprise College,Security of Buildings,120.00,REDACTED PERSONAL DATA
Revenue,Economy & Environment,5105648995,31.01.2014,Old Cowes Enterprise College,Minor Works,15.00,REDACTED PERSONAL DATA
Revenue,Economy & Environment,5105648995,31.01.2014,Old Cowes Enterprise College,Security of Buildings,310.00,REDACTED PERSONAL DATA
Revenue,Economy & Environment,5105648995,31.01.2014,Old Cowes Enterprise College,Security of Buildings,155.00,REDACTED PERSONAL DATA
Revenue,Economy & Environment,5105648995,31.01.2014,Love Lane Primary School,Security of Buildings,310.00,REDACTED PERSONAL DATA
Revenue,Economy & Environment,5105648995,31.01.2014,Old Cowes Enterprise College,Security of Buildings,680.00,REDACTED PERSONAL DATA
Revenue,Childrens Services,5105643920,03.01.2014,Short Breaks,Payment to Private Contractors,15.00,REDACTED PERSONAL DATA
Revenue,Community Wellbeing & Social Care,5105647594,17.01.2014,Drug Misuse - Adults,Charges from Independent Providers,120.00,REDACTED PERSONAL DATA
Revenue,Resources,5105647642,17.01.2014,Coroner,Post Mortem Fees,276.90,REDACTED PERSONAL DATA
Revenue,Resources,5105647642,17.01.2014,Coroner,Post Mortem Fees,319.00,REDACTED PERSONAL DATA
Revenue,Community Wellbeing & Social Care,5105649065,24.01.2014,Shared Lives Scheme,Charges from Independent Providers,632.40,REDACTED PERSONAL DATA
Revenue,Community Wellbeing & Social Care,5105650543,29.01.2014,Drug Misuse - Adults,Payment to Private Contractors,35.00,REDACTED PERSONAL DATA
Revenue,Community Wellbeing & Social Care,5105650542,29.01.2014,Drug Misuse - Adults,Payment to Private Contractors,210.00,REDACTED PERSONAL DATA
Revenue,Community Wellbeing & Social Care,5105650541,29.01.2014,Drug Misuse - Adults,Payment to Private Contractors,210.00,REDACTED PERSONAL DATA
Revenue,Community Wellbeing & Social Care,5105650540,29.01.2014,Drug Misuse - Adults,Payment to Private Contractors,210.00,REDACTED PERSONAL DATA
Revenue,Childrens Services,5105647790,17.01.2014,Short Breaks,Payment to Private Contractors,40.00,REDACTED PERSONAL DATA
Revenue,Community Wellbeing & Social Care,5105648441,22.01.2014,Community Support Officers,Vehicle Maintenance Costs,128.01,ISLANDWIDE WINDSCREENS
Revenue,Childrens Services,5105648442,22.01.2014,Pool Cars,Vehicle Maintenance Costs,231.30,ISLANDWIDE WINDSCREENS
Revenue,Economy & Environment,5105646974,15.01.2014,West Wight Landscape Partnership,Payment to Private Contractors,48.00,REDACTED PERSONAL DATA
Revenue,Economy & Environment,5105646973,15.01.2014,West Wight Landscape Partnership,Payment to Private Contractors,"5,000.00",REDACTED PERSONAL DATA
Revenue,Economy & Environment,5105647256,17.01.2014,A.O.N.B.,Consultants Fees,"2,475.00",REDACTED PERSONAL DATA
Revenue,Economy & Environment,5105646578,15.01.2014,A.O.N.B.,Consultants Fees,500.00,REDACTED PERSONAL DATA
Revenue,Childrens Services,5105646136,10.01.2014,Court Work & Consultancy Services,Legal Fees - Other Parties,"4,523.00",REDACTED PERSONAL DATA
Revenue,Community Wellbeing & Social Care,5105647833,27.01.2014,Arts Projects,Professional Services,850.00,REDACTED PERSONAL DATA
Revenue,Resources,5105646380,10.01.2014,ICT Contracts,Computer Maintenance,200.00,REDACTED PERSONAL DATA
Revenue,Childrens Services,5105648274,24.01.2014,Support for Looked After Children,Support Children,350.00,LUCY MUNDY T/A ISLAND EQUUS
Revenue,Childrens Services,5105648297,24.01.2014,Support for Looked After Children,Support Children,227.50,LUCY MUNDY T/A ISLAND EQUUS
Revenue,Childrens Services,5105650074,29.01.2014,Clatterford Pupil Referral Unit (PRU),Professional Services,"1,455.00",LUCY MUNDY T/A ISLAND EQUUS
Revenue,Childrens Services,5105645243,03.01.2014,Clatterford Pupil Referral Unit (PRU),Professional Services,"1,440.00",LUCY MUNDY T/A ISLAND EQUUS
Revenue,Childrens Services,5105645243,03.01.2014,Clatterford Pupil Referral Unit (PRU),Professional Services,675.00,LUCY MUNDY T/A ISLAND EQUUS
Revenue,Childrens Services,5105648221,22.01.2014,Thompson House Tuition Centre (PRU),Client Expenses,300.00,LUCY MUNDY T/A ISLAND EQUUS
Revenue,Childrens Services,5105649059,24.01.2014,Thompson House Tuition Centre (PRU),Client Expenses,400.00,LUCY MUNDY T/A ISLAND EQUUS
Revenue,Childrens Services,5105648298,22.01.2014,Targeted Youth Support,Operational Equipment,150.00,LUCY MUNDY T/A ISLAND EQUUS
Revenue,Community Wellbeing & Social Care,5105651035,31.01.2014,Practice Teaching Training,Training,"2,492.00",REDACTED PERSONAL DATA
Revenue,Community Wellbeing & Social Care,5105648559,24.01.2014,Hub Coordinators,Training,345.00,REDACTED PERSONAL DATA
Revenue,Childrens Services,5105647252,17.01.2014,Education Participation Team,Cleaning Contracts,8.00,REDACTED PERSONAL DATA
Revenue,Childrens Services,5105647976,20.01.2014,LSCB (Local Safeguarding Childrens Board),Travel Expenses,210.00,ONE HOLYROOD
Revenue,Economy & Environment,5105647589,17.01.2014,West Wight Landscape Partnership,Payment to Private Contractors,100.00,REDACTED PERSONAL DATA
Revenue,Community Wellbeing & Social Care,5105647159,15.01.2014,Drug Misuse - Adults,Payment to Private Contractors,120.00,REDACTED PERSONAL DATA
Revenue,Community Wellbeing & Social Care,5105648458,22.01.2014,Workforce Development Schools,Training,600.00,REDACTED PERSONAL DATA
Revenue,Community Wellbeing & Social Care,5105650490,29.01.2014,Workforce Development Schools,Training,532.50,REDACTED PERSONAL DATA
Revenue,Community Wellbeing & Social Care,5105650990,31.01.2014,Drug Misuse - Adults,Payment to Private Contractors,120.00,REDACTED PERSONAL DATA
Revenue,Childrens Services,5105644121,15.01.2014,S17 Disabled Children,Transport of Clients,118.80,24-7 TAXIS
Revenue,Community Wellbeing & Social Care,5105648381,22.01.2014,Leaseholds by LA,Accommodation Costs - Leaseholder Payments,866.67,2K PROPERTY
Revenue,Economy & Environment,5105646123,10.01.2014,Medina Vending Machine Stock,Order Settlement,648.09,3663 (BFS GROUP LTD)
Revenue,Economy & Environment,5105647187,17.01.2014,Medina Vending Machine Stock,Order Settlement,274.96,3663 (BFS GROUP LTD)
Revenue,Economy & Environment,5105649023,27.01.2014,Medina Leisure Centre,Stock Purchases,387.53,3663 (BFS GROUP LTD)
Revenue,Economy & Environment,5105646665,15.01.2014,Medina Leisure Centre,Stock Purchases,471.89,3663 (BFS GROUP LTD)
Revenue,Economy & Environment,5105650961,31.01.2014,Medina Leisure Centre,Stock Purchases,357.33,3663 (BFS GROUP LTD)
Revenue,Economy & Environment,5105650927,31.01.2014,Medina Leisure Centre,Stock Purchases,17.99,3663 (BFS GROUP LTD)
Revenue,Community Wellbeing & Social Care,5105646631,15.01.2014,Gouldings Resource Centre,Catering Purchases,39.90,3663 (BFS GROUP LTD)
Revenue,Community Wellbeing & Social Care,5105647158,15.01.2014,Gouldings Resource Centre,Catering Purchases,116.97,3663 (BFS GROUP LTD)
Revenue,Community Wellbeing & Social Care,5105645671,15.01.2014,Gouldings Resource Centre,Catering Purchases,459.60,3663 (BFS GROUP LTD)
Revenue,Community Wellbeing & Social Care,5105645671,15.01.2014,Gouldings Resource Centre,Catering Purchases,127.61,3663 (BFS GROUP LTD)
Revenue,Community Wellbeing & Social Care,5105650489,29.01.2014,Gouldings Resource Centre,Catering Purchases,210.86,3663 (BFS GROUP LTD)
Revenue,Community Wellbeing & Social Care,5105650489,29.01.2014,Gouldings Resource Centre,Catering Purchases,32.83,3663 (BFS GROUP LTD)
Revenue,Community Wellbeing & Social Care,5105646997,15.01.2014,Westminster House,Catering Purchases,167.01,3663 (BFS GROUP LTD)
Revenue,Community Wellbeing & Social Care,5105647024,15.01.2014,Westminster House,Catering Purchases,100.11,3663 (BFS GROUP LTD)
Revenue,Community Wellbeing & Social Care,5105645694,29.01.2014,Westminster House,Catering Purchases,124.89,3663 (BFS GROUP LTD)
Revenue,Community Wellbeing & Social Care,5105645697,29.01.2014,Westminster House,Catering Purchases,54.04,3663 (BFS GROUP LTD)
Revenue,Community Wellbeing & Social Care,5105645712,15.01.2014,Westminster House,Catering Purchases,35.68,3663 (BFS GROUP LTD)
Revenue,Community Wellbeing & Social Care,5105648854,27.01.2014,Westminster House,Catering Purchases,183.04,3663 (BFS GROUP LTD)
Revenue,Community Wellbeing & Social Care,5105648856,27.01.2014,Westminster House,Catering Purchases,88.23,3663 (BFS GROUP LTD)
Revenue,Community Wellbeing & Social Care,5105648857,27.01.2014,Westminster House,Catering Purchases,26.94,3663 (BFS GROUP LTD)
Revenue,Community Wellbeing & Social Care,5105648992,27.01.2014,Gouldings Resource Centre,Catering Purchases,39.90,3663 (BFS GROUP LTD)
Revenue,Community Wellbeing & Social Care,5105649020,27.01.2014,Gouldings Resource Centre,Catering Purchases,188.68,3663 (BFS GROUP LTD)
Revenue,Community Wellbeing & Social Care,5105649020,27.01.2014,Gouldings Resource Centre,Catering Purchases,17.99,3663 (BFS GROUP LTD)
Revenue,Community Wellbeing & Social Care,5105648080,27.01.2014,Gouldings Resource Centre,Catering Purchases,311.82,3663 (BFS GROUP LTD)
Revenue,Economy & Environment,5105645414,08.01.2014,Ryde Sports Centre,Catering Purchases,263.74,3663 (BFS GROUP LTD)
Revenue,Childrens Services,5105647846,27.01.2014,North & East Provision,Catering Purchases,310.75,3663 (BFS GROUP LTD)
Revenue,Childrens Services,5105647846,27.01.2014,North & East Provision,Catering Purchases,48.60,3663 (BFS GROUP LTD)
Revenue,Economy & Environment,5105650962,31.01.2014,Westridge Squash Courts,Stock Purchases,107.60,3663 (BFS GROUP LTD)
Revenue,Economy & Environment,5105648353,27.01.2014,Westridge Squash Courts,Stock Purchases,56.49,3663 (BFS GROUP LTD)
Revenue,Economy & Environment,5105649069,27.01.2014,Westridge Squash Courts,Stock Purchases,27.26,3663 (BFS GROUP LTD)
Revenue,Economy & Environment,5105647569,17.01.2014,Westridge Squash Courts,Operational Equipment,67.78,3663 (BFS GROUP LTD)
Revenue,Economy & Environment,5105645691,29.01.2014,Heights Vending Stock,Order Settlement,144.60,3663 (BFS GROUP LTD)
Revenue,Economy & Environment,5105647567,17.01.2014,Heights Vending Stock,Order Settlement,403.54,3663 (BFS GROUP LTD)
Revenue,Economy & Environment,5105647567,17.01.2014,Heights Vending Stock,Order Settlement,12.50,3663 (BFS GROUP LTD)
Revenue,Economy & Environment,5105650960,31.01.2014,The Heights,Stock Purchases,211.50,3663 (BFS GROUP LTD)
Revenue,Economy & Environment,5105650960,31.01.2014,The Heights,Stock Purchases,70.81,3663 (BFS GROUP LTD)
Revenue,Economy & Environment,5105646678,15.01.2014,The Heights,Stock Purchases,212.93,3663 (BFS GROUP LTD)
Revenue,Economy & Environment,5105646678,15.01.2014,The Heights,Stock Purchases,21.83,3663 (BFS GROUP LTD)
Revenue,Economy & Environment,5105644139,08.01.2014,The Heights,Stock Purchases,56.36,3663 (BFS GROUP LTD)
Revenue,Economy & Environment,5105644139,08.01.2014,The Heights,Stock Purchases,186.27,3663 (BFS GROUP LTD)
Revenue,Economy & Environment,5105648322,27.01.2014,The Heights,Stock Purchases,229.45,3663 (BFS GROUP LTD)
Revenue,Economy & Environment,5105648322,27.01.2014,The Heights,Stock Purchases,24.98,3663 (BFS GROUP LTD)
Revenue,Economy & Environment,5105648557,27.01.2014,The Heights,Stock Purchases,76.48,3663 (BFS GROUP LTD)
Revenue,Economy & Environment,5105649029,27.01.2014,The Heights,Stock Purchases,94.39,3663 (BFS GROUP LTD)
Revenue,Economy & Environment,5105649029,27.01.2014,The Heights,Stock Purchases,12.50,3663 (BFS GROUP LTD)
Revenue,Economy & Environment,5105649239,27.01.2014,The Heights,Stock Purchases,183.52,3663 (BFS GROUP LTD)
Revenue,Economy & Environment,5105649239,27.01.2014,The Heights,Stock Purchases,40.71,3663 (BFS GROUP LTD)
Revenue,Economy & Environment,5105645676,15.01.2014,The Heights,Stock Purchases,218.40,3663 (BFS GROUP LTD)
Revenue,Economy & Environment,5105645676,15.01.2014,The Heights,Stock Purchases,12.34,3663 (BFS GROUP LTD)
Revenue,Economy & Environment,5105650963,31.01.2014,The Heights,Stock Purchases,400.62,3663 (BFS GROUP LTD)
Revenue,Economy & Environment,5105650963,31.01.2014,The Heights,Stock Purchases,12.50,3663 (BFS GROUP LTD)
Revenue,Community Wellbeing & Social Care,5105645373,08.01.2014,Adelaide Resource Centre,Catering Purchases,147.36,3663 (BFS GROUP LTD)
Revenue,Community Wellbeing & Social Care,5105645373,08.01.2014,Adelaide Resource Centre,Catering Purchases,4.84,3663 (BFS GROUP LTD)
Revenue,Community Wellbeing & Social Care,5105647807,27.01.2014,Adelaide Resource Centre,Catering Purchases,67.68,3663 (BFS GROUP LTD)
Revenue,Community Wellbeing & Social Care,5105647821,27.01.2014,Adelaide Resource Centre,Catering Purchases,324.67,3663 (BFS GROUP LTD)
Revenue,Community Wellbeing & Social Care,5105647821,27.01.2014,Adelaide Resource Centre,Catering Purchases,27.75,3663 (BFS GROUP LTD)
Revenue,Community Wellbeing & Social Care,5105647807,27.01.2014,Adelaide Resource Centre,Catering Purchases,11.54,3663 (BFS GROUP LTD)
Revenue,Community Wellbeing & Social Care,5105647914,27.01.2014,Adelaide Resource Centre,Catering Purchases,101.42,3663 (BFS GROUP LTD)
Revenue,Community Wellbeing & Social Care,5105647914,27.01.2014,Adelaide Resource Centre,Catering Purchases,7.75,3663 (BFS GROUP LTD)
Revenue,Community Wellbeing & Social Care,5105647815,27.01.2014,Adelaide Resource Centre,Catering Purchases,8.13,3663 (BFS GROUP LTD)
Revenue,Community Wellbeing & Social Care,5105647815,27.01.2014,Adelaide Resource Centre,Catering Purchases,205.86,3663 (BFS GROUP LTD)
Revenue,Community Wellbeing & Social Care,5105645377,08.01.2014,Adelaide Resource Centre,Catering Purchases,289.22,3663 (BFS GROUP LTD)
Revenue,Community Wellbeing & Social Care,5105645377,08.01.2014,Adelaide Resource Centre,Catering Purchases,15.89,3663 (BFS GROUP LTD)
Revenue,Community Wellbeing & Social Care,5105650233,29.01.2014,Adelaide Resource Centre,Catering Purchases,518.66,3663 (BFS GROUP LTD)
Revenue,Community Wellbeing & Social Care,5105650234,29.01.2014,Adelaide Resource Centre,Catering Purchases,116.39,3663 (BFS GROUP LTD)
Revenue,Community Wellbeing & Social Care,5105650235,29.01.2014,Adelaide Resource Centre,Catering Purchases,157.13,3663 (BFS GROUP LTD)
Revenue,Community Wellbeing & Social Care,5105650236,29.01.2014,Adelaide Resource Centre,Catering Purchases,27.96,3663 (BFS GROUP LTD)
Revenue,Community Wellbeing & Social Care,5105650235,29.01.2014,Adelaide Resource Centre,Catering Purchases,19.99,3663 (BFS GROUP LTD)
Revenue,Community Wellbeing & Social Care,5105650234,29.01.2014,Adelaide Resource Centre,Catering Purchases,2.42,3663 (BFS GROUP LTD)
Revenue,Community Wellbeing & Social Care,5105650233,29.01.2014,Adelaide Resource Centre,Catering Purchases,41.83,3663 (BFS GROUP LTD)
Revenue,Community Wellbeing & Social Care,5105650237,29.01.2014,Adelaide Resource Centre,Catering Purchases,131.79,3663 (BFS GROUP LTD)
Revenue,Community Wellbeing & Social Care,5105650238,29.01.2014,Adelaide Resource Centre,Catering Purchases,156.27,3663 (BFS GROUP LTD)
Revenue,Community Wellbeing & Social Care,5105650238,29.01.2014,Adelaide Resource Centre,Catering Purchases,12.71,3663 (BFS GROUP LTD)
Revenue,Economy & Environment,5105644164,08.01.2014,Project Manager Waste Strategy,Consultants Fees,461.25,4 PROJECTS LIMITED
Revenue,Community Wellbeing & Social Care,5105648447,22.01.2014,Gouldings Resource Centre,Maintenance of Operational Equipment,211.03,A & M APPLIANCE CARE
Revenue,Community Wellbeing & Social Care,5105648454,22.01.2014,Gouldings Resource Centre,Consumable Cleaning Materials,150.00,A & M APPLIANCE CARE
Revenue,Childrens Services,5105646085,10.01.2014,Beaulieu House,Minor Works,144.60,A & M APPLIANCE CARE
Revenue,Childrens Services,5105645425,08.01.2014,Beaulieu House,Operational Equipment,"3,395.75",A & M APPLIANCE CARE
Revenue,Community Wellbeing & Social Care,5105646079,10.01.2014,Adelaide Resource Centre,Consumable Cleaning Materials,186.00,A & M APPLIANCE CARE
Revenue,Community Wellbeing & Social Care,5105651063,31.01.2014,Overbrook,Minor Works,137.90,A & M APPLIANCE CARE
Revenue,Community Wellbeing & Social Care,5105648450,24.01.2014,The Laurels,Minor Works,69.19,A & M APPLIANCE CARE
Revenue,Community Wellbeing & Social Care,5105648450,24.01.2014,Highmead,Minor Works,69.20,A & M APPLIANCE CARE
Revenue,Community Wellbeing & Social Care,5105649025,24.01.2014,Workforce Development - Early Years,Training,90.00,REDACTED PERSONAL DATA
Revenue,Community Wellbeing & Social Care,5105649025,24.01.2014,Workforce Development - Early Years,Training,90.00,REDACTED PERSONAL DATA
Revenue,Community Wellbeing & Social Care,5105649025,24.01.2014,Workforce Development - Early Years,Training,90.00,REDACTED PERSONAL DATA
Revenue,Community Wellbeing & Social Care,5105651064,31.01.2014,Workforce Development - Early Years,Training,725.00,REDACTED PERSONAL DATA
Revenue,Childrens Services,5105647155,22.01.2014,Adult Social Care - Workforce Development,Training,725.00,REDACTED PERSONAL DATA
Revenue,Resources,5105649018,24.01.2014,Corporate Health & Safety,Professional Services,725.00,REDACTED PERSONAL DATA
Revenue,Community Wellbeing & Social Care,5105648367,22.01.2014,Leaseholds by LA,Accommodation Costs - Leaseholder Payments,780.00,REDACTED PERSONAL DATA
Revenue,Childrens Services,5105650607,31.01.2014,Special Guardianship Order Costs,Support Children,132.69,REDACTED PERSONAL DATA
Revenue,Childrens Services,5105650607,31.01.2014,Special Guardianship Order Costs,Support Children,168.39,REDACTED PERSONAL DATA
Revenue,Childrens Services,5105648687,24.01.2014,Special Guardianship Order Costs,Support Children,132.69,REDACTED PERSONAL DATA
Revenue,Childrens Services,5105648687,24.01.2014,Special Guardianship Order Costs,Support Children,168.39,REDACTED PERSONAL DATA
Revenue,Childrens Services,5105645046,03.01.2014,Special Guardianship Order Costs,Support Children,168.39,REDACTED PERSONAL DATA
Revenue,Childrens Services,5105645046,03.01.2014,Special Guardianship Order Costs,Support Children,132.69,REDACTED PERSONAL DATA
Revenue,Childrens Services,5105645766,10.01.2014,Special Guardianship Order Costs,Support Children,132.69,REDACTED PERSONAL DATA
Revenue,Childrens Services,5105645766,10.01.2014,Special Guardianship Order Costs,Support Children,168.39,REDACTED PERSONAL DATA
Revenue,Childrens Services,5105647307,17.01.2014,Special Guardianship Order Costs,Support Children,132.69,REDACTED PERSONAL DATA
Revenue,Childrens Services,5105647307,17.01.2014,Special Guardianship Order Costs,Support Children,168.39,REDACTED PERSONAL DATA
Revenue,Childrens Services,5105645125,03.01.2014,Leaving Care Costs,Support Children,120.89,REDACTED PERSONAL DATA
Revenue,Childrens Services,5105648770,24.01.2014,Leaving Care Costs,Support Children,120.89,REDACTED PERSONAL DATA
Revenue,Childrens Services,5105645125,03.01.2014,Leaving Care Costs,Accommodation Costs - Service Users,57.50,REDACTED PERSONAL DATA
Revenue,Childrens Services,5105650688,31.01.2014,Leaving Care Costs,Accommodation Costs - Service Users,57.50,REDACTED PERSONAL DATA
Revenue,Childrens Services,5105648770,24.01.2014,Leaving Care Costs,Accommodation Costs - Service Users,57.50,REDACTED PERSONAL DATA
Revenue,Childrens Services,5105645844,10.01.2014,Leaving Care Costs,Accommodation Costs - Service Users,57.50,REDACTED PERSONAL DATA
Revenue,Childrens Services,5105647387,17.01.2014,Leaving Care Costs,Accommodation Costs - Service Users,57.50,REDACTED PERSONAL DATA
Revenue,Childrens Services,5105650688,31.01.2014,Leaving Care Costs,Support Children,120.89,REDACTED PERSONAL DATA
Revenue,Childrens Services,5105645844,10.01.2014,Leaving Care Costs,Support Children,120.89,REDACTED PERSONAL DATA
Revenue,Childrens Services,5105647387,17.01.2014,Leaving Care Costs,Support Children,120.89,REDACTED PERSONAL DATA
Revenue,Community Wellbeing & Social Care,5105648376,22.01.2014,Leaseholds by LA,Accommodation Costs - Leaseholder Payments,510.25,REDACTED PERSONAL DATA
Revenue,Community Wellbeing & Social Care,5105648376,22.01.2014,Leaseholds by LA,Accommodation Costs - Leaseholder Payments,510.25,REDACTED PERSONAL DATA
Revenue,Community Wellbeing & Social Care,5105648376,22.01.2014,Leaseholds by LA,Accommodation Costs - Leaseholder Payments,510.25,REDACTED PERSONAL DATA
Revenue,Community Wellbeing & Social Care,5105648376,22.01.2014,Leaseholds by LA,Accommodation Costs - Leaseholder Payments,510.25,REDACTED PERSONAL DATA
Revenue,Community Wellbeing & Social Care,5105648376,22.01.2014,Leaseholds by LA,Accommodation Costs - Leaseholder Payments,510.25,REDACTED PERSONAL DATA
Revenue,Community Wellbeing & Social Care,5105648376,22.01.2014,Leaseholds by LA,Accommodation Costs - Leaseholder Payments,510.25,REDACTED PERSONAL DATA
Revenue,Childrens Services,5105647281,17.01.2014,Adoption Costs,Support Children,186.49,REDACTED PERSONAL DATA
Revenue,Childrens Services,5105648661,24.01.2014,Adoption Costs,Support Children,186.49,REDACTED PERSONAL DATA
Revenue,Childrens Services,5105650581,31.01.2014,Adoption Costs,Support Children,186.49,REDACTED PERSONAL DATA
Revenue,Childrens Services,5105645740,10.01.2014,Adoption Costs,Support Children,186.49,REDACTED PERSONAL DATA
Revenue,Childrens Services,5105645329,06.01.2014,Adoption Costs,Support Children,186.49,REDACTED PERSONAL DATA
Revenue,Childrens Services,5105645805,10.01.2014,In-house Fostering,Boarding Out Allowances,221.13,REDACTED PERSONAL DATA
Revenue,Childrens Services,5105648730,24.01.2014,In-house Fostering,Boarding Out Allowances,221.13,REDACTED PERSONAL DATA
Revenue,Childrens Services,5105650648,31.01.2014,In-house Fostering,Boarding Out Allowances,221.13,REDACTED PERSONAL DATA
Revenue,Childrens Services,5105647348,17.01.2014,In-house Fostering,Boarding Out Allowances,221.13,REDACTED PERSONAL DATA
Revenue,Childrens Services,5105645086,03.01.2014,In-house Fostering,Boarding Out Allowances,221.13,REDACTED PERSONAL DATA
Revenue,Community Wellbeing & Social Care,5105648378,22.01.2014,Leaseholds by LA,Accommodation Costs - Leaseholder Payments,780.00,REDACTED PERSONAL DATA
Revenue,Community Wellbeing & Social Care,5105648365,22.01.2014,Leaseholds by LA,Accommodation Costs - Leaseholder Payments,789.01,REDACTED PERSONAL DATA
Revenue,Community Wellbeing & Social Care,5105648365,22.01.2014,Leaseholds by LA,Accommodation Costs - Leaseholder Payments,835.08,REDACTED PERSONAL DATA
Revenue,Community Wellbeing & Social Care,5105648365,22.01.2014,Leaseholds by LA,Accommodation Costs - Leaseholder Payments,649.83,REDACTED PERSONAL DATA
Revenue,Childrens Services,5105647276,17.01.2014,Adoption Costs,Support Children,87.15,REDACTED PERSONAL DATA
Revenue,Childrens Services,5105648656,24.01.2014,Adoption Costs,Support Children,87.15,REDACTED PERSONAL DATA
Revenue,Childrens Services,5105645324,06.01.2014,Adoption Costs,Support Children,87.15,REDACTED PERSONAL DATA
Revenue,Childrens Services,5105650576,31.01.2014,Adoption Costs,Support Children,87.15,REDACTED PERSONAL DATA
Revenue,Childrens Services,5105645735,10.01.2014,Adoption Costs,Support Children,87.15,REDACTED PERSONAL DATA
Revenue,Community Wellbeing & Social Care,5105651002,31.01.2014,Integrated Community Equipment Service,Fixtures and Fittings,75.00,A-1 GARAGE DOOR SPECIALISTS (IOW)
Revenue,Childrens Services,5105643945,17.01.2014,Beaulieu House,Minor Works,282.00,A-1 GARAGE DOOR SPECIALISTS (IOW)
Revenue,Community Wellbeing & Social Care,5105650183,29.01.2014,Ryde Library,Publications,135.30,AB NEWS
Revenue,Community Wellbeing & Social Care,5105647691,17.01.2014,Supporting People Older Persons,Payment to Private Contractors,"1,327.80",ABBEYFIELD WEST WIGHT SOCIETY
Revenue,Community Wellbeing & Social Care,5105649460,29.01.2014,Elderly Mentally Ill Residential Care,Charges from Independent Providers,"1,699.88",ACACIA CARE HOME
Revenue,Community Wellbeing & Social Care,5105649460,29.01.2014,Elderly Frail Residential Care,Charges from Independent Providers,"1,622.60",ACACIA CARE HOME
Revenue,Community Wellbeing & Social Care,5105649460,29.01.2014,Elderly Frail Residential Care,Charges from Independent Providers,"1,622.60",ACACIA CARE HOME
Revenue,Community Wellbeing & Social Care,5105649460,29.01.2014,Elderly Frail Residential Care,Charges from Independent Providers,"1,622.60",ACACIA CARE HOME
Revenue,Childrens Services,5105648488,24.01.2014,Parent Partnership,Interview & recruitment expenses,6.00,ACCESS PERSONAL CHECKING SERVICES LTD
Revenue,Childrens Services,5105645566,10.01.2014,Youth & Community Service,Interview & recruitment expenses,6.00,ACCESS PERSONAL CHECKING SERVICES LTD
Revenue,Childrens Services,5105645567,10.01.2014,Youth & Community Service,Interview & recruitment expenses,6.00,ACCESS PERSONAL CHECKING SERVICES LTD
Revenue,Childrens Services,5105645566,10.01.2014,Youth & Community Service,Interview & recruitment expenses,44.00,ACCESS PERSONAL CHECKING SERVICES LTD
Revenue,Childrens Services,5105645566,10.01.2014,Looked After Children Units 5-7,Interview & recruitment expenses,44.00,ACCESS PERSONAL CHECKING SERVICES LTD
Revenue,Childrens Services,5105645566,10.01.2014,Looked After Children Units 5-7,Interview & recruitment expenses,6.00,ACCESS PERSONAL CHECKING SERVICES LTD
Revenue,Childrens Services,5105645566,10.01.2014,School Music Service,Interview & recruitment expenses,6.00,ACCESS PERSONAL CHECKING SERVICES LTD
Revenue,Economy & Environment,5105645567,10.01.2014,Medina Leisure Centre,Interview & recruitment expenses,51.00,ACCESS PERSONAL CHECKING SERVICES LTD
Revenue,Economy & Environment,5105645567,10.01.2014,Medina Leisure Centre,Interview & recruitment expenses,44.00,ACCESS PERSONAL CHECKING SERVICES LTD
Revenue,Economy & Environment,5105645567,10.01.2014,Medina Leisure Centre,Interview & recruitment expenses,28.00,ACCESS PERSONAL CHECKING SERVICES LTD
Revenue,Economy & Environment,5105648488,24.01.2014,Medina Leisure Centre,Interview & recruitment expenses,88.00,ACCESS PERSONAL CHECKING SERVICES LTD
Revenue,Economy & Environment,5105648488,24.01.2014,Medina Leisure Centre,Interview & recruitment expenses,12.00,ACCESS PERSONAL CHECKING SERVICES LTD
Revenue,Community Wellbeing & Social Care,5105645566,10.01.2014,Gouldings Resource Centre,Interview & recruitment expenses,18.00,ACCESS PERSONAL CHECKING SERVICES LTD
Revenue,Community Wellbeing & Social Care,5105645566,10.01.2014,Gouldings Resource Centre,Interview & recruitment expenses,132.00,ACCESS PERSONAL CHECKING SERVICES LTD
Revenue,Community Wellbeing & Social Care,5105648488,24.01.2014,Saxonbury,Interview & recruitment expenses,12.00,ACCESS PERSONAL CHECKING SERVICES LTD
Revenue,Community Wellbeing & Social Care,5105648488,24.01.2014,Saxonbury,Interview & recruitment expenses,44.00,ACCESS PERSONAL CHECKING SERVICES LTD
Revenue,Community Wellbeing & Social Care,5105648488,24.01.2014,Plean Dene,Interview & recruitment expenses,132.00,ACCESS PERSONAL CHECKING SERVICES LTD
Revenue,Community Wellbeing & Social Care,5105648488,24.01.2014,Plean Dene,Interview & recruitment expenses,18.00,ACCESS PERSONAL CHECKING SERVICES LTD
Revenue,Community Wellbeing & Social Care,5105645566,10.01.2014,Plean Dene,Interview & recruitment expenses,132.00,ACCESS PERSONAL CHECKING SERVICES LTD
Revenue,Community Wellbeing & Social Care,5105645566,10.01.2014,Plean Dene,Interview & recruitment expenses,18.00,ACCESS PERSONAL CHECKING SERVICES LTD
Revenue,Community Wellbeing & Social Care,5105645567,10.01.2014,Plean Dene,Interview & recruitment expenses,220.00,ACCESS PERSONAL CHECKING SERVICES LTD
Revenue,Community Wellbeing & Social Care,5105645567,10.01.2014,Plean Dene,Interview & recruitment expenses,30.00,ACCESS PERSONAL CHECKING SERVICES LTD
Revenue,Community Wellbeing & Social Care,5105645567,10.01.2014,Saxonbury,Interview & recruitment expenses,132.00,ACCESS PERSONAL CHECKING SERVICES LTD
Revenue,Community Wellbeing & Social Care,5105645567,10.01.2014,Saxonbury,Interview & recruitment expenses,18.00,ACCESS PERSONAL CHECKING SERVICES LTD
Revenue,Community Wellbeing & Social Care,5105645566,10.01.2014,Saxonbury,Interview & recruitment expenses,132.00,ACCESS PERSONAL CHECKING SERVICES LTD
Revenue,Community Wellbeing & Social Care,5105645566,10.01.2014,Saxonbury,Interview & recruitment expenses,18.00,ACCESS PERSONAL CHECKING SERVICES LTD
Revenue,Community Wellbeing & Social Care,5105645566,10.01.2014,Head of Community Wellbeing,Interview & recruitment expenses,44.00,ACCESS PERSONAL CHECKING SERVICES LTD
Revenue,Community Wellbeing & Social Care,5105645566,10.01.2014,Head of Community Wellbeing,Interview & recruitment expenses,6.00,ACCESS PERSONAL CHECKING SERVICES LTD
Revenue,Childrens Services,5105645567,10.01.2014,Beaulieu House,Interview & recruitment expenses,12.00,ACCESS PERSONAL CHECKING SERVICES LTD
Revenue,Childrens Services,5105645567,10.01.2014,Beaulieu House,Interview & recruitment expenses,88.00,ACCESS PERSONAL CHECKING SERVICES LTD
Revenue,Childrens Services,5105645566,10.01.2014,Beaulieu House,Interview & recruitment expenses,44.00,ACCESS PERSONAL CHECKING SERVICES LTD
Revenue,Childrens Services,5105645566,10.01.2014,Beaulieu House,Interview & recruitment expenses,6.00,ACCESS PERSONAL CHECKING SERVICES LTD
Revenue,Childrens Services,5105648488,24.01.2014,Beaulieu House,Interview & recruitment expenses,132.00,ACCESS PERSONAL CHECKING SERVICES LTD
Revenue,Childrens Services,5105648488,24.01.2014,Beaulieu House,Interview & recruitment expenses,18.00,ACCESS PERSONAL CHECKING SERVICES LTD
Revenue,Community Wellbeing & Social Care,5105648488,24.01.2014,Behaviour & Parenting Team,Interview & recruitment expenses,44.00,ACCESS PERSONAL CHECKING SERVICES LTD
Revenue,Community Wellbeing & Social Care,5105648488,24.01.2014,Behaviour & Parenting Team,Interview & recruitment expenses,6.00,ACCESS PERSONAL CHECKING SERVICES LTD
Revenue,Economy & Environment,5105645566,10.01.2014,School Crossing Patrols,Interview & recruitment expenses,44.00,ACCESS PERSONAL CHECKING SERVICES LTD
Revenue,Economy & Environment,5105645566,10.01.2014,School Crossing Patrols,Interview & recruitment expenses,6.00,ACCESS PERSONAL CHECKING SERVICES LTD
Revenue,Community Wellbeing & Social Care,5105645567,10.01.2014,Wightcare,Interview & recruitment expenses,88.00,ACCESS PERSONAL CHECKING SERVICES LTD
Revenue,Community Wellbeing & Social Care,5105645567,10.01.2014,Wightcare,Interview & recruitment expenses,12.00,ACCESS PERSONAL CHECKING SERVICES LTD
Revenue,Community Wellbeing & Social Care,5105648488,24.01.2014,Wightcare,Interview & recruitment expenses,44.00,ACCESS PERSONAL CHECKING SERVICES LTD
Revenue,Community Wellbeing & Social Care,5105648488,24.01.2014,Wightcare,Interview & recruitment expenses,6.00,ACCESS PERSONAL CHECKING SERVICES LTD
Revenue,Childrens Services,5105645566,10.01.2014,Clatterford Pupil Referral Unit (PRU),Interview & recruitment expenses,88.00,ACCESS PERSONAL CHECKING SERVICES LTD
Revenue,Childrens Services,5105645566,10.01.2014,Clatterford Pupil Referral Unit (PRU),Interview & recruitment expenses,12.00,ACCESS PERSONAL CHECKING SERVICES LTD
Revenue,Community Wellbeing & Social Care,5105648488,24.01.2014,Learning Disability Homes Management & Admin,Interview & recruitment expenses,6.00,ACCESS PERSONAL CHECKING SERVICES LTD
Revenue,Community Wellbeing & Social Care,5105648488,24.01.2014,Learning Disability Homes Management & Admin,Interview & recruitment expenses,44.00,ACCESS PERSONAL CHECKING SERVICES LTD
Revenue,Economy & Environment,5105645566,10.01.2014,Fort Victoria,Interview & recruitment expenses,52.00,ACCESS PERSONAL CHECKING SERVICES LTD
Revenue,Economy & Environment,5105645566,10.01.2014,Fort Victoria,Interview & recruitment expenses,12.00,ACCESS PERSONAL CHECKING SERVICES LTD
Revenue,Childrens Services,5105645566,10.01.2014,Education Participation Team,Interview & recruitment expenses,44.00,ACCESS PERSONAL CHECKING SERVICES LTD
Revenue,Childrens Services,5105645566,10.01.2014,Education Participation Team,Interview & recruitment expenses,6.00,ACCESS PERSONAL CHECKING SERVICES LTD
Revenue,Community Wellbeing & Social Care,5105645566,10.01.2014,Training - Childrens,Interview & recruitment expenses,6.00,ACCESS PERSONAL CHECKING SERVICES LTD
Revenue,Community Wellbeing & Social Care,5105645566,10.01.2014,Training - Childrens,Interview & recruitment expenses,44.00,ACCESS PERSONAL CHECKING SERVICES LTD
Revenue,Community Wellbeing & Social Care,5105645567,10.01.2014,Hospital Team,Interview & recruitment expenses,132.00,ACCESS PERSONAL CHECKING SERVICES LTD
Revenue,Community Wellbeing & Social Care,5105645567,10.01.2014,Hospital Team,Interview & recruitment expenses,18.00,ACCESS PERSONAL CHECKING SERVICES LTD
Revenue,Childrens Services,5105645567,10.01.2014,Adoption Team,Interview & recruitment expenses,264.00,ACCESS PERSONAL CHECKING SERVICES LTD
Revenue,Childrens Services,5105645567,10.01.2014,Adoption Team,Interview & recruitment expenses,36.00,ACCESS PERSONAL CHECKING SERVICES LTD
Revenue,Childrens Services,5105645566,10.01.2014,Adoption Team,Interview & recruitment expenses,264.00,ACCESS PERSONAL CHECKING SERVICES LTD
Revenue,Childrens Services,5105645566,10.01.2014,Adoption Team,Interview & recruitment expenses,48.00,ACCESS PERSONAL CHECKING SERVICES LTD
Revenue,Childrens Services,5105648488,24.01.2014,Adoption Team,Interview & recruitment expenses,36.00,ACCESS PERSONAL CHECKING SERVICES LTD
Revenue,Childrens Services,5105648488,24.01.2014,Adoption Team,Interview & recruitment expenses,264.00,ACCESS PERSONAL CHECKING SERVICES LTD
Revenue,Economy & Environment,5105642179,15.01.2014,Licensing Services,Interview & recruitment expenses,396.00,ACCESS PERSONAL CHECKING SERVICES LTD
Revenue,Economy & Environment,5105647052,15.01.2014,Licensing Services,Interview & recruitment expenses,176.00,ACCESS PERSONAL CHECKING SERVICES LTD
Revenue,Economy & Environment,5105647052,15.01.2014,Licensing Services,Professional Services,24.00,ACCESS PERSONAL CHECKING SERVICES LTD
Revenue,Economy & Environment,5105642179,15.01.2014,Licensing Services,Professional Services,54.00,ACCESS PERSONAL CHECKING SERVICES LTD
Revenue,Childrens Services,5105648488,24.01.2014,In-house Fostering,Interview & recruitment expenses,264.00,ACCESS PERSONAL CHECKING SERVICES LTD
Revenue,Childrens Services,5105648488,24.01.2014,In-house Fostering,Interview & recruitment expenses,36.00,ACCESS PERSONAL CHECKING SERVICES LTD
Revenue,Childrens Services,5105645566,10.01.2014,In-house Fostering,Interview & recruitment expenses,748.00,ACCESS PERSONAL CHECKING SERVICES LTD
Revenue,Childrens Services,5105645566,10.01.2014,In-house Fostering,Interview & recruitment expenses,108.00,ACCESS PERSONAL CHECKING SERVICES LTD
Revenue,Childrens Services,5105645567,10.01.2014,In-house Fostering,Interview & recruitment expenses,748.00,ACCESS PERSONAL CHECKING SERVICES LTD
Revenue,Childrens Services,5105645567,10.01.2014,In-house Fostering,Interview & recruitment expenses,114.00,ACCESS PERSONAL CHECKING SERVICES LTD
Revenue,Community Wellbeing & Social Care,5105648488,24.01.2014,Adelaide Resource Centre,Interview & recruitment expenses,44.00,ACCESS PERSONAL CHECKING SERVICES LTD
Revenue,Community Wellbeing & Social Care,5105648488,24.01.2014,Adelaide Resource Centre,Interview & recruitment expenses,6.00,ACCESS PERSONAL CHECKING SERVICES LTD
Revenue,Childrens Services,5105645567,10.01.2014,Youth Offending Team,Interview & recruitment expenses,44.00,ACCESS PERSONAL CHECKING SERVICES LTD
Revenue,Childrens Services,5105645567,10.01.2014,Youth Offending Team,Interview & recruitment expenses,6.00,ACCESS PERSONAL CHECKING SERVICES LTD
Revenue,Economy & Environment,5105645566,10.01.2014,The Heights,Interview & recruitment expenses,44.00,ACCESS PERSONAL CHECKING SERVICES LTD
Revenue,Economy & Environment,5105645567,10.01.2014,The Heights,Interview & recruitment expenses,6.00,ACCESS PERSONAL CHECKING SERVICES LTD
Revenue,Economy & Environment,5105645566,10.01.2014,The Heights,Interview & recruitment expenses,6.00,ACCESS PERSONAL CHECKING SERVICES LTD
Revenue,Economy & Environment,5105648488,24.01.2014,The Heights,Interview & recruitment expenses,88.00,ACCESS PERSONAL CHECKING SERVICES LTD
Revenue,Economy & Environment,5105648488,24.01.2014,The Heights,Interview & recruitment expenses,6.00,ACCESS PERSONAL CHECKING SERVICES LTD
Revenue,Community Wellbeing & Social Care,5105645567,10.01.2014,Adelaide Resource Centre,Interview & recruitment expenses,88.00,ACCESS PERSONAL CHECKING SERVICES LTD
Revenue,Community Wellbeing & Social Care,5105645567,10.01.2014,Adelaide Resource Centre,Interview & recruitment expenses,12.00,ACCESS PERSONAL CHECKING SERVICES LTD
Revenue,Community Wellbeing & Social Care,5105648488,24.01.2014,Overbrook,Interview & recruitment expenses,44.00,ACCESS PERSONAL CHECKING SERVICES LTD
Revenue,Community Wellbeing & Social Care,5105648488,24.01.2014,Overbrook,Interview & recruitment expenses,6.00,ACCESS PERSONAL CHECKING SERVICES LTD
Revenue,Community Wellbeing & Social Care,5105646276,10.01.2014,Elderly Frail Homecare,Regular Respite Care,58.08,ACORN CARE SERVICE LTD
Revenue,Community Wellbeing & Social Care,5105646259,10.01.2014,Elderly Frail Homecare,Regular Respite Care,87.12,ACORN CARE SERVICE LTD
Revenue,Community Wellbeing & Social Care,5105646275,10.01.2014,Elderly Frail Homecare,Regular Respite Care,29.04,ACORN CARE SERVICE LTD
Revenue,Community Wellbeing & Social Care,5105646261,10.01.2014,Elderly Frail Homecare,Regular Respite Care,174.24,ACORN CARE SERVICE LTD
Revenue,Community Wellbeing & Social Care,5105646269,10.01.2014,Elderly Frail Homecare,Charges from Independent Providers,588.06,ACORN CARE SERVICE LTD
Revenue,Community Wellbeing & Social Care,5105646270,10.01.2014,Elderly Frail Homecare,Charges from Independent Providers,116.16,ACORN CARE SERVICE LTD
Revenue,Community Wellbeing & Social Care,5105646260,10.01.2014,Elderly Frail Homecare,Charges from Independent Providers,522.72,ACORN CARE SERVICE LTD
Revenue,Community Wellbeing & Social Care,5105646272,10.01.2014,Elderly Frail Homecare,Charges from Independent Providers,856.68,ACORN CARE SERVICE LTD
Revenue,Community Wellbeing & Social Care,5105646274,10.01.2014,Elderly Frail Homecare,Charges from Independent Providers,261.36,ACORN CARE SERVICE LTD
Revenue,Community Wellbeing & Social Care,5105646255,10.01.2014,Elderly Frail Homecare,Charges from Independent Providers,406.56,ACORN CARE SERVICE LTD
Revenue,Community Wellbeing & Social Care,5105646256,10.01.2014,Elderly Frail Homecare,Charges from Independent Providers,174.24,ACORN CARE SERVICE LTD
Revenue,Community Wellbeing & Social Care,5105646257,10.01.2014,Elderly Frail Homecare,Charges from Independent Providers,348.48,ACORN CARE SERVICE LTD
Revenue,Community Wellbeing & Social Care,5105646251,10.01.2014,Elderly Frail Homecare,Charges from Independent Providers,58.08,ACORN CARE SERVICE LTD
Revenue,Community Wellbeing & Social Care,5105646244,10.01.2014,Elderly Frail Homecare,Charges from Independent Providers,377.52,ACORN CARE SERVICE LTD
Revenue,Community Wellbeing & Social Care,5105646245,10.01.2014,Elderly Frail Homecare,Charges from Independent Providers,"1,118.04",ACORN CARE SERVICE LTD
Revenue,Community Wellbeing & Social Care,5105646246,10.01.2014,Elderly Frail Homecare,Charges from Independent Providers,827.64,ACORN CARE SERVICE LTD
Revenue,Community Wellbeing & Social Care,5105646238,10.01.2014,Elderly Frail Homecare,Charges from Independent Providers,813.12,ACORN CARE SERVICE LTD
Revenue,Community Wellbeing & Social Care,5105646239,10.01.2014,Elderly Frail Homecare,Charges from Independent Providers,"2,294.16",ACORN CARE SERVICE LTD
Revenue,Community Wellbeing & Social Care,5105646240,10.01.2014,Elderly Frail Homecare,Charges from Independent Providers,290.40,ACORN CARE SERVICE LTD
Revenue,Community Wellbeing & Social Care,5105646241,10.01.2014,Elderly Frail Homecare,Charges from Independent Providers,712.08,ACORN CARE SERVICE LTD
Revenue,Community Wellbeing & Social Care,5105646236,10.01.2014,Elderly Frail Homecare,Charges from Independent Providers,377.52,ACORN CARE SERVICE LTD
Revenue,Community Wellbeing & Social Care,5105646262,10.01.2014,Elderly Frail Homecare,Charges from Independent Providers,319.44,ACORN CARE SERVICE LTD
Revenue,Community Wellbeing & Social Care,5105646258,10.01.2014,Elderly Frail Homecare,Charges from Independent Providers,228.69,ACORN CARE SERVICE LTD
Revenue,Community Wellbeing & Social Care,5105646253,10.01.2014,Elderly Frail Homecare,Charges from Independent Providers,203.28,ACORN CARE SERVICE LTD
Revenue,Community Wellbeing & Social Care,5105646254,10.01.2014,Elderly Frail Homecare,Charges from Independent Providers,203.28,ACORN CARE SERVICE LTD
Revenue,Community Wellbeing & Social Care,5105646268,10.01.2014,Elderly Frail Homecare,Charges from Independent Providers,711.48,ACORN CARE SERVICE LTD
Revenue,Community Wellbeing & Social Care,5105646266,10.01.2014,Elderly Frail Homecare,Charges from Independent Providers,406.56,ACORN CARE SERVICE LTD
Revenue,Community Wellbeing & Social Care,5105646264,10.01.2014,Elderly Frail Homecare,Charges from Independent Providers,348.48,ACORN CARE SERVICE LTD
Revenue,Community Wellbeing & Social Care,5105646271,10.01.2014,Elderly Frail Homecare,Charges from Independent Providers,"2,613.60",ACORN CARE SERVICE LTD
Revenue,Community Wellbeing & Social Care,5105646237,10.01.2014,Elderly Frail Homecare,Charges from Independent Providers,"2,555.52",ACORN CARE SERVICE LTD
Revenue,Community Wellbeing & Social Care,5105646248,10.01.2014,Elderly Frail Homecare,Charges from Independent Providers,522.72,ACORN CARE SERVICE LTD
Revenue,Community Wellbeing & Social Care,5105646249,10.01.2014,Elderly Frail Homecare,Charges from Independent Providers,689.70,ACORN CARE SERVICE LTD
Revenue,Community Wellbeing & Social Care,5105646250,10.01.2014,Elderly Frail Homecare,Charges from Independent Providers,101.64,ACORN CARE SERVICE LTD
Revenue,Community Wellbeing & Social Care,5105646252,10.01.2014,Elderly Frail Homecare,Charges from Independent Providers,203.28,ACORN CARE SERVICE LTD
Revenue,Community Wellbeing & Social Care,5105646243,10.01.2014,Elderly Frail Homecare,Charges from Independent Providers,"1,401.18",ACORN CARE SERVICE LTD
Revenue,Community Wellbeing & Social Care,5105646247,10.01.2014,Elderly Frail Homecare,Charges from Independent Providers,203.28,ACORN CARE SERVICE LTD
Revenue,Community Wellbeing & Social Care,5105646242,10.01.2014,Elderly Frail Homecare,Charges from Independent Providers,"1,524.60",ACORN CARE SERVICE LTD
Revenue,Community Wellbeing & Social Care,5105646242,10.01.2014,Elderly Frail Homecare,Charges from Independent Providers,"1,524.60",ACORN CARE SERVICE LTD
Revenue,Community Wellbeing & Social Care,5105646273,10.01.2014,Elderly Mentally Ill Homecare,Charges from Independent Providers,203.28,ACORN CARE SERVICE LTD
Revenue,Community Wellbeing & Social Care,5105646267,10.01.2014,Elderly Frail Managed Accounts,Regular Respite Care,116.16,ACORN CARE SERVICE LTD
Revenue,Community Wellbeing & Social Care,5105646263,10.01.2014,Elderly Frail Managed Accounts,Charges from Independent Providers,755.04,ACORN CARE SERVICE LTD
Revenue,Childrens Services,5105649259,29.01.2014,Adult Social Care - Workforce Development,Training,151.00,ACTION ON ELDERS ABUSE
Revenue,Childrens Services,5105649259,29.01.2014,Adult Social Care - Workforce Development,Training,151.00,ACTION ON ELDERS ABUSE
Revenue,Economy & Environment,5105647886,27.01.2014,Medina Leisure Centre,Payment to Private Contractors,638.75,ACTIVE FACES WELLBEING LIMITED
Revenue,Economy & Environment,5105647886,27.01.2014,Westridge Squash Courts,Payment to Private Contractors,451.25,ACTIVE FACES WELLBEING LIMITED
Revenue,Economy & Environment,5105647886,27.01.2014,The Heights,Payment to Private Contractors,566.25,ACTIVE FACES WELLBEING LIMITED
Revenue,Economy & Environment,5105645596,08.01.2014,Fire Technical Support,Vehicle Maintenance Costs,1.69,ADAMS MOREY LTD
Revenue,Economy & Environment,5105645596,08.01.2014,Fire Technical Support,Vehicle Maintenance Costs,54.13,ADAMS MOREY LTD
Revenue,Economy & Environment,5105645596,08.01.2014,Fire Technical Support,Vehicle Maintenance Costs,2.47,ADAMS MOREY LTD
Revenue,Economy & Environment,5105645596,08.01.2014,Fire Technical Support,Vehicle Maintenance Costs,2.47,ADAMS MOREY LTD
Revenue,Economy & Environment,5105645596,08.01.2014,Fire Technical Support,Vehicle Maintenance Costs,6.17,ADAMS MOREY LTD
Revenue,Economy & Environment,5105648320,22.01.2014,Fire Technical Support,Vehicle Maintenance Costs,14.50,ADAMS MOREY LTD
Revenue,Economy & Environment,5105647789,17.01.2014,Fire Technical Support,Vehicle Maintenance Costs,14.50,ADAMS MOREY LTD
Revenue,Economy & Environment,5105647788,17.01.2014,Fire Technical Support,Vehicle Maintenance Costs,14.50,ADAMS MOREY LTD
Revenue,Economy & Environment,5105647787,17.01.2014,Fire Technical Support,Vehicle Maintenance Costs,49.00,ADAMS MOREY LTD
Revenue,Economy & Environment,5105650822,31.01.2014,Fire Technical Support,Vehicle Maintenance Costs,65.56,ADAMS MOREY LTD
Revenue,Economy & Environment,5105650822,31.01.2014,Fire Technical Support,Vehicle Maintenance Costs,1.79,ADAMS MOREY LTD
Revenue,Economy & Environment,5105650822,31.01.2014,Fire Technical Support,Vehicle Maintenance Costs,54.60,ADAMS MOREY LTD
Revenue,Economy & Environment,5105645596,08.01.2014,Fire Technical Support,Vehicle Maintenance Costs,53.79,ADAMS MOREY LTD
Revenue,Economy & Environment,5105645596,08.01.2014,Fire Technical Support,Vehicle Maintenance Costs,19.21,ADAMS MOREY LTD
Revenue,Economy & Environment,5105645596,08.01.2014,Fire Technical Support,Vehicle Maintenance Costs,20.76,ADAMS MOREY LTD
Revenue,Economy & Environment,5105650142,29.01.2014,Fire Technical Support,Vehicle Maintenance Costs,29.50,ADAMS MOREY LTD
Revenue,Economy & Environment,5105650145,29.01.2014,Fire Technical Support,Vehicle Maintenance Costs,20.00,ADAMS MOREY LTD
Revenue,Economy & Environment,5105650151,29.01.2014,Fire Technical Support,Vehicle Maintenance Costs,14.50,ADAMS MOREY LTD
Revenue,Economy & Environment,5105649061,24.01.2014,Fire Technical Support,Vehicle Maintenance Costs,29.50,ADAMS MOREY LTD
Revenue,Economy & Environment,5105649250,24.01.2014,Fire Technical Support,Vehicle Maintenance Costs,346.84,ADAMS MOREY LTD
Revenue,Economy & Environment,5105649251,24.01.2014,Fire Technical Support,Vehicle Maintenance Costs,4.09,ADAMS MOREY LTD
Revenue,Economy & Environment,5105649251,24.01.2014,Fire Technical Support,Vehicle Maintenance Costs,4.09,ADAMS MOREY LTD
Revenue,Economy & Environment,5105649251,24.01.2014,Fire Technical Support,Vehicle Maintenance Costs,6.37,ADAMS MOREY LTD
Revenue,Economy & Environment,5105649251,24.01.2014,Fire Technical Support,Vehicle Maintenance Costs,6.37,ADAMS MOREY LTD
Revenue,Economy & Environment,5105649251,24.01.2014,Fire Technical Support,Vehicle Maintenance Costs,2.15,ADAMS MOREY LTD
Revenue,Economy & Environment,5105649251,24.01.2014,Fire Technical Support,Vehicle Maintenance Costs,2.15,ADAMS MOREY LTD
Revenue,Economy & Environment,5105649251,24.01.2014,Fire Technical Support,Vehicle Maintenance Costs,52.86,ADAMS MOREY LTD
Revenue,Economy & Environment,5105649251,24.01.2014,Fire Technical Support,Vehicle Maintenance Costs,52.86,ADAMS MOREY LTD
Revenue,Economy & Environment,5105649251,24.01.2014,Fire Technical Support,Vehicle Maintenance Costs,42.52,ADAMS MOREY LTD
Revenue,Economy & Environment,5105649251,24.01.2014,Fire Technical Support,Vehicle Maintenance Costs,42.52,ADAMS MOREY LTD
Revenue,Economy & Environment,5105649251,24.01.2014,Fire Technical Support,Vehicle Maintenance Costs,7.30,ADAMS MOREY LTD
Revenue,Economy & Environment,5105649251,24.01.2014,Fire Technical Support,Vehicle Maintenance Costs,7.30,ADAMS MOREY LTD
Revenue,Childrens Services,5105650373,31.01.2014,Adoption Costs,Professional Subscriptions,74.00,ADOPTION UK
Revenue,Childrens Services,5105647133,17.01.2014,Adoption Team,Advertising & Publicity,105.00,ADOPTION UK
Revenue,Childrens Services,5105647133,17.01.2014,Adoption Team,Advertising & Publicity,595.00,ADOPTION UK
Revenue,Economy & Environment,5105645520,08.01.2014,Medina Leisure Centre,Payment to Private Contractors,321.58,ADT FIRE AND SECURITY PLC
Revenue,Community Wellbeing & Social Care,5105647636,24.01.2014,Cothey Bottom Store RYDE,Payment to Private Contractors,510.05,ADT FIRE AND SECURITY PLC
Revenue,Community Wellbeing & Social Care,5105646058,10.01.2014,Cothey Bottom Store RYDE,Payment to Private Contractors,475.49,ADT FIRE AND SECURITY PLC
Revenue,Resources,5105647566,17.01.2014,Administrative Buildings,Payment to Private Contractors,232.71,ADT FIRE AND SECURITY PLC
Revenue,Community Wellbeing & Social Care,5105650177,29.01.2014,Mental Health Other Care,Charges from Independent Providers,168.00,AGE CONCERN ISLE OF WIGHT
Revenue,Community Wellbeing & Social Care,5105650239,29.01.2014,Renewal & Enforcement,Payments to Voluntary and Other Associations,"13,330.00",AGE CONCERN T/A AGE UK
Revenue,Childrens Services,5105647257,17.01.2014,Court Work & Consultancy Services,Legal Fees - Other Parties,"1,070.73",AHIMSA (SAFER FAMILIES) LTD
Revenue,Economy & Environment,5105647803,29.01.2014,Environmental Health - Geographical Team,Courier Costs,7.50,AIR LOGISTICS NETWORKS LTD
Revenue,Economy & Environment,5105648058,29.01.2014,Environmental Health - Geographical Team,Courier Costs,51.66,AIR LOGISTICS NETWORKS LTD
Revenue,Childrens Services,5105650062,27.01.2014,Reviewing Officer,Agency staff,175.20,AIR SOCIAL CARE
Revenue,Childrens Services,5105650062,27.01.2014,Reviewing Officer,Agency staff,"1,350.00",AIR SOCIAL CARE
Revenue,Community Wellbeing & Social Care,5105650099,29.01.2014,Emergency Duty Service,Agency staff,"2,679.00",AIR SOCIAL CARE
Revenue,Community Wellbeing & Social Care,5105643668,03.01.2014,Emergency Duty Service,Agency staff,"2,820.00",AIR SOCIAL CARE
Revenue,Community Wellbeing & Social Care,5105641990,08.01.2014,Emergency Duty Service,Agency staff,"9,618.00",AIR SOCIAL CARE
Revenue,Childrens Services,5105645673,15.01.2014,Leaving Care Costs,Payments to/Aid Provided to Clients,100.00,ALAN SHEPARD (IOW)
Revenue,Childrens Services,5105640021,15.01.2014,Beaulieu House,Minor Works,829.17,ALBANY FARM & G MACHINERY LTD
Revenue,Economy & Environment,5105650501,29.01.2014,Development Control,Advertising & Publicity,428.88,ALEXANDER ADVERTISING (INT) LTD
Revenue,Economy & Environment,5105648324,22.01.2014,Development Control,Advertising & Publicity,324.27,ALEXANDER ADVERTISING (INT) LTD
Revenue,Economy & Environment,5105647001,15.01.2014,Development Control,Advertising & Publicity,333.78,ALEXANDER ADVERTISING (INT) LTD
Revenue,Economy & Environment,5105645690,29.01.2014,Development Control,Advertising & Publicity,231.08,ALEXANDER ADVERTISING (INT) LTD
Revenue,Economy & Environment,5105645693,29.01.2014,Development Control,Advertising & Publicity,246.49,ALEXANDER ADVERTISING (INT) LTD
Revenue,Economy & Environment,5105650502,29.01.2014,Development Control,Advertising & Publicity,397.50,ALEXANDER ADVERTISING (INT) LTD
Revenue,Economy & Environment,5105650435,29.01.2014,Fire Technical Support,Stock Purchases,33.00,ALLBATTERIES UK LTD
Revenue,Economy & Environment,5105650435,29.01.2014,Fire Technical Support,Stock Purchases,76.00,ALLBATTERIES UK LTD
Revenue,Economy & Environment,5105650755,31.01.2014,Fire Technical Support,Operational Equipment,56.50,ALLBATTERIES UK LTD
Revenue,Economy & Environment,5105650755,31.01.2014,Fire Technical Support,Courier Costs,12.00,ALLBATTERIES UK LTD
Revenue,Childrens Services,5105647885,27.01.2014,Special Educational Needs Transport,Taxis - Contract Hire,370.10,ALPHA (IOW) LTD
Revenue,Childrens Services,5105647885,27.01.2014,Special Educational Needs Transport,Taxis - Contract Hire,359.80,ALPHA (IOW) LTD
Revenue,Childrens Services,5105647885,27.01.2014,Special Educational Needs Transport,Taxis - Contract Hire,84.40,ALPHA (IOW) LTD
Revenue,Childrens Services,5105647885,27.01.2014,Special Educational Needs Transport,Taxis - Contract Hire,300.00,ALPHA (IOW) LTD
Revenue,Childrens Services,5105647885,27.01.2014,Special Educational Needs Transport,Taxis - Contract Hire,185.05,ALPHA (IOW) LTD
Revenue,Childrens Services,5105647885,27.01.2014,Special Educational Needs Transport,Taxis - Contract Hire,263.70,ALPHA (IOW) LTD
Revenue,Childrens Services,5105647885,27.01.2014,Special Educational Needs Transport,Taxis - Contract Hire,400.00,ALPHA (IOW) LTD
Revenue,Childrens Services,5105647885,27.01.2014,Special Educational Needs Transport,Taxis - Contract Hire,308.40,ALPHA (IOW) LTD
Revenue,Childrens Services,5105647885,27.01.2014,Special Educational Needs Transport,Taxis - Contract Hire,390.65,ALPHA (IOW) LTD
Revenue,Childrens Services,5105647885,27.01.2014,Special Educational Needs Transport,Taxis - Contract Hire,123.35,ALPHA (IOW) LTD
Revenue,Childrens Services,5105650758,31.01.2014,Special Educational Needs Transport,Taxis - Contract Hire,316.40,ALPHA (IOW) LTD
Revenue,Childrens Services,5105650758,31.01.2014,Special Educational Needs Transport,Taxis - Contract Hire,84.40,ALPHA (IOW) LTD
Revenue,Childrens Services,5105649252,27.01.2014,Special Educational Needs Transport,Taxis - Contract Hire,316.40,ALPHA (IOW) LTD
Revenue,Childrens Services,5105650758,31.01.2014,Special Educational Needs Transport,Taxis - Contract Hire,300.00,ALPHA (IOW) LTD
Revenue,Childrens Services,5105650758,31.01.2014,Special Educational Needs Transport,Taxis - Contract Hire,185.05,ALPHA (IOW) LTD
Revenue,Childrens Services,5105650758,31.01.2014,Special Educational Needs Transport,Taxis - Contract Hire,263.70,ALPHA (IOW) LTD
Revenue,Childrens Services,5105650758,31.01.2014,Special Educational Needs Transport,Taxis - Contract Hire,450.00,ALPHA (IOW) LTD
Revenue,Childrens Services,5105650758,31.01.2014,Special Educational Needs Transport,Taxis - Contract Hire,308.40,ALPHA (IOW) LTD
Revenue,Childrens Services,5105650758,31.01.2014,Special Educational Needs Transport,Taxis - Contract Hire,390.65,ALPHA (IOW) LTD
Revenue,Childrens Services,5105650758,31.01.2014,Special Educational Needs Transport,Taxis - Contract Hire,123.35,ALPHA (IOW) LTD
Revenue,Childrens Services,5105650758,31.01.2014,Special Educational Needs Transport,Taxis - Contract Hire,350.00,ALPHA (IOW) LTD
Revenue,Childrens Services,5105650758,31.01.2014,Special Educational Needs Transport,Taxis - Contract Hire,300.00,ALPHA (IOW) LTD
Revenue,Childrens Services,5105650758,31.01.2014,Special Educational Needs Transport,Taxis - Contract Hire,370.10,ALPHA (IOW) LTD
Revenue,Childrens Services,5105650758,31.01.2014,Special Educational Needs Transport,Taxis - Contract Hire,359.80,ALPHA (IOW) LTD
Revenue,Childrens Services,5105649252,27.01.2014,Special Educational Needs Transport,Taxis - Contract Hire,263.70,ALPHA (IOW) LTD
Revenue,Childrens Services,5105649252,27.01.2014,Special Educational Needs Transport,Taxis - Contract Hire,450.00,ALPHA (IOW) LTD
Revenue,Childrens Services,5105649252,27.01.2014,Special Educational Needs Transport,Taxis - Contract Hire,308.40,ALPHA (IOW) LTD
Revenue,Childrens Services,5105649252,27.01.2014,Special Educational Needs Transport,Taxis - Contract Hire,390.65,ALPHA (IOW) LTD
Revenue,Childrens Services,5105649252,27.01.2014,Special Educational Needs Transport,Taxis - Contract Hire,123.35,ALPHA (IOW) LTD
Revenue,Childrens Services,5105649252,27.01.2014,Special Educational Needs Transport,Taxis - Contract Hire,210.00,ALPHA (IOW) LTD
Revenue,Childrens Services,5105649253,27.01.2014,Special Educational Needs Transport,Taxis - Contract Hire,140.00,ALPHA (IOW) LTD
Revenue,Childrens Services,5105649252,27.01.2014,Special Educational Needs Transport,Taxis - Contract Hire,300.00,ALPHA (IOW) LTD
Revenue,Childrens Services,5105649252,27.01.2014,Special Educational Needs Transport,Taxis - Contract Hire,370.10,ALPHA (IOW) LTD
Revenue,Childrens Services,5105649252,27.01.2014,Special Educational Needs Transport,Taxis - Contract Hire,359.80,ALPHA (IOW) LTD
Revenue,Childrens Services,5105649252,27.01.2014,Special Educational Needs Transport,Taxis - Contract Hire,84.40,ALPHA (IOW) LTD
Revenue,Childrens Services,5105647885,27.01.2014,Special Educational Needs Transport,Taxis - Contract Hire,316.40,ALPHA (IOW) LTD
Revenue,Childrens Services,5105649252,27.01.2014,Special Educational Needs Transport,Taxis - Contract Hire,300.00,ALPHA (IOW) LTD
Revenue,Childrens Services,5105649252,27.01.2014,Special Educational Needs Transport,Taxis - Contract Hire,185.05,ALPHA (IOW) LTD
Revenue,Childrens Services,5105647885,27.01.2014,Special Educational Needs Transport,Taxis - Contract Hire,280.00,ALPHA (IOW) LTD
Revenue,Childrens Services,5105647885,27.01.2014,Special Educational Needs Transport,Taxis - Contract Hire,300.00,ALPHA (IOW) LTD
Revenue,Childrens Services,5105646124,10.01.2014,Special Educational Needs Transport,Taxis - Contract Hire,316.40,ALPHA (IOW) LTD
Revenue,Childrens Services,5105646124,10.01.2014,Special Educational Needs Transport,Taxis - Contract Hire,237.33,ALPHA (IOW) LTD
Revenue,Childrens Services,5105646124,10.01.2014,Special Educational Needs Transport,Taxis - Contract Hire,360.00,ALPHA (IOW) LTD
Revenue,Childrens Services,5105646124,10.01.2014,Special Educational Needs Transport,Taxis - Contract Hire,308.40,ALPHA (IOW) LTD
Revenue,Childrens Services,5105646124,10.01.2014,Special Educational Needs Transport,Taxis - Contract Hire,390.65,ALPHA (IOW) LTD
Revenue,Childrens Services,5105646124,10.01.2014,Special Educational Needs Transport,Taxis - Contract Hire,123.35,ALPHA (IOW) LTD
Revenue,Childrens Services,5105646124,10.01.2014,Special Educational Needs Transport,Taxis - Contract Hire,240.00,ALPHA (IOW) LTD
Revenue,Childrens Services,5105646124,10.01.2014,Special Educational Needs Transport,Taxis - Contract Hire,148.04,ALPHA (IOW) LTD
Revenue,Childrens Services,5105646124,10.01.2014,Special Educational Needs Transport,Taxis - Contract Hire,370.10,ALPHA (IOW) LTD
Revenue,Childrens Services,5105646124,10.01.2014,Special Educational Needs Transport,Taxis - Contract Hire,240.00,ALPHA (IOW) LTD
Revenue,Childrens Services,5105646124,10.01.2014,Special Educational Needs Transport,Taxis - Contract Hire,210.00,ALPHA (IOW) LTD
Revenue,Childrens Services,5105646124,10.01.2014,Special Educational Needs Transport,Taxis - Contract Hire,67.52,ALPHA (IOW) LTD
Revenue,Childrens Services,5105646124,10.01.2014,Special Educational Needs Transport,Taxis - Contract Hire,359.80,ALPHA (IOW) LTD
Revenue,Economy & Environment,5105649291,27.01.2014,Youth Council,Public Transport Fares,18.75,ALPHA (IOW) LTD
Revenue,Childrens Services,5105647885,27.01.2014,Home to School Transport,Taxis - Contract Hire,250.00,ALPHA (IOW) LTD
Revenue,Childrens Services,5105647885,27.01.2014,Home to School Transport,Taxis - Contract Hire,11.31,ALPHA (IOW) LTD
Revenue,Childrens Services,5105647885,27.01.2014,Home to School Transport,Taxis - Contract Hire,158.20,ALPHA (IOW) LTD
Revenue,Childrens Services,5105649252,27.01.2014,Home to School Transport,Taxis - Contract Hire,421.50,ALPHA (IOW) LTD
Revenue,Childrens Services,5105649252,27.01.2014,Home to School Transport,Taxis - Contract Hire,310.00,ALPHA (IOW) LTD
Revenue,Childrens Services,5105647885,27.01.2014,Home to School Transport,Taxis - Contract Hire,392.95,ALPHA (IOW) LTD
Revenue,Childrens Services,5105647885,27.01.2014,Home to School Transport,Taxis - Contract Hire,390.65,ALPHA (IOW) LTD
Revenue,Childrens Services,5105649252,27.01.2014,Home to School Transport,Taxis - Contract Hire,250.00,ALPHA (IOW) LTD
Revenue,Childrens Services,5105649252,27.01.2014,Home to School Transport,Taxis - Contract Hire,11.31,ALPHA (IOW) LTD
Revenue,Childrens Services,5105649252,27.01.2014,Home to School Transport,Taxis - Contract Hire,158.20,ALPHA (IOW) LTD
Revenue,Childrens Services,5105649252,27.01.2014,Home to School Transport,Taxis - Contract Hire,128.50,ALPHA (IOW) LTD
Revenue,Childrens Services,5105650758,31.01.2014,Home to School Transport,Taxis - Contract Hire,11.31,ALPHA (IOW) LTD
Revenue,Childrens Services,5105650758,31.01.2014,Home to School Transport,Taxis - Contract Hire,158.20,ALPHA (IOW) LTD
Revenue,Childrens Services,5105650758,31.01.2014,Home to School Transport,Taxis - Contract Hire,128.50,ALPHA (IOW) LTD
Revenue,Childrens Services,5105650758,31.01.2014,Home to School Transport,Taxis - Contract Hire,421.50,ALPHA (IOW) LTD
Revenue,Childrens Services,5105650758,31.01.2014,Home to School Transport,Taxis - Contract Hire,310.00,ALPHA (IOW) LTD
Revenue,Childrens Services,5105649252,27.01.2014,Home to School Transport,Taxis - Contract Hire,408.95,ALPHA (IOW) LTD
Revenue,Childrens Services,5105649252,27.01.2014,Home to School Transport,Taxis - Contract Hire,390.65,ALPHA (IOW) LTD
Revenue,Childrens Services,5105650758,31.01.2014,Home to School Transport,Taxis - Contract Hire,250.00,ALPHA (IOW) LTD
Revenue,Childrens Services,5105650758,31.01.2014,Home to School Transport,Taxis - Contract Hire,408.95,ALPHA (IOW) LTD
Revenue,Childrens Services,5105650758,31.01.2014,Home to School Transport,Taxis - Contract Hire,390.65,ALPHA (IOW) LTD
Revenue,Childrens Services,5105646124,10.01.2014,Home to School Transport,Taxis - Contract Hire,200.00,ALPHA (IOW) LTD
Revenue,Childrens Services,5105646124,10.01.2014,Home to School Transport,Taxis - Contract Hire,421.50,ALPHA (IOW) LTD
Revenue,Childrens Services,5105646124,10.01.2014,Home to School Transport,Taxis - Contract Hire,310.00,ALPHA (IOW) LTD
Revenue,Childrens Services,5105646124,10.01.2014,Home to School Transport,Taxis - Contract Hire,102.80,ALPHA (IOW) LTD
Revenue,Childrens Services,5105646124,10.01.2014,Home to School Transport,Taxis - Contract Hire,11.31,ALPHA (IOW) LTD
Revenue,Childrens Services,5105646124,10.01.2014,Home to School Transport,Taxis - Contract Hire,158.20,ALPHA (IOW) LTD
Revenue,Childrens Services,5105646124,10.01.2014,Home to School Transport,Taxis - Contract Hire,328.95,ALPHA (IOW) LTD
Revenue,Childrens Services,5105646124,10.01.2014,Home to School Transport,Taxis - Contract Hire,390.65,ALPHA (IOW) LTD
Revenue,Childrens Services,5105647885,27.01.2014,Home to School Transport,Taxis - Contract Hire,128.50,ALPHA (IOW) LTD
Revenue,Childrens Services,5105647885,27.01.2014,Home to School Transport,Taxis - Contract Hire,421.50,ALPHA (IOW) LTD
Revenue,Childrens Services,5105647885,27.01.2014,Home to School Transport,Taxis - Contract Hire,310.00,ALPHA (IOW) LTD
Revenue,Childrens Services,5105648508,27.01.2014,S17 Disabled Children,Transport of Clients,96.00,ALPHA (IOW) LTD
Revenue,Childrens Services,5105648247,27.01.2014,S17 Disabled Children,Transport of Clients,48.00,ALPHA (IOW) LTD
Revenue,Childrens Services,5105648558,27.01.2014,Commissioning Manager for 14-19,Office Equipment,69.65,ALPHA (IOW) LTD
Revenue,Community Wellbeing & Social Care,5105649364,29.01.2014,Learning Disability Residential Care,Charges from Independent Providers,"3,409.00",ALPHAGRANGE LTD
Revenue,Community Wellbeing & Social Care,5105647984,20.01.2014,Archaeological Reburial,Heritage Acquisitions,187.14,ALS ENVIRONMENTAL LTD
Revenue,Childrens Services,5105647049,22.01.2014,LSCB (Local Safeguarding Childrens Board),Travel Expenses,167.40,AMANDA GETHIN CONSULTANCY
Revenue,Childrens Services,5105647049,22.01.2014,LSCB (Local Safeguarding Childrens Board),Consultants Fees,"3,600.00",AMANDA GETHIN CONSULTANCY
Revenue,Childrens Services,5105648061,20.01.2014,Safeguarding Support,Travel Expenses,195.30,AMANDA GETHIN CONSULTANCY
Revenue,Childrens Services,5105648061,20.01.2014,Safeguarding Support,Consultants Fees,"6,525.00",AMANDA GETHIN CONSULTANCY
Revenue,Childrens Services,5105646410,15.01.2014,Home to School Transport,Taxis - Contract Hire,440.00,AMAR CABS OF NEWPORT
Revenue,Childrens Services,5105646608,15.01.2014,Thompson House Tuition Centre (PRU),Taxis - Contract Hire,244.60,AMAR EXCLUSIVES
Revenue,Community Wellbeing & Social Care,5105649366,29.01.2014,Elderly Mentally Ill Residential Care,Charges from Independent Providers,"1,699.88",ANCONA CARE HOME
Revenue,Community Wellbeing & Social Care,5105649366,29.01.2014,Elderly Frail Residential Care,Charges from Independent Providers,"1,699.88",ANCONA CARE HOME
Revenue,Community Wellbeing & Social Care,5105649366,29.01.2014,Elderly Frail Residential Care,Charges from Independent Providers,"1,998.08",ANCONA CARE HOME
Revenue,Community Wellbeing & Social Care,5105649366,29.01.2014,REDACTED PERSONAL DATA,Order Settlement,"1,998.08",ANCONA CARE HOME
Revenue,Community Wellbeing & Social Care,5105649315,29.01.2014,REDACTED PERSONAL DATA,Order Settlement,"1,699.88",ANCONA CARE HOME
Revenue,Economy & Environment,5105647880,27.01.2014,Fire Technical Support,Vehicle Maintenance Costs,134.40,ANGLOCO LTD
Revenue,Economy & Environment,5105647880,27.01.2014,Fire Technical Support,Vehicle Maintenance Costs,15.00,ANGLOCO LTD
Revenue,Economy & Environment,5105647638,17.01.2014,Print Unit,Printing Costs,57.20,ANTALIS MCNAUGHTON
Revenue,Economy & Environment,5105648457,22.01.2014,Print Unit,Printing Costs,116.50,ANTALIS MCNAUGHTON
Revenue,Economy & Environment,5105648561,24.01.2014,Print Unit,Printing Costs,116.40,ANTALIS MCNAUGHTON
Revenue,Economy & Environment,5105647637,17.01.2014,Print Unit,Printing Costs,85.95,ANTALIS MCNAUGHTON
Revenue,Economy & Environment,5105645661,08.01.2014,Print Unit,Printing Costs,229.31,ANTALIS MCNAUGHTON
Revenue,Economy & Environment,5105650498,29.01.2014,Print Unit,Printing Costs,28.12,ANTALIS MCNAUGHTON
Revenue,Economy & Environment,5105650498,29.01.2014,Print Unit,Printing Costs,116.50,ANTALIS MCNAUGHTON
Revenue,Economy & Environment,5105650498,29.01.2014,Print Unit,Printing Costs,14.06,ANTALIS MCNAUGHTON
Revenue,Economy & Environment,5105645660,08.01.2014,Print Unit,Printing Costs,28.12,ANTALIS MCNAUGHTON
Revenue,Economy & Environment,5105645660,08.01.2014,Print Unit,Printing Costs,116.50,ANTALIS MCNAUGHTON
Revenue,Economy & Environment,5105648063,22.01.2014,Licensing Services,Veterinary Fees,646.24,ANTON VETS
Revenue,Childrens Services,5105650362,29.01.2014,Court Work & Consultancy Services,Legal Fees - Other Parties,136.50,APPLE TRANSCRIPTION LIMITED
Revenue,Childrens Services,5105645651,08.01.2014,Court Work & Consultancy Services,Legal Fees - Other Parties,54.99,APPLE TRANSCRIPTION LIMITED
Revenue,Childrens Services,5105648031,20.01.2014,Court Work & Consultancy Services,Legal Fees - Other Parties,321.75,APPLE TRANSCRIPTION LIMITED
Revenue,Childrens Services,5105650384,29.01.2014,Clatterford Pupil Referral Unit (PRU),Hire of General Equipment,64.71,AQUALICITY LTD
Revenue,Resources,5105647188,17.01.2014,ICT Contracts,Computer Maintenance,"3,600.00",AQUIRE SOLUTIONS INC
Revenue,Economy & Environment,5105648503,27.01.2014,Development Control,Clothing & Laundry,19.99,ARCO LTD
Revenue,Economy & Environment,5105647190,17.01.2014,Medina Leisure Centre,Clothing & Laundry,33.16,ARCO LTD
Revenue,Economy & Environment,5105647191,17.01.2014,Medina Leisure Centre,Clothing & Laundry,16.58,ARCO LTD
Revenue,Economy & Environment,5105647193,17.01.2014,Medina Leisure Centre,Clothing & Laundry,20.55,ARCO LTD
Revenue,Economy & Environment,5105646633,15.01.2014,Medina Leisure Centre,Clothing & Laundry,154.81,ARCO LTD
Revenue,Economy & Environment,5105647199,17.01.2014,Medina Leisure Centre,Consumable Cleaning Materials,8.82,ARCO LTD
Revenue,Economy & Environment,5105647199,17.01.2014,Medina Leisure Centre,Consumable Cleaning Materials,2.77,ARCO LTD
Revenue,Economy & Environment,5105647194,17.01.2014,Leisure Management & Admin,Clothing & Laundry,70.25,ARCO LTD
Revenue,Economy & Environment,5105650928,31.01.2014,Fire Technical Support,Stock Purchases,312.05,ARCO LTD
Revenue,Economy & Environment,5105648500,24.01.2014,Fire Technical Support,Stock Purchases,19.66,ARCO LTD
Revenue,Economy & Environment,5105648500,24.01.2014,Fire Technical Support,Stock Purchases,17.32,ARCO LTD
Revenue,Economy & Environment,5105648500,24.01.2014,Fire Technical Support,Stock Purchases,54.67,ARCO LTD
Revenue,Childrens Services,5105649068,24.01.2014,Clatterford Pupil Referral Unit (PRU),General Educational Materials,5.24,ARCO LTD
Revenue,Childrens Services,5105649078,24.01.2014,Clatterford Pupil Referral Unit (PRU),General Educational Materials,52.92,ARCO LTD
Revenue,Economy & Environment,5105640048,02.01.2014,Newport Harbour Account,Operational Equipment,55.48,ARCO LTD
Revenue,Economy & Environment,5105640048,02.01.2014,Newport Harbour Account,Clothing & Laundry,41.24,ARCO LTD
Revenue,Economy & Environment,5105640048,02.01.2014,Newport Harbour Account,Clothing & Laundry,42.07,ARCO LTD
Revenue,Economy & Environment,5105646632,15.01.2014,The Heights,Clothing & Laundry,3.60,ARCO LTD
Revenue,Economy & Environment,5105646632,15.01.2014,The Heights,Clothing & Laundry,7.86,ARCO LTD
Revenue,Economy & Environment,5105647196,17.01.2014,The Heights,Clothing & Laundry,3.60,ARCO LTD
Revenue,Economy & Environment,5105647189,17.01.2014,The Heights,Clothing & Laundry,40.64,ARCO LTD
Revenue,Economy & Environment,5105647189,17.01.2014,The Heights,Clothing & Laundry,14.40,ARCO LTD
Revenue,Economy & Environment,5105647196,17.01.2014,The Heights,Clothing & Laundry,20.00,ARCO LTD
Revenue,Economy & Environment,5105649077,24.01.2014,The Heights,Clothing & Laundry,7.20,ARCO LTD
Revenue,Economy & Environment,5105649077,24.01.2014,The Heights,Clothing & Laundry,74.12,ARCO LTD
Revenue,Economy & Environment,5105645653,08.01.2014,The Heights,Clothing & Laundry,5.40,ARCO LTD
Revenue,Economy & Environment,5105645653,08.01.2014,The Heights,Clothing & Laundry,30.00,ARCO LTD
Revenue,Economy & Environment,5105650504,29.01.2014,Road Safety,General Educational Materials,12.49,ARGOS BUSINESS SOLUTIONS LTD
Revenue,Economy & Environment,5105650505,29.01.2014,Road Safety,General Educational Materials,8.32,ARGOS BUSINESS SOLUTIONS LTD
Revenue,Economy & Environment,5105650506,29.01.2014,Road Safety,General Educational Materials,208.32,ARGOS BUSINESS SOLUTIONS LTD
Revenue,Community Wellbeing & Social Care,5105646054,10.01.2014,Gouldings Resource Centre,Maintenance of Operational Equipment,230.80,ARJO MED AB LTD
Revenue,Community Wellbeing & Social Care,5105648513,24.01.2014,Integrated Community Equipment Service,Maintenance of Operational Equipment,199.80,ARJO MED AB LTD
Revenue,Community Wellbeing & Social Care,5105648513,24.01.2014,Integrated Community Equipment Service,Maintenance of Operational Equipment,99.00,ARJO MED AB LTD
Revenue,Community Wellbeing & Social Care,5105648513,24.01.2014,Integrated Community Equipment Service,Maintenance of Operational Equipment,259.80,ARJO MED AB LTD
Revenue,Community Wellbeing & Social Care,5105648513,24.01.2014,Integrated Community Equipment Service,Maintenance of Operational Equipment,849.00,ARJO MED AB LTD
Revenue,Community Wellbeing & Social Care,5105648513,24.01.2014,Integrated Community Equipment Service,Maintenance of Operational Equipment,349.80,ARJO MED AB LTD
Revenue,Community Wellbeing & Social Care,5105649275,29.01.2014,Integrated Community Equipment Service,Maintenance of Operational Equipment,849.00,ARJO MED AB LTD
Revenue,Community Wellbeing & Social Care,5105646064,10.01.2014,Saxonbury,Minor Works,66.00,ARJO MED AB LTD
Revenue,Community Wellbeing & Social Care,5105648223,22.01.2014,Saxonbury,Maintenance of Operational Equipment,120.20,ARJO MED AB LTD
Revenue,Community Wellbeing & Social Care,5105649045,29.01.2014,Plean Dene,Maintenance of Operational Equipment,102.87,ARJO MED AB LTD
Revenue,Community Wellbeing & Social Care,5105638620,20.01.2014,Plean Dene,Maintenance of Operational Equipment,80.00,ARJO MED AB LTD
Revenue,Community Wellbeing & Social Care,5105646056,24.01.2014,Plean Dene,Maintenance of Operational Equipment,100.48,ARJO MED AB LTD
Revenue,Community Wellbeing & Social Care,5105646080,17.01.2014,The Laurels,Maintenance of Operational Equipment,66.00,ARJO MED AB LTD
Revenue,Economy & Environment,5105648981,24.01.2014,Rights of Way Strategy,Advertising & Publicity,20.00,ARRETON COMMUNITY HALL FUND
Revenue,Economy & Environment,5105650377,29.01.2014,Medina Leisure Centre,Property Services - Planned Maintenance,752.60,ASSA ABLOY ENTRANCE SYSTEMS LTD
Revenue,Economy & Environment,5105650391,29.01.2014,Medina Theatre,Property Services - Planned Maintenance,403.86,ASSA ABLOY ENTRANCE SYSTEMS LTD
Revenue,Resources,5105649264,29.01.2014,Administrative Buildings,Security of Buildings,134.25,ASSA ABLOY ENTRANCE SYSTEMS LTD
Revenue,Resources,5105646634,15.01.2014,Electoral Registration Office,Training,236.00,ASSOCIATION OF ELECTORAL ADMINISTRATORS
Revenue,Economy & Environment,5105647227,17.01.2014,Deputy Chief Fire Office,Conference Expenses,416.68,ATOS WORLDLINE
Revenue,Economy & Environment,5105646585,15.01.2014,Fire Technical Support,Vehicle Maintenance Costs,1.86,ATS EUROMASTER LTD
Revenue,Economy & Environment,5105646585,15.01.2014,Fire Technical Support,Vehicle Maintenance Costs,113.17,ATS EUROMASTER LTD
Revenue,Economy & Environment,5105646585,15.01.2014,Fire Technical Support,Vehicle Maintenance Costs,4.35,ATS EUROMASTER LTD
Revenue,Economy & Environment,5105646585,15.01.2014,Fire Technical Support,Vehicle Maintenance Costs,1.16,ATS EUROMASTER LTD
Revenue,Economy & Environment,5105646585,15.01.2014,Fire Technical Support,Vehicle Maintenance Costs,1.86,ATS EUROMASTER LTD
Revenue,Economy & Environment,5105646585,15.01.2014,Fire Technical Support,Vehicle Maintenance Costs,113.17,ATS EUROMASTER LTD
Revenue,Economy & Environment,5105646585,15.01.2014,Fire Technical Support,Vehicle Maintenance Costs,4.35,ATS EUROMASTER LTD
Revenue,Economy & Environment,5105646585,15.01.2014,Fire Technical Support,Vehicle Maintenance Costs,1.16,ATS EUROMASTER LTD
Revenue,Childrens Services,5105646082,10.01.2014,Independ. & Non-Maint. Special Schls & Independ. Specialist Provision,Charges from Independent Providers,"35,396.60",AUTISM WESSEX
Revenue,Childrens Services,5105646060,10.01.2014,Purchased Residential,Charges from Independent Providers,"49,954.25",AUTISM WESSEX
Revenue,Community Wellbeing & Social Care,5105649335,29.01.2014,Dementia Residential care,Charges from Independent Providers,"1,998.08",AUTUMN HOUSE CARE LTD
Revenue,Community Wellbeing & Social Care,5105649335,29.01.2014,Dementia Residential care,Charges from Independent Providers,"1,998.08",AUTUMN HOUSE CARE LTD
Revenue,Community Wellbeing & Social Care,5105650556,29.01.2014,Elderly Mentally Ill Residential Care,Charges from Independent Providers,"1,998.08",AUTUMN HOUSE CARE LTD
Revenue,Community Wellbeing & Social Care,5105645016,03.01.2014,Elderly Mentally Ill Residential Care,Charges from Independent Providers,"1,284.48",AUTUMN HOUSE CARE LTD
Revenue,Community Wellbeing & Social Care,5105645016,03.01.2014,Elderly Mentally Ill Residential Care,Charges from Independent Providers,"1,998.08",AUTUMN HOUSE CARE LTD
Revenue,Community Wellbeing & Social Care,5105645016,03.01.2014,Elderly Mentally Ill Residential Care,Charges from Independent Providers,999.04,AUTUMN HOUSE CARE LTD
Revenue,Community Wellbeing & Social Care,5105645016,03.01.2014,Elderly Mentally Ill Residential Care,Charges from Independent Providers,"3,996.16",AUTUMN HOUSE CARE LTD
Revenue,Community Wellbeing & Social Care,5105649335,29.01.2014,Elderly Mentally Ill Residential Care,Regular Respite Care,"1,699.88",AUTUMN HOUSE CARE LTD
Revenue,Community Wellbeing & Social Care,5105645600,08.01.2014,Elderly Mentally Ill Residential Care,Regular Respite Care,"2,428.40",AUTUMN HOUSE CARE LTD
Revenue,Community Wellbeing & Social Care,5105649335,29.01.2014,Physical Disability Residential Care,Charges from Independent Providers,"1,998.08",AUTUMN HOUSE CARE LTD
Revenue,Community Wellbeing & Social Care,5105649335,29.01.2014,Elderly Mentally Ill Residential Care,Charges from Independent Providers,"1,998.08",AUTUMN HOUSE CARE LTD
Revenue,Community Wellbeing & Social Care,5105649335,29.01.2014,Elderly Mentally Ill Residential Care,Charges from Independent Providers,"1,699.88",AUTUMN HOUSE CARE LTD
Revenue,Community Wellbeing & Social Care,5105649335,29.01.2014,Elderly Mentally Ill Residential Care,Charges from Independent Providers,"1,998.08",AUTUMN HOUSE CARE LTD
Revenue,Community Wellbeing & Social Care,5105649335,29.01.2014,Elderly Mentally Ill Residential Care,Charges from Independent Providers,"1,998.08",AUTUMN HOUSE CARE LTD
Revenue,Community Wellbeing & Social Care,5105649335,29.01.2014,Elderly Mentally Ill Residential Care,Charges from Independent Providers,"1,998.08",AUTUMN HOUSE CARE LTD
Revenue,Community Wellbeing & Social Care,5105649335,29.01.2014,Elderly Mentally Ill Residential Care,Charges from Independent Providers,"1,998.08",AUTUMN HOUSE CARE LTD
Revenue,Community Wellbeing & Social Care,5105649335,29.01.2014,Elderly Mentally Ill Residential Care,Charges from Independent Providers,"1,998.08",AUTUMN HOUSE CARE LTD
Revenue,Community Wellbeing & Social Care,5105649335,29.01.2014,Elderly Mentally Ill Residential Care,Charges from Independent Providers,"1,998.08",AUTUMN HOUSE CARE LTD
Revenue,Community Wellbeing & Social Care,5105649335,29.01.2014,Elderly Mentally Ill Residential Care,Charges from Independent Providers,"1,998.08",AUTUMN HOUSE CARE LTD
Revenue,Community Wellbeing & Social Care,5105649335,29.01.2014,Elderly Mentally Ill Residential Care,Charges from Independent Providers,"1,998.08",AUTUMN HOUSE CARE LTD
Revenue,Community Wellbeing & Social Care,5105649335,29.01.2014,Elderly Mentally Ill Residential Care,Charges from Independent Providers,"1,998.08",AUTUMN HOUSE CARE LTD
Revenue,Community Wellbeing & Social Care,5105649335,29.01.2014,Elderly Mentally Ill Residential Care,Charges from Independent Providers,"1,998.08",AUTUMN HOUSE CARE LTD
Revenue,Community Wellbeing & Social Care,5105649335,29.01.2014,Elderly Mentally Ill Residential Care,Charges from Independent Providers,"1,699.88",AUTUMN HOUSE CARE LTD
Revenue,Community Wellbeing & Social Care,5105649335,29.01.2014,Elderly Mentally Ill Residential Care,Charges from Independent Providers,"1,699.88",AUTUMN HOUSE CARE LTD
Revenue,Community Wellbeing & Social Care,5105649335,29.01.2014,Elderly Mentally Ill Residential Care,Charges from Independent Providers,"1,998.08",AUTUMN HOUSE CARE LTD
Revenue,Community Wellbeing & Social Care,5105648091,22.01.2014,Elderly Mentally Ill Residential Care,Charges from Independent Providers,"1,213.12",AUTUMN HOUSE CARE LTD
Revenue,Community Wellbeing & Social Care,5105648637,24.01.2014,Elderly Mentally Ill Residential Care,Charges from Independent Providers,"3,996.16",AUTUMN HOUSE CARE LTD
Revenue,Community Wellbeing & Social Care,5105649335,29.01.2014,Elderly Mentally Ill Residential Care,Charges from Independent Providers,"1,998.08",AUTUMN HOUSE CARE LTD
Revenue,Community Wellbeing & Social Care,5105649335,29.01.2014,Elderly Frail Residential Care,Charges from Independent Providers,"1,998.08",AUTUMN HOUSE CARE LTD
Revenue,Community Wellbeing & Social Care,5105649335,29.01.2014,REDACTED PERSONAL DATA,Order Settlement,"1,998.08",AUTUMN HOUSE CARE LTD
Revenue,Community Wellbeing & Social Care,5105649335,29.01.2014,REDACTED PERSONAL DATA,Order Settlement,"1,998.08",AUTUMN HOUSE CARE LTD
Capital,Childrens Services,5105649026,24.01.2014,Leisure Facility Improvement,"Plant, Equipment & Furniture - Capital",425.00,AVO SYSTEMS LTD
Revenue,Childrens Services,5105650761,31.01.2014,Reviewing Officer,Agency staff,"1,489.80",AZ SOCIAL CARE SOLUTIONS LTD
Revenue,Childrens Services,5105650438,29.01.2014,Reviewing Officer,Agency staff,"1,489.80",AZ SOCIAL CARE SOLUTIONS LTD
Revenue,Childrens Services,5105647895,29.01.2014,Reviewing Officer,Agency staff,"1,837.42",AZ SOCIAL CARE SOLUTIONS LTD
Revenue,Childrens Services,5105646407,15.01.2014,Reviewing Officer,Agency staff,744.90,AZ SOCIAL CARE SOLUTIONS LTD
Revenue,Childrens Services,5105646956,29.01.2014,Reviewing Officer,Agency staff,744.90,AZ SOCIAL CARE SOLUTIONS LTD
Revenue,Childrens Services,5105645037,03.01.2014,Leaving Care Costs,Support Children,120.89,REDACTED PERSONAL DATA
Revenue,Childrens Services,5105647298,17.01.2014,Leaving Care Costs,Support Children,120.89,REDACTED PERSONAL DATA
Revenue,Childrens Services,5105648678,24.01.2014,Leaving Care Costs,Support Children,120.89,REDACTED PERSONAL DATA
Revenue,Childrens Services,5105650598,31.01.2014,Leaving Care Costs,Support Children,120.89,REDACTED PERSONAL DATA
Revenue,Childrens Services,5105650598,31.01.2014,Leaving Care Costs,Accommodation Costs - Service Users,57.50,REDACTED PERSONAL DATA
Revenue,Childrens Services,5105647298,17.01.2014,Leaving Care Costs,Accommodation Costs - Service Users,57.50,REDACTED PERSONAL DATA
Revenue,Childrens Services,5105648678,24.01.2014,Leaving Care Costs,Accommodation Costs - Service Users,57.50,REDACTED PERSONAL DATA
Revenue,Childrens Services,5105645037,03.01.2014,Leaving Care Costs,Accommodation Costs - Service Users,57.50,REDACTED PERSONAL DATA
Revenue,Childrens Services,5105645757,10.01.2014,Leaving Care Costs,Accommodation Costs - Service Users,57.50,REDACTED PERSONAL DATA
Revenue,Childrens Services,5105645757,10.01.2014,Leaving Care Costs,Support Children,120.89,REDACTED PERSONAL DATA
Revenue,Economy & Environment,5105646635,22.01.2014,Fort Victoria,General Materials,247.44,B & Q FINANCIAL SERVICES
Revenue,Community Wellbeing & Social Care,5105649350,29.01.2014,Learning Disability Residential Care,Charges from Independent Providers,"2,625.00",REDACTED PERSONAL DATA
Revenue,Community Wellbeing & Social Care,5105649350,29.01.2014,Learning Disability Residential Care,Charges from Independent Providers,"1,811.88",REDACTED PERSONAL DATA
Revenue,Community Wellbeing & Social Care,5105649350,29.01.2014,Learning Disability Residential Care,Charges from Independent Providers,"1,811.88",REDACTED PERSONAL DATA
Revenue,Community Wellbeing & Social Care,5105648362,22.01.2014,Leaseholds by LA,Accommodation Costs - Leaseholder Payments,815.49,REDACTED PERSONAL DATA
Revenue,Resources,5105649178,24.01.2014,Staff Benefits,Payment to Private Contractors,100.00,REDACTED PERSONAL DATA
Revenue,Resources,5105649177,24.01.2014,Staff Benefits,Payment to Private Contractors,243.00,REDACTED PERSONAL DATA
Revenue,Resources,5105649179,24.01.2014,Staff Benefits,Payment to Private Contractors,50.00,REDACTED PERSONAL DATA
Revenue,Community Wellbeing & Social Care,5105648369,22.01.2014,Leaseholds by LA,Accommodation Costs - Leaseholder Payments,799.50,REDACTED PERSONAL DATA
Revenue,Community Wellbeing & Social Care,5105648369,22.01.2014,Leaseholds by LA,Accommodation Costs - Leaseholder Payments,866.67,REDACTED PERSONAL DATA
Revenue,Community Wellbeing & Social Care,5105648369,22.01.2014,Leaseholds by LA,Accommodation Costs - Leaseholder Payments,866.67,REDACTED PERSONAL DATA
Revenue,Community Wellbeing & Social Care,5105648369,22.01.2014,Leaseholds by LA,Accommodation Costs - Leaseholder Payments,888.33,REDACTED PERSONAL DATA
Revenue,Community Wellbeing & Social Care,5105648369,22.01.2014,Leaseholds by LA,Accommodation Costs - Leaseholder Payments,799.50,REDACTED PERSONAL DATA
Revenue,Childrens Services,5105645522,08.01.2014,In-house Fostering,Professional Services,"1,111.62",BAAF REGISTERED CHARITY
Revenue,Resources,5105650952,31.01.2014,Administrative Buildings,Rent of Buildings and Rooms,"1,285.35",BAE SYSTEMS
Revenue,Childrens Services,5105651065,31.01.2014,Statutory Assessment and Review Team,Professional Subscriptions,"1,500.00",BAKER SMALL LEGAL SERVICES LTD
Revenue,Community Wellbeing & Social Care,5105646656,17.01.2014,Mental Health Day Services,Premises Insurance,89.00,BALENS LTD
Revenue,Economy & Environment,5105647825,22.01.2014,Fire Technical Support,Payment to Private Contractors,439.86,BALLYCLARE LTD
Revenue,Economy & Environment,5105647809,22.01.2014,Fire Technical Support,Payment to Private Contractors,"6,651.40",BALLYCLARE LTD
Revenue,Childrens Services,5105647154,15.01.2014,Family Support Work,Payment to Private Contractors,"41,779.25",BARNARDOS
Revenue,Economy & Environment,5105645647,10.01.2014,Trading Standards,Vehicle Hire External,25.00,BARTLETTS SERVICE STATION
Revenue,Economy & Environment,5105645351,08.01.2014,Fire Technical Support,Vehicle Maintenance Costs,"1,475.00",BARTLETTS SERVICE STATION
Revenue,Economy & Environment,5105648088,27.01.2014,Fire Technical Support,Vehicle Maintenance Costs,614.68,BARTLETTS SERVICE STATION
Revenue,Economy & Environment,5105645646,10.01.2014,Road Safety,Operational Equipment,170.00,BARTLETTS SERVICE STATION
Revenue,Resources,5105647048,15.01.2014,Corporate Stores,Vehicle Hire External,730.71,BARTLETTS SERVICE STATION
Revenue,Resources,5105645286,08.01.2014,Corporate Stores,Vehicle Hire External,707.14,BARTLETTS SERVICE STATION
Revenue,Resources,5105649108,24.01.2014,Staff Benefits,Payment to Private Contractors,50.00,BARTON PRIMARY & EARLY YEARS
Revenue,Resources,5105649110,24.01.2014,Staff Benefits,Payment to Private Contractors,60.00,BARTON PRIMARY & EARLY YEARS
Revenue,Resources,5105649109,24.01.2014,Staff Benefits,Payment to Private Contractors,11.67,BARTON PRIMARY & EARLY YEARS
Revenue,Community Wellbeing & Social Care,5105647871,27.01.2014,Downside Community & Learning Centre,Vehicle Maintenance Costs,52.49,BARTON PRIMARY & EARLY YEARS
Revenue,Economy & Environment,5105647593,17.01.2014,LSTF Grant,Computer Maintenance,250.00,BASEMAP LIMITED
Revenue,Economy & Environment,5105647149,20.01.2014,IOW Festival of Walking,Advertising & Publicity,540.00,BAUER CONSUMER MEDIA LTD
Revenue,Community Wellbeing & Social Care,5105649589,29.01.2014,Elderly Frail Nursing Mainland,Charges from Independent Providers,"2,269.40",BEAUMONT LODGE LTD
Revenue,Community Wellbeing & Social Care,5105650503,29.01.2014,NHS Health Check Programme,Payment to Private Contractors,797.00,BEECH GROVE SURGERY
Revenue,Community Wellbeing & Social Care,5105650503,29.01.2014,Stop Smoking Services & Interventions,Payment to Private Contractors,"1,600.00",BEECH GROVE SURGERY
Revenue,Community Wellbeing & Social Care,5105650503,29.01.2014,Contraception,Payment to Private Contractors,320.00,BEECH GROVE SURGERY
Revenue,Community Wellbeing & Social Care,5105650503,29.01.2014,STI Tests & Treatment,Payment to Private Contractors,65.00,BEECH GROVE SURGERY
Revenue,Economy & Environment,5105645011,08.01.2014,Environmental Health - Geographical Team,Clothing & Laundry,17.88,BERENDSEN
Revenue,Economy & Environment,5105646051,10.01.2014,Environmental Health - Geographical Team,Clothing & Laundry,21.20,BERENDSEN
Revenue,Community Wellbeing & Social Care,5105647934,22.01.2014,Community Laundry Service,Clothing & Laundry,13.74,BERENDSEN
Revenue,Community Wellbeing & Social Care,5105647639,17.01.2014,B&B Properties,Accommodation Costs - Bed & Breakfast,"3,542.00",BERTRAM LODGE
Revenue,Community Wellbeing & Social Care,5105650129,27.01.2014,Gouldings Resource Centre,Catering Purchases,77.96,BETA PAK LTD
Revenue,Community Wellbeing & Social Care,5105650415,29.01.2014,Westminster House,Consumable Cleaning Materials,2.38,BETA PAK LTD
Revenue,Community Wellbeing & Social Care,5105648194,27.01.2014,Westminster House,Consumable Cleaning Materials,38.91,BETA PAK LTD
Revenue,Community Wellbeing & Social Care,5105649066,27.01.2014,Westminster House,General Materials,38.38,BETA PAK LTD
Revenue,Community Wellbeing & Social Care,5105648837,27.01.2014,Westminster House,General Materials,109.46,BETA PAK LTD
Revenue,Community Wellbeing & Social Care,5105650809,31.01.2014,Westminster House,General Materials,68.76,BETA PAK LTD
Revenue,Community Wellbeing & Social Care,5105650127,27.01.2014,Westminster House,General Materials,67.13,BETA PAK LTD
Revenue,Community Wellbeing & Social Care,5105650190,29.01.2014,Westminster House,General Materials,11.99,BETA PAK LTD
Revenue,Community Wellbeing & Social Care,5105648233,27.01.2014,Gouldings Resource Centre,Consumable Cleaning Materials,"1,025.69",BETA PAK LTD
Revenue,Community Wellbeing & Social Care,5105648235,27.01.2014,Gouldings Resource Centre,Consumable Cleaning Materials,10.80,BETA PAK LTD
Revenue,Community Wellbeing & Social Care,5105648439,27.01.2014,Gouldings Resource Centre,Consumable Cleaning Materials,264.26,BETA PAK LTD
Revenue,Community Wellbeing & Social Care,5105645649,10.01.2014,Gouldings Resource Centre,Consumable Cleaning Materials,15.55,BETA PAK LTD
Revenue,Community Wellbeing & Social Care,5105651067,31.01.2014,Gouldings Resource Centre,Consumable Cleaning Materials,232.69,BETA PAK LTD
Revenue,Community Wellbeing & Social Care,5105651066,31.01.2014,Gouldings Resource Centre,Consumable Cleaning Materials,32.34,BETA PAK LTD
Revenue,Community Wellbeing & Social Care,5105645650,10.01.2014,Gouldings Resource Centre,Consumable Cleaning Materials,131.82,BETA PAK LTD
Revenue,Community Wellbeing & Social Care,5105643059,10.01.2014,Saxonbury,Operational Equipment,162.44,BETA PAK LTD
Revenue,Community Wellbeing & Social Care,5105645199,03.01.2014,Saxonbury,Operational Equipment,234.57,BETA PAK LTD
Revenue,Community Wellbeing & Social Care,5105645265,03.01.2014,Saxonbury,Operational Equipment,46.24,BETA PAK LTD
Revenue,Community Wellbeing & Social Care,5105645202,03.01.2014,Saxonbury,Operational Equipment,2.96,BETA PAK LTD
Revenue,Community Wellbeing & Social Care,5105645203,03.01.2014,Saxonbury,Operational Equipment,124.68,BETA PAK LTD
Revenue,Community Wellbeing & Social Care,5105647847,27.01.2014,Saxonbury,Operational Equipment,18.45,BETA PAK LTD
Revenue,Community Wellbeing & Social Care,5105648506,27.01.2014,Saxonbury,Operational Equipment,2.33,BETA PAK LTD
Revenue,Community Wellbeing & Social Care,5105648926,27.01.2014,Saxonbury,Operational Equipment,7.35,BETA PAK LTD
Revenue,Community Wellbeing & Social Care,5105647234,27.01.2014,Saxonbury,Operational Equipment,40.65,BETA PAK LTD
Revenue,Community Wellbeing & Social Care,5105650240,29.01.2014,Saxonbury,Operational Equipment,253.88,BETA PAK LTD
Revenue,Community Wellbeing & Social Care,5105651070,31.01.2014,Saxonbury,Operational Equipment,16.00,BETA PAK LTD
Revenue,Community Wellbeing & Social Care,5105642406,27.01.2014,Plean Dene,Operational Equipment,-70.60,BETA PAK LTD
Revenue,Community Wellbeing & Social Care,5105645544,08.01.2014,Plean Dene,Operational Equipment,219.58,BETA PAK LTD
Revenue,Community Wellbeing & Social Care,5105645544,08.01.2014,Plean Dene,Operational Equipment,83.19,BETA PAK LTD
Revenue,Community Wellbeing & Social Care,5105650431,29.01.2014,Plean Dene,Operational Equipment,6.21,BETA PAK LTD
Revenue,Community Wellbeing & Social Care,5105650432,29.01.2014,Plean Dene,Operational Equipment,27.29,BETA PAK LTD
Revenue,Community Wellbeing & Social Care,5105650430,29.01.2014,Plean Dene,Operational Equipment,83.19,BETA PAK LTD
Revenue,Community Wellbeing & Social Care,5105648192,27.01.2014,Plean Dene,Operational Equipment,62.72,BETA PAK LTD
Revenue,Community Wellbeing & Social Care,5105648861,27.01.2014,Plean Dene,Operational Equipment,125.67,BETA PAK LTD
Revenue,Community Wellbeing & Social Care,5105648514,27.01.2014,Plean Dene,Operational Equipment,16.80,BETA PAK LTD
Revenue,Childrens Services,5105649027,27.01.2014,Youth- Brading,Operational Equipment,120.00,BETA PAK LTD
Revenue,Community Wellbeing & Social Care,5105645361,08.01.2014,Homecare Reablement,Operational Equipment,11.49,BETA PAK LTD
Revenue,Community Wellbeing & Social Care,5105645423,08.01.2014,31 Carter Avenue,Operational Equipment,92.90,BETA PAK LTD
Revenue,Community Wellbeing & Social Care,5105648516,27.01.2014,Highmead,Operational Equipment,15.09,BETA PAK LTD
Revenue,Community Wellbeing & Social Care,5105645485,08.01.2014,Highmead,Operational Equipment,134.93,BETA PAK LTD
Revenue,Community Wellbeing & Social Care,5105647851,29.01.2014,40 Venner Avenue,Catering Purchases,10.00,BETA PAK LTD
Revenue,Community Wellbeing & Social Care,5105647848,29.01.2014,40 Venner Avenue,Catering Purchases,146.09,BETA PAK LTD
Revenue,Community Wellbeing & Social Care,5105645674,15.01.2014,Seagulls,Operational Equipment,80.59,BETA PAK LTD
Revenue,Community Wellbeing & Social Care,5105648191,27.01.2014,Seagulls,Operational Equipment,13.86,BETA PAK LTD
Revenue,Community Wellbeing & Social Care,5105649254,27.01.2014,Seagulls,Operational Equipment,49.80,BETA PAK LTD
Revenue,Community Wellbeing & Social Care,5105650964,31.01.2014,Seagulls,Operational Equipment,89.46,BETA PAK LTD
Revenue,Community Wellbeing & Social Care,5105645569,08.01.2014,Seagulls,Operational Equipment,134.11,BETA PAK LTD
Revenue,Community Wellbeing & Social Care,5105645364,08.01.2014,Adelaide Resource Centre,Fixtures and Fittings,6.05,BETA PAK LTD
Revenue,Community Wellbeing & Social Care,5105645358,08.01.2014,Adelaide Resource Centre,Fixtures and Fittings,11.00,BETA PAK LTD
Revenue,Community Wellbeing & Social Care,5105645359,08.01.2014,Adelaide Resource Centre,Fixtures and Fittings,-27.49,BETA PAK LTD
Revenue,Community Wellbeing & Social Care,5105650429,29.01.2014,Adelaide Resource Centre,Consumable Cleaning Materials,280.04,BETA PAK LTD
Revenue,Community Wellbeing & Social Care,5105645411,08.01.2014,Adelaide Resource Centre,Consumable Cleaning Materials,657.32,BETA PAK LTD
Revenue,Community Wellbeing & Social Care,5105650488,29.01.2014,Adelaide Resource Centre,Consumable Cleaning Materials,45.00,BETA PAK LTD
Revenue,Community Wellbeing & Social Care,5105650488,29.01.2014,Adelaide Resource Centre,Consumable Cleaning Materials,6.49,BETA PAK LTD
Revenue,Community Wellbeing & Social Care,5105648881,27.01.2014,Adelaide Resource Centre,Consumable Cleaning Materials,-566.66,BETA PAK LTD
Revenue,Community Wellbeing & Social Care,5105648880,27.01.2014,Adelaide Resource Centre,Consumable Cleaning Materials,566.66,BETA PAK LTD
Revenue,Community Wellbeing & Social Care,5105645648,10.01.2014,Downside Community & Learning Centre,Consumable Cleaning Materials,37.56,BETA PAK LTD
Revenue,Community Wellbeing & Social Care,5105645648,10.01.2014,Downside Community & Learning Centre,Consumable Cleaning Materials,39.90,BETA PAK LTD
Revenue,Community Wellbeing & Social Care,5105645681,24.01.2014,Downside Community & Learning Centre,Consumable Cleaning Materials,39.90,BETA PAK LTD
Revenue,Community Wellbeing & Social Care,5105647823,27.01.2014,Downside Community & Learning Centre,Consumable Cleaning Materials,6.28,BETA PAK LTD
Revenue,Community Wellbeing & Social Care,5105647823,27.01.2014,Downside Community & Learning Centre,Consumable Cleaning Materials,39.90,BETA PAK LTD
Revenue,Community Wellbeing & Social Care,5105647823,27.01.2014,Downside Community & Learning Centre,Consumable Cleaning Materials,8.16,BETA PAK LTD
Revenue,Community Wellbeing & Social Care,5105647823,27.01.2014,Downside Community & Learning Centre,Consumable Cleaning Materials,39.94,BETA PAK LTD
Revenue,Community Wellbeing & Social Care,5105650184,29.01.2014,Downside Community & Learning Centre,Consumable Cleaning Materials,13.18,BETA PAK LTD
Revenue,Community Wellbeing & Social Care,5105650184,29.01.2014,Downside Community & Learning Centre,Consumable Cleaning Materials,14.82,BETA PAK LTD
Revenue,Community Wellbeing & Social Care,5105650184,29.01.2014,Downside Community & Learning Centre,Consumable Cleaning Materials,25.04,BETA PAK LTD
Revenue,Community Wellbeing & Social Care,5105650184,29.01.2014,Downside Community & Learning Centre,Consumable Cleaning Materials,9.90,BETA PAK LTD
Revenue,Community Wellbeing & Social Care,5105650184,29.01.2014,Downside Community & Learning Centre,Consumable Cleaning Materials,4.08,BETA PAK LTD
Revenue,Community Wellbeing & Social Care,5105650184,29.01.2014,Downside Community & Learning Centre,Consumable Cleaning Materials,9.76,BETA PAK LTD
Revenue,Community Wellbeing & Social Care,5105650184,29.01.2014,Downside Community & Learning Centre,Consumable Cleaning Materials,7.59,BETA PAK LTD
Revenue,Community Wellbeing & Social Care,5105650184,29.01.2014,Downside Community & Learning Centre,Consumable Cleaning Materials,4.55,BETA PAK LTD
Revenue,Community Wellbeing & Social Care,5105645681,24.01.2014,Downside Community & Learning Centre,Consumable Cleaning Materials,25.04,BETA PAK LTD
Revenue,Community Wellbeing & Social Care,5105645648,10.01.2014,Downside Community & Learning Centre,Consumable Cleaning Materials,32.96,BETA PAK LTD
Revenue,Community Wellbeing & Social Care,5105645681,24.01.2014,Downside Community & Learning Centre,Consumable Cleaning Materials,10.88,BETA PAK LTD
Revenue,Community Wellbeing & Social Care,5105650965,31.01.2014,Downside Community & Learning Centre,Consumable Cleaning Materials,8.16,BETA PAK LTD
Revenue,Community Wellbeing & Social Care,5105650965,31.01.2014,Downside Community & Learning Centre,Consumable Cleaning Materials,25.04,BETA PAK LTD
Revenue,Community Wellbeing & Social Care,5105650413,29.01.2014,Downside Community & Learning Centre,Stationery,8.22,BETA PAK LTD
Revenue,Community Wellbeing & Social Care,5105650084,31.01.2014,The Laurels,Operational Equipment,178.62,BETA PAK LTD
Revenue,Community Wellbeing & Social Care,5105649255,27.01.2014,The Laurels,Operational Equipment,8.33,BETA PAK LTD
Revenue,Community Wellbeing & Social Care,5105645701,10.01.2014,The Laurels,Operational Equipment,145.42,BETA PAK LTD
Revenue,Community Wellbeing & Social Care,5105648193,27.01.2014,The Laurels,Operational Equipment,10.80,BETA PAK LTD
Revenue,Community Wellbeing & Social Care,5105645927,10.01.2014,Mental Health Homecare,Charges from Independent Providers,275.88,BETTER AT HOME IOW LTD
Revenue,Community Wellbeing & Social Care,5105645925,10.01.2014,Physical Disability Homecare,Charges from Independent Providers,94.38,BETTER AT HOME IOW LTD
Revenue,Community Wellbeing & Social Care,5105645930,10.01.2014,Physical Disability Homecare,Charges from Independent Providers,203.28,BETTER AT HOME IOW LTD
Revenue,Community Wellbeing & Social Care,5105645931,10.01.2014,Physical Disability Homecare,Charges from Independent Providers,203.28,BETTER AT HOME IOW LTD
Revenue,Community Wellbeing & Social Care,5105645952,10.01.2014,Elderly Frail Homecare,Regular Respite Care,87.12,BETTER AT HOME IOW LTD
Revenue,Community Wellbeing & Social Care,5105646375,10.01.2014,Elderly Frail Homecare,Regular Respite Care,239.58,BETTER AT HOME IOW LTD
Revenue,Community Wellbeing & Social Care,5105646375,10.01.2014,Elderly Frail Homecare,Regular Respite Care,304.92,BETTER AT HOME IOW LTD
Revenue,Community Wellbeing & Social Care,5105646374,10.01.2014,Elderly Frail Homecare,Regular Respite Care,72.60,BETTER AT HOME IOW LTD
Revenue,Community Wellbeing & Social Care,5105646374,10.01.2014,Elderly Frail Homecare,Regular Respite Care,29.04,BETTER AT HOME IOW LTD
Revenue,Community Wellbeing & Social Care,5105645950,10.01.2014,Elderly Frail Homecare,Regular Respite Care,116.16,BETTER AT HOME IOW LTD
Revenue,Community Wellbeing & Social Care,5105645183,03.01.2014,Elderly Frail Homecare,Charges from Independent Providers,188.76,BETTER AT HOME IOW LTD
Revenue,Community Wellbeing & Social Care,5105645938,10.01.2014,Elderly Frail Homecare,Regular Respite Care,377.52,BETTER AT HOME IOW LTD
Revenue,Community Wellbeing & Social Care,5105645951,10.01.2014,Elderly Frail Homecare,Regular Respite Care,58.08,BETTER AT HOME IOW LTD
Revenue,Community Wellbeing & Social Care,5105645944,10.01.2014,Elderly Frail Homecare,Regular Respite Care,87.12,BETTER AT HOME IOW LTD
Revenue,Community Wellbeing & Social Care,5105646937,15.01.2014,Elderly Frail Homecare,Regular Respite Care,493.68,BETTER AT HOME IOW LTD
Revenue,Community Wellbeing & Social Care,5105647866,27.01.2014,Elderly Frail Homecare,Charges from Independent Providers,101.64,BETTER AT HOME IOW LTD
Revenue,Community Wellbeing & Social Care,5105647866,27.01.2014,Elderly Frail Homecare,Charges from Independent Providers,76.23,BETTER AT HOME IOW LTD
Revenue,Community Wellbeing & Social Care,5105647867,27.01.2014,Elderly Frail Homecare,Charges from Independent Providers,914.76,BETTER AT HOME IOW LTD
Revenue,Community Wellbeing & Social Care,5105649104,24.01.2014,Elderly Frail Homecare,Charges from Independent Providers,-718.74,BETTER AT HOME IOW LTD
Revenue,Community Wellbeing & Social Care,5105649103,24.01.2014,Elderly Frail Homecare,Regular Respite Care,-493.68,BETTER AT HOME IOW LTD
Revenue,Community Wellbeing & Social Care,5105647454,17.01.2014,Elderly Frail Homecare,Charges from Independent Providers,43.56,BETTER AT HOME IOW LTD
Revenue,Community Wellbeing & Social Care,5105647452,17.01.2014,Elderly Frail Homecare,Charges from Independent Providers,377.52,BETTER AT HOME IOW LTD
Revenue,Community Wellbeing & Social Care,5105646938,15.01.2014,Elderly Frail Homecare,Charges from Independent Providers,718.74,BETTER AT HOME IOW LTD
Revenue,Community Wellbeing & Social Care,5105647453,17.01.2014,Elderly Frail Homecare,Charges from Independent Providers,101.64,BETTER AT HOME IOW LTD
Revenue,Community Wellbeing & Social Care,5105646939,15.01.2014,Elderly Frail Homecare,Charges from Independent Providers,30.00,BETTER AT HOME IOW LTD
Revenue,Community Wellbeing & Social Care,5105645935,10.01.2014,Elderly Frail Homecare,Charges from Independent Providers,145.20,BETTER AT HOME IOW LTD
Revenue,Community Wellbeing & Social Care,5105645942,10.01.2014,Elderly Frail Homecare,Charges from Independent Providers,588.06,BETTER AT HOME IOW LTD
Revenue,Community Wellbeing & Social Care,5105646507,15.01.2014,Elderly Frail Homecare,Charges from Independent Providers,254.10,BETTER AT HOME IOW LTD
Revenue,Community Wellbeing & Social Care,5105645941,10.01.2014,Elderly Frail Homecare,Charges from Independent Providers,119.79,BETTER AT HOME IOW LTD
Revenue,Community Wellbeing & Social Care,5105645936,10.01.2014,Elderly Frail Homecare,Charges from Independent Providers,43.56,BETTER AT HOME IOW LTD
Revenue,Community Wellbeing & Social Care,5105645934,10.01.2014,Elderly Frail Homecare,Charges from Independent Providers,87.12,BETTER AT HOME IOW LTD
Revenue,Community Wellbeing & Social Care,5105645937,10.01.2014,Elderly Frail Homecare,Charges from Independent Providers,609.84,BETTER AT HOME IOW LTD
Revenue,Community Wellbeing & Social Care,5105645939,10.01.2014,Elderly Frail Homecare,Charges from Independent Providers,471.90,BETTER AT HOME IOW LTD
Revenue,Community Wellbeing & Social Care,5105646506,15.01.2014,Elderly Frail Homecare,Charges from Independent Providers,116.16,BETTER AT HOME IOW LTD
Revenue,Community Wellbeing & Social Care,5105646373,10.01.2014,Elderly Frail Homecare,Charges from Independent Providers,94.38,BETTER AT HOME IOW LTD
Revenue,Community Wellbeing & Social Care,5105645932,10.01.2014,Elderly Frail Homecare,Charges from Independent Providers,413.82,BETTER AT HOME IOW LTD
Revenue,Community Wellbeing & Social Care,5105645948,10.01.2014,Elderly Frail Homecare,Charges from Independent Providers,366.63,BETTER AT HOME IOW LTD
Revenue,Community Wellbeing & Social Care,5105645949,10.01.2014,Elderly Frail Homecare,Charges from Independent Providers,406.56,BETTER AT HOME IOW LTD
Revenue,Community Wellbeing & Social Care,5105645947,10.01.2014,Elderly Frail Homecare,Charges from Independent Providers,188.76,BETTER AT HOME IOW LTD
Revenue,Community Wellbeing & Social Care,5105645940,10.01.2014,Elderly Frail Homecare,Charges from Independent Providers,119.79,BETTER AT HOME IOW LTD
Revenue,Community Wellbeing & Social Care,5105645943,10.01.2014,Elderly Frail Homecare,Charges from Independent Providers,290.40,BETTER AT HOME IOW LTD
Revenue,Community Wellbeing & Social Care,5105645945,10.01.2014,Elderly Frail Homecare,Charges from Independent Providers,116.16,BETTER AT HOME IOW LTD
Revenue,Community Wellbeing & Social Care,5105645906,10.01.2014,Elderly Frail Homecare,Charges from Independent Providers,464.64,BETTER AT HOME IOW LTD
Revenue,Community Wellbeing & Social Care,5105645907,10.01.2014,Elderly Frail Homecare,Charges from Independent Providers,225.06,BETTER AT HOME IOW LTD
Revenue,Community Wellbeing & Social Care,5105645907,10.01.2014,Elderly Frail Homecare,Charges from Independent Providers,217.80,BETTER AT HOME IOW LTD
Revenue,Community Wellbeing & Social Care,5105645908,10.01.2014,Elderly Frail Homecare,Charges from Independent Providers,722.37,BETTER AT HOME IOW LTD
Revenue,Community Wellbeing & Social Care,5105645909,10.01.2014,Elderly Frail Homecare,Charges from Independent Providers,711.48,BETTER AT HOME IOW LTD
Revenue,Community Wellbeing & Social Care,5105645914,10.01.2014,Elderly Frail Homecare,Charges from Independent Providers,406.56,BETTER AT HOME IOW LTD
Revenue,Community Wellbeing & Social Care,5105645905,10.01.2014,Elderly Frail Homecare,Charges from Independent Providers,907.50,BETTER AT HOME IOW LTD
Revenue,Community Wellbeing & Social Care,5105645918,10.01.2014,Elderly Frail Homecare,Charges from Independent Providers,392.04,BETTER AT HOME IOW LTD
Revenue,Community Wellbeing & Social Care,5105645910,10.01.2014,Elderly Frail Homecare,Charges from Independent Providers,740.52,BETTER AT HOME IOW LTD
Revenue,Community Wellbeing & Social Care,5105645916,10.01.2014,Elderly Frail Homecare,Charges from Independent Providers,686.07,BETTER AT HOME IOW LTD
Revenue,Community Wellbeing & Social Care,5105645913,10.01.2014,Elderly Frail Homecare,Charges from Independent Providers,486.42,BETTER AT HOME IOW LTD
Revenue,Community Wellbeing & Social Care,5105645917,10.01.2014,Elderly Frail Homecare,Charges from Independent Providers,994.62,BETTER AT HOME IOW LTD
Revenue,Community Wellbeing & Social Care,5105645928,10.01.2014,Elderly Frail Homecare,Charges from Independent Providers,595.32,BETTER AT HOME IOW LTD
Revenue,Community Wellbeing & Social Care,5105645921,10.01.2014,Elderly Frail Homecare,Charges from Independent Providers,689.70,BETTER AT HOME IOW LTD
Revenue,Community Wellbeing & Social Care,5105645922,10.01.2014,Elderly Frail Homecare,Charges from Independent Providers,355.74,BETTER AT HOME IOW LTD
Revenue,Community Wellbeing & Social Care,5105645912,10.01.2014,Elderly Frail Homecare,Charges from Independent Providers,"1,001.88",BETTER AT HOME IOW LTD
Revenue,Community Wellbeing & Social Care,5105645915,10.01.2014,Elderly Frail Homecare,Charges from Independent Providers,203.28,BETTER AT HOME IOW LTD
Revenue,Community Wellbeing & Social Care,5105645920,10.01.2014,Elderly Frail Homecare,Charges from Independent Providers,283.14,BETTER AT HOME IOW LTD
Revenue,Community Wellbeing & Social Care,5105645923,10.01.2014,Elderly Frail Homecare,Charges from Independent Providers,812.12,BETTER AT HOME IOW LTD
Revenue,Community Wellbeing & Social Care,5105645926,10.01.2014,Elderly Frail Homecare,Charges from Independent Providers,406.56,BETTER AT HOME IOW LTD
Revenue,Community Wellbeing & Social Care,5105645953,10.01.2014,Elderly Frail Homecare,Charges from Independent Providers,196.02,BETTER AT HOME IOW LTD
Revenue,Community Wellbeing & Social Care,5105645933,10.01.2014,Elderly Frail Homecare,Charges from Independent Providers,203.28,BETTER AT HOME IOW LTD
Revenue,Community Wellbeing & Social Care,5105645901,10.01.2014,Elderly Frail Homecare,Charges from Independent Providers,726.00,BETTER AT HOME IOW LTD
Revenue,Community Wellbeing & Social Care,5105645902,10.01.2014,Elderly Frail Homecare,Charges from Independent Providers,203.28,BETTER AT HOME IOW LTD
Revenue,Community Wellbeing & Social Care,5105645903,10.01.2014,Elderly Frail Homecare,Charges from Independent Providers,21.78,BETTER AT HOME IOW LTD
Revenue,Community Wellbeing & Social Care,5105645904,10.01.2014,Elderly Frail Homecare,Charges from Independent Providers,"1,103.52",BETTER AT HOME IOW LTD
Revenue,Community Wellbeing & Social Care,5105645919,10.01.2014,Elderly Frail Homecare,Charges from Independent Providers,275.88,BETTER AT HOME IOW LTD
Revenue,Community Wellbeing & Social Care,5105645929,10.01.2014,Elderly Frail Homecare,Charges from Independent Providers,384.78,BETTER AT HOME IOW LTD
Revenue,Community Wellbeing & Social Care,5105645911,10.01.2014,Physical Disability Managed Accounts,Regular Respite Care,58.08,BETTER AT HOME IOW LTD
Revenue,Childrens Services,5105645518,08.01.2014,Adult Social Care - Workforce Development,Training,230.00,BETTER AT HOME IOW LTD
Revenue,Community Wellbeing & Social Care,5105645924,10.01.2014,Elderly Frail Managed Accounts,Charges from Independent Providers,188.76,BETTER AT HOME IOW LTD
Revenue,Community Wellbeing & Social Care,5105645946,10.01.2014,Elderly Frail Managed Accounts,Regular Respite Care,43.56,BETTER AT HOME IOW LTD
Revenue,Community Wellbeing & Social Care,5105644110,15.01.2014,Governors  Support,Training,750.00,BEVAN YOUNG ASSOCIATES
Revenue,Community Wellbeing & Social Care,5105650929,31.01.2014,Core Programmes,Training,750.00,BEVAN YOUNG ASSOCIATES
Revenue,Community Wellbeing & Social Care,5105646090,10.01.2014,Public Libraries Central,Stationery,214.48,BIBLIOTHECA LTD
Revenue,Community Wellbeing & Social Care,5105649021,24.01.2014,Public Libraries Central,Stationery,47.74,BIBLIOTHECA LTD
Revenue,Economy & Environment,5105650959,31.01.2014,LSTF Grant,Professional Services,-12.00,BIFFA WASTE SERVICES LTD
Revenue,Economy & Environment,5105646381,31.01.2014,LSTF Grant,Professional Services,36.00,BIFFA WASTE SERVICES LTD
Revenue,Economy & Environment,5105647153,15.01.2014,Ryde Harbour,"Refuse Collection, Disposal and Recycling Costs",50.23,BIFFA WASTE SERVICES LTD
Revenue,Economy & Environment,5105647873,27.01.2014,Ryde Harbour,"Refuse Collection, Disposal and Recycling Costs",25.90,BIFFA WASTE SERVICES LTD
Revenue,Economy & Environment,5105646958,15.01.2014,Seaclose Amusements,"Refuse Collection, Disposal and Recycling Costs",12.65,BIFFA WASTE SERVICES LTD
Revenue,Economy & Environment,5105647171,15.01.2014,Medina Leisure Centre,"Refuse Collection, Disposal and Recycling Costs",365.80,BIFFA WASTE SERVICES LTD
Revenue,Economy & Environment,5105646962,15.01.2014,Medina Leisure Centre,"Refuse Collection, Disposal and Recycling Costs",10.85,BIFFA WASTE SERVICES LTD
Revenue,Community Wellbeing & Social Care,5105646037,15.01.2014,Workforce Development -  Westridge Centre,"Refuse Collection, Disposal and Recycling Costs",-131.08,BIFFA WASTE SERVICES LTD
Revenue,Community Wellbeing & Social Care,5105647173,15.01.2014,Workforce Development -  Westridge Centre,"Refuse Collection, Disposal and Recycling Costs",39.73,BIFFA WASTE SERVICES LTD
Revenue,Economy & Environment,5105646959,15.01.2014,Leisure Management & Admin,"Refuse Collection, Disposal and Recycling Costs",177.65,BIFFA WASTE SERVICES LTD
Revenue,Community Wellbeing & Social Care,5105647075,15.01.2014,Westminster House,"Refuse Collection, Disposal and Recycling Costs",54.60,BIFFA WASTE SERVICES LTD
Revenue,Community Wellbeing & Social Care,5105647041,17.01.2014,Gouldings Resource Centre,"Refuse Collection, Disposal and Recycling Costs",334.10,BIFFA WASTE SERVICES LTD
Revenue,Community Wellbeing & Social Care,5105647042,17.01.2014,Gouldings Resource Centre,"Refuse Collection, Disposal and Recycling Costs",107.10,BIFFA WASTE SERVICES LTD
Revenue,Community Wellbeing & Social Care,5105647037,17.01.2014,Saxonbury,"Refuse Collection, Disposal and Recycling Costs",89.70,BIFFA WASTE SERVICES LTD
Revenue,Community Wellbeing & Social Care,5105647543,17.01.2014,Plean Dene,"Refuse Collection, Disposal and Recycling Costs",89.70,BIFFA WASTE SERVICES LTD
Revenue,Community Wellbeing & Social Care,5105647239,17.01.2014,Integrated Community Equipment Service,"Refuse Collection, Disposal and Recycling Costs",172.03,BIFFA WASTE SERVICES LTD
Revenue,Economy & Environment,5105647875,27.01.2014,Planning Business Support,"Refuse Collection, Disposal and Recycling Costs",193.42,BIFFA WASTE SERVICES LTD
Revenue,Economy & Environment,5105647046,15.01.2014,Ferry Management,"Refuse Collection, Disposal and Recycling Costs",96.95,BIFFA WASTE SERVICES LTD
Revenue,Childrens Services,5105647981,27.01.2014,Beaulieu House,"Refuse Collection, Disposal and Recycling Costs",20.31,BIFFA WASTE SERVICES LTD
Revenue,Childrens Services,5105647982,27.01.2014,Beaulieu House,"Refuse Collection, Disposal and Recycling Costs",182.90,BIFFA WASTE SERVICES LTD
Revenue,Childrens Services,5105647137,15.01.2014,Contact & Assessment Team,"Refuse Collection, Disposal and Recycling Costs",34.20,BIFFA WASTE SERVICES LTD
Revenue,Community Wellbeing & Social Care,5105647003,15.01.2014,31 Carter Avenue,"Refuse Collection, Disposal and Recycling Costs",89.70,BIFFA WASTE SERVICES LTD
Revenue,Community Wellbeing & Social Care,5105647039,17.01.2014,Highmead,"Refuse Collection, Disposal and Recycling Costs",49.35,BIFFA WASTE SERVICES LTD
Revenue,Resources,5105647011,15.01.2014,Rechargeable Properties,"Refuse Collection, Disposal and Recycling Costs",2.63,BIFFA WASTE SERVICES LTD
Revenue,Resources,5105647170,15.01.2014,Rechargeable Properties,"Refuse Collection, Disposal and Recycling Costs",67.34,BIFFA WASTE SERVICES LTD
Revenue,Economy & Environment,5105647152,15.01.2014,Fire Operations,"Refuse Collection, Disposal and Recycling Costs",530.71,BIFFA WASTE SERVICES LTD
Revenue,Economy & Environment,5105647805,22.01.2014,Fire Operations,"Refuse Collection, Disposal and Recycling Costs",26.95,BIFFA WASTE SERVICES LTD
Revenue,Economy & Environment,5105647874,27.01.2014,Fire Operations,"Refuse Collection, Disposal and Recycling Costs",381.90,BIFFA WASTE SERVICES LTD
Revenue,Economy & Environment,5105647019,15.01.2014,Regulatory Management & Admin Support,"Refuse Collection, Disposal and Recycling Costs",74.21,BIFFA WASTE SERVICES LTD
Revenue,Economy & Environment,5105647016,15.01.2014,Fort Victoria,"Refuse Collection, Disposal and Recycling Costs",91.45,BIFFA WASTE SERVICES LTD
Revenue,Economy & Environment,5105641535,03.01.2014,Fort Victoria,"Refuse Collection, Disposal and Recycling Costs",90.40,BIFFA WASTE SERVICES LTD
Revenue,Resources,5105647549,17.01.2014,Coastal Visitors Centre,"Refuse Collection, Disposal and Recycling Costs",58.01,BIFFA WASTE SERVICES LTD
Revenue,Economy & Environment,5105647555,24.01.2014,Newport Harbour Account,"Refuse Collection, Disposal and Recycling Costs",188.65,BIFFA WASTE SERVICES LTD
Revenue,Economy & Environment,5105647008,17.01.2014,Newport Harbour Account,"Refuse Collection, Disposal and Recycling Costs",407.04,BIFFA WASTE SERVICES LTD
Revenue,Childrens Services,5105641941,10.01.2014,Education Participation Team,"Refuse Collection, Disposal and Recycling Costs",42.04,BIFFA WASTE SERVICES LTD
Revenue,Childrens Services,5105635618,10.01.2014,Education Participation Team,"Refuse Collection, Disposal and Recycling Costs",39.40,BIFFA WASTE SERVICES LTD
Revenue,Childrens Services,5105647040,17.01.2014,Education Participation Team,"Refuse Collection, Disposal and Recycling Costs",49.25,BIFFA WASTE SERVICES LTD
Revenue,Childrens Services,5105647172,15.01.2014,Education Participation Team,"Refuse Collection, Disposal and Recycling Costs",52.55,BIFFA WASTE SERVICES LTD
Revenue,Economy & Environment,5105647011,15.01.2014,Westridge Squash Courts,"Refuse Collection, Disposal and Recycling Costs",1.31,BIFFA WASTE SERVICES LTD
Revenue,Economy & Environment,5105647170,15.01.2014,Westridge Squash Courts,"Refuse Collection, Disposal and Recycling Costs",33.67,BIFFA WASTE SERVICES LTD
Revenue,Community Wellbeing & Social Care,5105644970,02.01.2014,Public Libraries Central,"Refuse Collection, Disposal and Recycling Costs",39.40,BIFFA WASTE SERVICES LTD
Revenue,Community Wellbeing & Social Care,5105646594,15.01.2014,Public Libraries Central,"Refuse Collection, Disposal and Recycling Costs",49.25,BIFFA WASTE SERVICES LTD
Revenue,Community Wellbeing & Social Care,5105647170,15.01.2014,Cothey Bottom Store RYDE,"Refuse Collection, Disposal and Recycling Costs",33.67,BIFFA WASTE SERVICES LTD
Revenue,Community Wellbeing & Social Care,5105647011,15.01.2014,Cothey Bottom Store RYDE,"Refuse Collection, Disposal and Recycling Costs",1.31,BIFFA WASTE SERVICES LTD
Revenue,Community Wellbeing & Social Care,5105647168,15.01.2014,Public Libraries Central,"Refuse Collection, Disposal and Recycling Costs",172.50,BIFFA WASTE SERVICES LTD
Revenue,Community Wellbeing & Social Care,5105647038,17.01.2014,40 Venner Avenue,"Refuse Collection, Disposal and Recycling Costs",93.46,BIFFA WASTE SERVICES LTD
Revenue,Community Wellbeing & Social Care,5105647064,20.01.2014,Seagulls,"Refuse Collection, Disposal and Recycling Costs",89.70,BIFFA WASTE SERVICES LTD
Revenue,Resources,5105647014,15.01.2014,Administrative Buildings,"Refuse Collection, Disposal and Recycling Costs",160.41,BIFFA WASTE SERVICES LTD
Revenue,Economy & Environment,5105641251,10.01.2014,Crematorium,"Refuse Collection, Disposal and Recycling Costs",73.16,BIFFA WASTE SERVICES LTD
Revenue,Economy & Environment,5105647004,15.01.2014,Crematorium,"Refuse Collection, Disposal and Recycling Costs",74.21,BIFFA WASTE SERVICES LTD
Revenue,Childrens Services,5105647139,15.01.2014,Specialist Service Business Admin,"Refuse Collection, Disposal and Recycling Costs",182.90,BIFFA WASTE SERVICES LTD
Revenue,Economy & Environment,5105647081,17.01.2014,The Heights,"Refuse Collection, Disposal and Recycling Costs",360.55,BIFFA WASTE SERVICES LTD
Revenue,Economy & Environment,5105647251,31.01.2014,The Heights,"Refuse Collection, Disposal and Recycling Costs",42.35,BIFFA WASTE SERVICES LTD
Revenue,Community Wellbeing & Social Care,5105646961,15.01.2014,Dinosaur Isle Museum (Sandown Geology),"Refuse Collection, Disposal and Recycling Costs",5.25,BIFFA WASTE SERVICES LTD
Revenue,Community Wellbeing & Social Care,5105647613,24.01.2014,Dinosaur Isle Museum (Sandown Geology),"Refuse Collection, Disposal and Recycling Costs",3.50,BIFFA WASTE SERVICES LTD
Revenue,Community Wellbeing & Social Care,5105641934,03.01.2014,Overbrook,"Refuse Collection, Disposal and Recycling Costs",90.10,BIFFA WASTE SERVICES LTD
Revenue,Community Wellbeing & Social Care,5105647054,24.01.2014,Overbrook,"Refuse Collection, Disposal and Recycling Costs",137.00,BIFFA WASTE SERVICES LTD
Revenue,Community Wellbeing & Social Care,5105647039,17.01.2014,The Laurels,"Refuse Collection, Disposal and Recycling Costs",49.35,BIFFA WASTE SERVICES LTD
Revenue,Resources,5105647044,15.01.2014,Administrative Buildings,"Refuse Collection, Disposal and Recycling Costs",98.05,BIFFA WASTE SERVICES LTD
Revenue,Resources,5105647045,15.01.2014,Administrative Buildings,"Refuse Collection, Disposal and Recycling Costs",56.20,BIFFA WASTE SERVICES LTD
Revenue,Childrens Services,5105648195,24.01.2014,Purchased Residential,Charges from Independent Providers,"13,844.82",BIG BRIGHT HOLIDAYS
Revenue,Childrens Services,5105645545,08.01.2014,Purchased Residential,Charges from Independent Providers,"9,825.35",BIG BRIGHT HOLIDAYS
Revenue,Childrens Services,5105643080,08.01.2014,Purchased Residential,Charges from Independent Providers,"13,844.82",BIG BRIGHT HOLIDAYS
Revenue,Childrens Services,5105643082,08.01.2014,Purchased Residential,Charges from Independent Providers,"13,844.82",BIG BRIGHT HOLIDAYS
Revenue,Childrens Services,5105648196,24.01.2014,Purchased Residential,Charges from Independent Providers,"13,844.82",BIG BRIGHT HOLIDAYS
Revenue,Childrens Services,5105648197,29.01.2014,Purchased Residential,Charges from Independent Providers,"13,844.82",BIG BRIGHT HOLIDAYS
Revenue,Childrens Services,5105647563,17.01.2014,Beaulieu House,Clothing & Laundry,163.00,BIG WIGHT T-SHIRT CO
Revenue,Economy & Environment,5105650258,29.01.2014,Play Development,Operational Equipment,157.95,BIG WIGHT T-SHIRT CO
Revenue,Childrens Services,5105650712,31.01.2014,Support for Looked After Children,Support Children,65.00,REDACTED PERSONAL DATA
Revenue,Childrens Services,5105648794,24.01.2014,Support for Looked After Children,Support Children,65.00,REDACTED PERSONAL DATA
Revenue,Childrens Services,5105645868,10.01.2014,Support for Looked After Children,Support Children,65.00,REDACTED PERSONAL DATA
Revenue,Childrens Services,5105647411,17.01.2014,Support for Looked After Children,Support Children,65.00,REDACTED PERSONAL DATA
Revenue,Childrens Services,5105645149,03.01.2014,Support for Looked After Children,Support Children,65.00,REDACTED PERSONAL DATA
Revenue,Economy & Environment,5105647558,24.01.2014,Ferry Operation,Printing Costs,289.00,BILTMORE PRINTERS
Revenue,Community Wellbeing & Social Care,5105648823,24.01.2014,Workforce Development Schools,Training,90.00,BINSTEAD PRIMARY SCHOOL
Revenue,Economy & Environment,5105646664,15.01.2014,Procurement and Contract Management Law,Conference Expenses,531.00,BIP SOLUTIONS LTD
Revenue,Childrens Services,5105645654,08.01.2014,Court Work & Consultancy Services,Legal Fees - Other Parties,480.16,BISCOES SOLICITORS
Revenue,Childrens Services,5105645654,08.01.2014,Court Work & Consultancy Services,Legal Fees - Other Parties,1.80,BISCOES SOLICITORS
Revenue,Childrens Services,5105645654,08.01.2014,Court Work & Consultancy Services,Legal Fees - Other Parties,3.70,BISCOES SOLICITORS
Revenue,Economy & Environment,5105645663,08.01.2014,Recycling initiative,Printing Costs,"3,122.33",BISHOPS PRINTERS LTD
Revenue,Economy & Environment,5105643491,22.01.2014,Recycling initiative,Printing Costs,"2,986.00",BISHOPS PRINTERS LTD
Revenue,Childrens Services,5105642521,08.01.2014,Purchased Fostering,Charges from Independent Providers,"3,230.51",BLUE SKY FOSTERING LTD
Revenue,Childrens Services,5105642228,08.01.2014,Purchased Fostering,Charges from Independent Providers,"3,230.51",BLUE SKY FOSTERING LTD
Revenue,Childrens Services,5105642252,08.01.2014,Purchased Fostering,Charges from Independent Providers,"3,230.51",BLUE SKY FOSTERING LTD
Revenue,Economy & Environment,5105645410,08.01.2014,Ferry Operation,Vehicle Maintenance Costs,15.00,BOC LTD
Revenue,Childrens Services,5105645541,08.01.2014,Beaulieu House,Professional Services,32.60,BOC LTD
Revenue,Childrens Services,5105646587,15.01.2014,Short Breaks,Payments to Voluntary and Other Associations,390.00,BODSTER EQUINE ASSISTED LEARN CIC
Revenue,Community Wellbeing & Social Care,5105649840,29.01.2014,Elderly Frail Residential Care,Charges from Independent Providers,"1,837.08",BONDCARE NILERACE LIMITED
Revenue,Community Wellbeing & Social Care,5105648050,20.01.2014,Plean Dene,Catering Purchases,38.31,BOOKER CASH & CARRY LTD
Revenue,Community Wellbeing & Social Care,5105648051,20.01.2014,Plean Dene,Catering Purchases,59.82,BOOKER CASH & CARRY LTD
Revenue,Community Wellbeing & Social Care,5105648052,20.01.2014,Plean Dene,Catering Purchases,186.72,BOOKER CASH & CARRY LTD
Revenue,Community Wellbeing & Social Care,5105648047,20.01.2014,Plean Dene,Catering Purchases,129.48,BOOKER CASH & CARRY LTD
Revenue,Community Wellbeing & Social Care,5105648048,20.01.2014,Plean Dene,Catering Purchases,10.32,BOOKER CASH & CARRY LTD
Revenue,Community Wellbeing & Social Care,5105648047,20.01.2014,Plean Dene,Catering Purchases,11.97,BOOKER CASH & CARRY LTD
Revenue,Community Wellbeing & Social Care,5105648051,20.01.2014,Plean Dene,Catering Purchases,13.08,BOOKER CASH & CARRY LTD
Revenue,Community Wellbeing & Social Care,5105648994,24.01.2014,Plean Dene,Catering Purchases,168.78,BOOKER CASH & CARRY LTD
Revenue,Community Wellbeing & Social Care,5105648983,24.01.2014,Plean Dene,Catering Purchases,26.51,BOOKER CASH & CARRY LTD
Revenue,Community Wellbeing & Social Care,5105648996,24.01.2014,Plean Dene,Catering Purchases,35.51,BOOKER CASH & CARRY LTD
Revenue,Community Wellbeing & Social Care,5105648998,24.01.2014,Plean Dene,Catering Purchases,6.49,BOOKER CASH & CARRY LTD
Revenue,Community Wellbeing & Social Care,5105649000,24.01.2014,Plean Dene,Catering Purchases,79.79,BOOKER CASH & CARRY LTD
Revenue,Community Wellbeing & Social Care,5105649008,24.01.2014,Plean Dene,Catering Purchases,60.28,BOOKER CASH & CARRY LTD
Revenue,Community Wellbeing & Social Care,5105649006,24.01.2014,Plean Dene,Catering Purchases,149.94,BOOKER CASH & CARRY LTD
Revenue,Community Wellbeing & Social Care,5105649006,24.01.2014,Plean Dene,Catering Purchases,10.90,BOOKER CASH & CARRY LTD
Revenue,Community Wellbeing & Social Care,5105649008,24.01.2014,Plean Dene,Catering Purchases,5.98,BOOKER CASH & CARRY LTD
Revenue,Community Wellbeing & Social Care,5105648998,24.01.2014,Plean Dene,Catering Purchases,19.95,BOOKER CASH & CARRY LTD
Revenue,Community Wellbeing & Social Care,5105648563,24.01.2014,Plean Dene,Catering Purchases,167.53,BOOKER CASH & CARRY LTD
Revenue,Community Wellbeing & Social Care,5105648469,22.01.2014,Plean Dene,Catering Purchases,138.91,BOOKER CASH & CARRY LTD
Revenue,Community Wellbeing & Social Care,5105648563,24.01.2014,Plean Dene,Catering Purchases,11.97,BOOKER CASH & CARRY LTD
Revenue,Community Wellbeing & Social Care,5105650969,31.01.2014,Plean Dene,Catering Purchases,85.64,BOOKER CASH & CARRY LTD
Revenue,Community Wellbeing & Social Care,5105650970,31.01.2014,Plean Dene,Catering Purchases,51.64,BOOKER CASH & CARRY LTD
Revenue,Community Wellbeing & Social Care,5105650970,31.01.2014,Plean Dene,Catering Purchases,5.95,BOOKER CASH & CARRY LTD
Revenue,Community Wellbeing & Social Care,5105650969,31.01.2014,Plean Dene,Catering Purchases,10.30,BOOKER CASH & CARRY LTD
Revenue,Community Wellbeing & Social Care,5105648050,20.01.2014,Plean Dene,Catering Purchases,63.57,BOOKER CASH & CARRY LTD
Revenue,Community Wellbeing & Social Care,5105646963,15.01.2014,Plean Dene,Catering Purchases,22.53,BOOKER CASH & CARRY LTD
Revenue,Community Wellbeing & Social Care,5105646964,15.01.2014,Plean Dene,Catering Purchases,129.48,BOOKER CASH & CARRY LTD
Revenue,Community Wellbeing & Social Care,5105646965,15.01.2014,Plean Dene,Catering Purchases,66.08,BOOKER CASH & CARRY LTD
Revenue,Community Wellbeing & Social Care,5105646966,15.01.2014,Plean Dene,Catering Purchases,10.32,BOOKER CASH & CARRY LTD
Revenue,Community Wellbeing & Social Care,5105646965,15.01.2014,Plean Dene,Catering Purchases,31.24,BOOKER CASH & CARRY LTD
Revenue,Community Wellbeing & Social Care,5105646964,15.01.2014,Plean Dene,Catering Purchases,11.97,BOOKER CASH & CARRY LTD
Revenue,Community Wellbeing & Social Care,5105650436,29.01.2014,Plean Dene,Catering Purchases,163.08,BOOKER CASH & CARRY LTD
Revenue,Community Wellbeing & Social Care,5105650436,29.01.2014,Plean Dene,Catering Purchases,16.65,BOOKER CASH & CARRY LTD
Revenue,Community Wellbeing & Social Care,5105650241,29.01.2014,Dinosaur Isle Museum (Sandown Geology),General Materials,47.99,BOOKER CASH & CARRY LTD
Revenue,Community Wellbeing & Social Care,5105650241,29.01.2014,Dinosaur Isle Museum (Sandown Geology),General Materials,20.76,BOOKER CASH & CARRY LTD
Revenue,Community Wellbeing & Social Care,5105650241,29.01.2014,Dinosaur Isle Museum (Sandown Geology),Stock Purchases,37.97,BOOKER CASH & CARRY LTD
Revenue,Community Wellbeing & Social Care,5105645198,03.01.2014,Overbrook,Catering Purchases,84.86,BOOKER CASH & CARRY LTD
Revenue,Community Wellbeing & Social Care,5105648468,22.01.2014,Contraception,Payment to Private Contractors,270.00,BOOTS THE CHEMIST LTD (Ryde)
Revenue,Community Wellbeing & Social Care,5105648468,22.01.2014,Contraception,Payment to Private Contractors,88.40,BOOTS THE CHEMIST LTD (Ryde)
Revenue,Community Wellbeing & Social Care,5105648468,22.01.2014,Contraception,Payment to Private Contractors,27.00,BOOTS THE CHEMIST LTD (Ryde)
Revenue,Community Wellbeing & Social Care,5105648468,22.01.2014,Contraception,Payment to Private Contractors,90.00,BOOTS THE CHEMIST LTD (Ryde)
Revenue,Community Wellbeing & Social Care,5105645349,08.01.2014,Contraception,Payment to Private Contractors,525.00,BOOTS THE CHEMIST LTD (Ryde)
Revenue,Community Wellbeing & Social Care,5105645349,08.01.2014,Contraception,Payment to Private Contractors,176.80,BOOTS THE CHEMIST LTD (Ryde)
Revenue,Community Wellbeing & Social Care,5105645349,08.01.2014,Contraception,Payment to Private Contractors,52.50,BOOTS THE CHEMIST LTD (Ryde)
Revenue,Community Wellbeing & Social Care,5105645349,08.01.2014,Contraception,Payment to Private Contractors,175.00,BOOTS THE CHEMIST LTD (Ryde)
Revenue,Community Wellbeing & Social Care,5105645626,08.01.2014,Drug Misuse - Adults,Payment to Private Contractors,280.00,BOOTS THE CHEMIST LTD (Ryde)
Revenue,Community Wellbeing & Social Care,5105648468,22.01.2014,Drug Misuse - Adults,Payment to Private Contractors,276.50,BOOTS THE CHEMIST LTD (Ryde)
Revenue,Community Wellbeing & Social Care,5105648468,22.01.2014,Drug Misuse - Adults,Payment to Private Contractors,586.00,BOOTS THE CHEMIST LTD (Ryde)
Revenue,Community Wellbeing & Social Care,5105648468,22.01.2014,Drug Misuse - Adults,Payment to Private Contractors,30.00,BOOTS THE CHEMIST LTD (Ryde)
Revenue,Community Wellbeing & Social Care,5105638388,08.01.2014,Drug Misuse - Adults,Payment to Private Contractors,192.50,BOOTS THE CHEMIST LTD (Ryde)
Revenue,Community Wellbeing & Social Care,5105645349,08.01.2014,Drug Misuse - Adults,Payment to Private Contractors,861.00,BOOTS THE CHEMIST LTD (Ryde)
Revenue,Community Wellbeing & Social Care,5105645349,08.01.2014,Drug Misuse - Adults,Payment to Private Contractors,866.00,BOOTS THE CHEMIST LTD (Ryde)
Revenue,Community Wellbeing & Social Care,5105645349,08.01.2014,STI Tests & Treatment,Payment to Private Contractors,15.00,BOOTS THE CHEMIST LTD (Ryde)
Revenue,Community Wellbeing & Social Care,5105645349,08.01.2014,Drug Misuse - Adults,Payment to Private Contractors,30.00,BOOTS THE CHEMIST LTD (Ryde)
Revenue,Community Wellbeing & Social Care,5105648473,22.01.2014,Drug Misuse - Adults,Payment to Private Contractors,30.00,BOOTS UK LTD
Revenue,Community Wellbeing & Social Care,5105638338,08.01.2014,Drug Misuse - Adults,Payment to Private Contractors,112.00,BOOTS UK LTD
Revenue,Community Wellbeing & Social Care,5105645301,08.01.2014,Drug Misuse - Adults,Payment to Private Contractors,3.50,BOOTS UK LTD
Revenue,Community Wellbeing & Social Care,5105648476,22.01.2014,Drug Misuse - Adults,Payment to Private Contractors,30.00,BOOTS UK LTD (107 HIGH ST SANDOWN)
Revenue,Community Wellbeing & Social Care,5105648068,22.01.2014,Drug Misuse - Adults,Payment to Private Contractors,52.50,BOOTS UK LTD (107 HIGH ST SANDOWN)
Revenue,Community Wellbeing & Social Care,5105648068,22.01.2014,Drug Misuse - Adults,Payment to Private Contractors,70.00,BOOTS UK LTD (107 HIGH ST SANDOWN)
Revenue,Community Wellbeing & Social Care,5105647761,17.01.2014,Drug Misuse - Adults,Payment to Private Contractors,30.00,BOOTS UK LTD (COWES)
Revenue,Community Wellbeing & Social Care,5105645304,08.01.2014,Drug Misuse - Adults,Payment to Private Contractors,63.00,BOOTS UK LTD (COWES)
Revenue,Community Wellbeing & Social Care,5105647796,17.01.2014,Drug Misuse - Adults,Payment to Private Contractors,30.00,BOOTS UK LTD (FRESHWATER)
Revenue,Community Wellbeing & Social Care,5105645306,08.01.2014,Contraception,Payment to Private Contractors,"2,145.00",BOOTS UK LTD (NEWPORT)
Revenue,Community Wellbeing & Social Care,5105645306,08.01.2014,Contraception,Payment to Private Contractors,629.20,BOOTS UK LTD (NEWPORT)
Revenue,Community Wellbeing & Social Care,5105645306,08.01.2014,Contraception,Payment to Private Contractors,7.10,BOOTS UK LTD (NEWPORT)
Revenue,Community Wellbeing & Social Care,5105645306,08.01.2014,Contraception,Payment to Private Contractors,214.50,BOOTS UK LTD (NEWPORT)
Revenue,Community Wellbeing & Social Care,5105645306,08.01.2014,Contraception,Payment to Private Contractors,715.00,BOOTS UK LTD (NEWPORT)
Revenue,Community Wellbeing & Social Care,5105645306,08.01.2014,Drug Misuse - Adults,Payment to Private Contractors,30.00,BOOTS UK LTD (NEWPORT)
Revenue,Community Wellbeing & Social Care,5105645306,08.01.2014,Drug Misuse - Adults,Payment to Private Contractors,227.50,BOOTS UK LTD (NEWPORT)
Revenue,Community Wellbeing & Social Care,5105645299,08.01.2014,Drug Misuse - Adults,Payment to Private Contractors,577.50,BOOTS UK LTD (NEWPORT)
Revenue,Community Wellbeing & Social Care,5105645306,08.01.2014,STI Tests & Treatment,Payment to Private Contractors,10.00,BOOTS UK LTD (NEWPORT)
Revenue,Community Wellbeing & Social Care,5105645306,08.01.2014,Drug Misuse - Adults,Payment to Private Contractors,284.00,BOOTS UK LTD (NEWPORT)
Revenue,Community Wellbeing & Social Care,5105648476,22.01.2014,Drug Misuse - Adults,Payment to Private Contractors,45.50,BOOTS UK LTD (SANDOWN LARGE STORE)
Revenue,Community Wellbeing & Social Care,5105648476,22.01.2014,Drug Misuse - Adults,Payment to Private Contractors,498.00,BOOTS UK LTD (SANDOWN LARGE STORE)
Revenue,Community Wellbeing & Social Care,5105648068,22.01.2014,Drug Misuse - Adults,Payment to Private Contractors,30.00,BOOTS UK LTD (SANDOWN LARGE STORE)
Revenue,Community Wellbeing & Social Care,5105645302,08.01.2014,Drug Misuse - Adults,Payment to Private Contractors,77.00,BOOTS UK LTD (SANDOWN LARGE STORE)
Revenue,Community Wellbeing & Social Care,5105648479,22.01.2014,Contraception,Payment to Private Contractors,15.00,BOOTS UK LTD (SHANKLIN)
Revenue,Community Wellbeing & Social Care,5105648479,22.01.2014,Contraception,Payment to Private Contractors,5.20,BOOTS UK LTD (SHANKLIN)
Revenue,Community Wellbeing & Social Care,5105648479,22.01.2014,Contraception,Payment to Private Contractors,1.50,BOOTS UK LTD (SHANKLIN)
Revenue,Community Wellbeing & Social Care,5105648479,22.01.2014,Contraception,Payment to Private Contractors,5.00,BOOTS UK LTD (SHANKLIN)
Revenue,Community Wellbeing & Social Care,5105648479,22.01.2014,Drug Misuse - Adults,Payment to Private Contractors,30.00,BOOTS UK LTD (SHANKLIN)
Revenue,Community Wellbeing & Social Care,5105645307,08.01.2014,Contraception,Payment to Private Contractors,75.00,BOOTS UK LTD (TOWER HOUSE)
Revenue,Community Wellbeing & Social Care,5105645307,08.01.2014,Contraception,Payment to Private Contractors,7.50,BOOTS UK LTD (TOWER HOUSE)
Revenue,Community Wellbeing & Social Care,5105645307,08.01.2014,Contraception,Payment to Private Contractors,25.00,BOOTS UK LTD (TOWER HOUSE)
Revenue,Community Wellbeing & Social Care,5105645307,08.01.2014,Drug Misuse - Adults,Payment to Private Contractors,30.00,BOOTS UK LTD (TOWER HOUSE)
Revenue,Community Wellbeing & Social Care,5105647793,17.01.2014,Drug Misuse - Adults,Payment to Private Contractors,30.00,BOOTS UK LTD (TOWER HOUSE)
Revenue,Community Wellbeing & Social Care,5105645307,08.01.2014,Drug Misuse - Adults,Payment to Private Contractors,91.00,BOOTS UK LTD (TOWER HOUSE)
Revenue,Community Wellbeing & Social Care,5105645305,08.01.2014,Drug Misuse - Adults,Payment to Private Contractors,77.00,BOOTS UK LTD (TOWER HOUSE)
Revenue,Community Wellbeing & Social Care,5105645307,08.01.2014,Drug Misuse - Adults,Payment to Private Contractors,218.00,BOOTS UK LTD (TOWER HOUSE)
Revenue,Community Wellbeing & Social Care,5105647793,17.01.2014,Drug Misuse - Adults,Payment to Private Contractors,91.00,BOOTS UK LTD (TOWER HOUSE)
Revenue,Community Wellbeing & Social Care,5105647793,17.01.2014,Drug Misuse - Adults,Payment to Private Contractors,166.00,BOOTS UK LTD (TOWER HOUSE)
Revenue,Community Wellbeing & Social Care,5105645307,08.01.2014,STI Tests & Treatment,Payment to Private Contractors,26.00,BOOTS UK LTD (TOWER HOUSE)
Revenue,Community Wellbeing & Social Care,5105647795,17.01.2014,Contraception,Payment to Private Contractors,10.40,BOOTS UK LTD (YLB BEMBRIDGE)
Revenue,Community Wellbeing & Social Care,5105647795,17.01.2014,Contraception,Payment to Private Contractors,3.00,BOOTS UK LTD (YLB BEMBRIDGE)
Revenue,Community Wellbeing & Social Care,5105647795,17.01.2014,Contraception,Payment to Private Contractors,10.00,BOOTS UK LTD (YLB BEMBRIDGE)
Revenue,Community Wellbeing & Social Care,5105647795,17.01.2014,Contraception,Payment to Private Contractors,30.00,BOOTS UK LTD (YLB BEMBRIDGE)
Revenue,Community Wellbeing & Social Care,5105647795,17.01.2014,Drug Misuse - Adults,Payment to Private Contractors,30.00,BOOTS UK LTD (YLB BEMBRIDGE)
Revenue,Economy & Environment,5105645652,08.01.2014,Heights Cafe Stock,Order Settlement,107.05,BRAKE BROS LTD
Revenue,Economy & Environment,5105650932,31.01.2014,The Heights,Stock Purchases,108.76,BRAKE BROS LTD
Revenue,Economy & Environment,5105648436,22.01.2014,The Heights,Stock Purchases,112.12,BRAKE BROS LTD
Revenue,Community Wellbeing & Social Care,5105648392,22.01.2014,Leaseholds by LA,Accommodation Costs - Leaseholder Payments,588.38,BRAMBLE LETTINGS
Revenue,Community Wellbeing & Social Care,5105648392,22.01.2014,Leaseholds by LA,Accommodation Costs - Leaseholder Payments,588.38,BRAMBLE LETTINGS
Revenue,Community Wellbeing & Social Care,5105648392,22.01.2014,Leaseholds by LA,Accommodation Costs - Leaseholder Payments,588.38,BRAMBLE LETTINGS
Revenue,Community Wellbeing & Social Care,5105648392,22.01.2014,Leaseholds by LA,Accommodation Costs - Leaseholder Payments,746.81,BRAMBLE LETTINGS
Revenue,Community Wellbeing & Social Care,5105648392,22.01.2014,Leaseholds by LA,Accommodation Costs - Leaseholder Payments,769.43,BRAMBLE LETTINGS
Revenue,Community Wellbeing & Social Care,5105648392,22.01.2014,Leaseholds by LA,Accommodation Costs - Leaseholder Payments,746.81,BRAMBLE LETTINGS
Revenue,Community Wellbeing & Social Care,5105648392,22.01.2014,Leaseholds by LA,Accommodation Costs - Leaseholder Payments,746.81,BRAMBLE LETTINGS
Revenue,Community Wellbeing & Social Care,5105648392,22.01.2014,Leaseholds by LA,Accommodation Costs - Leaseholder Payments,746.81,BRAMBLE LETTINGS
Revenue,Community Wellbeing & Social Care,5105648392,22.01.2014,Leaseholds by LA,Accommodation Costs - Leaseholder Payments,746.81,BRAMBLE LETTINGS
Revenue,Community Wellbeing & Social Care,5105648392,22.01.2014,Leaseholds by LA,Accommodation Costs - Leaseholder Payments,746.81,BRAMBLE LETTINGS
Revenue,Community Wellbeing & Social Care,5105648392,22.01.2014,Leaseholds by LA,Accommodation Costs - Leaseholder Payments,746.81,BRAMBLE LETTINGS
Revenue,Community Wellbeing & Social Care,5105648392,22.01.2014,Leaseholds by LA,Accommodation Costs - Leaseholder Payments,746.81,BRAMBLE LETTINGS
Revenue,Community Wellbeing & Social Care,5105648392,22.01.2014,Leaseholds by LA,Accommodation Costs - Leaseholder Payments,746.81,BRAMBLE LETTINGS
Revenue,Community Wellbeing & Social Care,5105648392,22.01.2014,Leaseholds by LA,Accommodation Costs - Leaseholder Payments,746.81,BRAMBLE LETTINGS
Revenue,Community Wellbeing & Social Care,5105648392,22.01.2014,Leaseholds by LA,Accommodation Costs - Leaseholder Payments,746.81,BRAMBLE LETTINGS
Revenue,Community Wellbeing & Social Care,5105648392,22.01.2014,Leaseholds by LA,Accommodation Costs - Leaseholder Payments,746.81,BRAMBLE LETTINGS
Revenue,Community Wellbeing & Social Care,5105648392,22.01.2014,Leaseholds by LA,Accommodation Costs - Leaseholder Payments,746.81,BRAMBLE LETTINGS
Revenue,Community Wellbeing & Social Care,5105648392,22.01.2014,Leaseholds by LA,Accommodation Costs - Leaseholder Payments,588.38,BRAMBLE LETTINGS
Revenue,Community Wellbeing & Social Care,5105648392,22.01.2014,Leaseholds by LA,Accommodation Costs - Leaseholder Payments,588.38,BRAMBLE LETTINGS
Revenue,Community Wellbeing & Social Care,5105648392,22.01.2014,Leaseholds by LA,Accommodation Costs - Leaseholder Payments,588.38,BRAMBLE LETTINGS
Revenue,Community Wellbeing & Social Care,5105648392,22.01.2014,Leaseholds by LA,Accommodation Costs - Leaseholder Payments,746.81,BRAMBLE LETTINGS
Revenue,Community Wellbeing & Social Care,5105648392,22.01.2014,Leaseholds by LA,Accommodation Costs - Leaseholder Payments,746.81,BRAMBLE LETTINGS
Revenue,Resources,5105649180,24.01.2014,Staff Benefits,Payment to Private Contractors,118.75,BRAMBLES AFTER SCHOOL CLUB
Revenue,Community Wellbeing & Social Care,5105651104,31.01.2014,Drug Misuse - Adults,Payment to Private Contractors,"7,380.00",BREAKING FREE ONLINE LIMITED
Revenue,Childrens Services,5105647646,17.01.2014,Adoption Reform Grant,Professional Subscriptions,100.00,BREATHE INTERNET LTD
Revenue,Community Wellbeing & Social Care,5105649932,29.01.2014,Elderly Frail Residential Care,Charges from Independent Providers,"2,048.76",BRENDONCARE FOUNDATION
Revenue,Economy & Environment,5105649232,24.01.2014,Newport Harbour Account,Payment to Private Contractors,"4,152.00",BRENT MARINE SERVICES
Revenue,Community Wellbeing & Social Care,5105649368,29.01.2014,REDACTED PERSONAL DATA,Order Settlement,"1,699.88",BRIGHSTONE CARE LTD
Revenue,Community Wellbeing & Social Care,5105649368,29.01.2014,REDACTED PERSONAL DATA,Order Settlement,657.72,BRIGHSTONE CARE LTD
Revenue,Community Wellbeing & Social Care,5105650170,29.01.2014,Elderly Mentally Ill Residential Care,Charges from Independent Providers,"1,998.08",BRIGHSTONE CARE LTD
Revenue,Community Wellbeing & Social Care,5105649368,29.01.2014,Elderly Mentally Ill Residential Care,Charges from Independent Providers,"1,699.88",BRIGHSTONE CARE LTD
Revenue,Community Wellbeing & Social Care,5105649368,29.01.2014,Elderly Mentally Ill Residential Care,Charges from Independent Providers,"1,998.08",BRIGHSTONE CARE LTD
Revenue,Community Wellbeing & Social Care,5105648640,24.01.2014,Elderly Mentally Ill Residential Care,Charges from Independent Providers,"4,674.67",BRIGHSTONE CARE LTD
Revenue,Community Wellbeing & Social Care,5105649368,29.01.2014,Elderly Frail Residential Care,Charges from Independent Providers,"1,998.08",BRIGHSTONE CARE LTD
Revenue,Community Wellbeing & Social Care,5105649368,29.01.2014,Elderly Frail Residential Care,Charges from Independent Providers,"1,998.08",BRIGHSTONE CARE LTD
Revenue,Community Wellbeing & Social Care,5105649368,29.01.2014,Elderly Frail Residential Care,Charges from Independent Providers,"1,998.08",BRIGHSTONE CARE LTD
Revenue,Community Wellbeing & Social Care,5105649368,29.01.2014,Elderly Frail Residential Care,Charges from Independent Providers,"1,622.60",BRIGHSTONE CARE LTD
Revenue,Economy & Environment,5105643381,08.01.2014,Play Areas Health & Safety work,Payment to Private Contractors,792.00,BRIGHSTONE LANDSCAPING LTD
Revenue,Economy & Environment,5105650102,27.01.2014,Beach Safety & Inspection / Beach Awards,Payment to Private Contractors,260.00,BRIGHSTONE LANDSCAPING LTD
Revenue,Economy & Environment,5105647598,27.01.2014,Beach Cleaning,Payment to Private Contractors,480.00,BRIGHSTONE LANDSCAPING LTD
Revenue,Economy & Environment,5105647597,17.01.2014,Beach Cleaning,Payment to Private Contractors,215.00,BRIGHSTONE LANDSCAPING LTD
Revenue,Economy & Environment,5105647600,17.01.2014,Beach Cleaning,Payment to Private Contractors,295.00,BRIGHSTONE LANDSCAPING LTD
Revenue,Economy & Environment,5105648075,27.01.2014,Beach Cleaning,Payment to Private Contractors,"2,080.00",BRIGHSTONE LANDSCAPING LTD
Revenue,Economy & Environment,5105647990,27.01.2014,Beach Cleaning,Payment to Private Contractors,505.12,BRIGHSTONE LANDSCAPING LTD
Revenue,Economy & Environment,5105647962,27.01.2014,Beach Cleaning,Payment to Private Contractors,345.00,BRIGHSTONE LANDSCAPING LTD
Revenue,Economy & Environment,5105649058,27.01.2014,Beach Cleaning,Payment to Private Contractors,55.00,BRIGHSTONE LANDSCAPING LTD
Revenue,Economy & Environment,5105650101,27.01.2014,Beach Cleaning,Payment to Private Contractors,218.00,BRIGHSTONE LANDSCAPING LTD
Revenue,Economy & Environment,5105650336,29.01.2014,Beach Cleaning,Payment to Private Contractors,"2,800.00",BRIGHSTONE LANDSCAPING LTD
Revenue,Economy & Environment,5105649262,27.01.2014,Beach Cleaning,Beach Cleansing Contractors,"4,168.77",BRIGHSTONE LANDSCAPING LTD
Revenue,Economy & Environment,5105649060,29.01.2014,Other Grounds Maintenance,Payment to Private Contractors,190.00,BRIGHSTONE LANDSCAPING LTD
Revenue,Economy & Environment,5105647990,27.01.2014,Coast Protection,Payment to Private Contractors,54.88,BRIGHSTONE LANDSCAPING LTD
Revenue,Community Wellbeing & Social Care,5105645454,08.01.2014,Public Libraries Central,Purchase of Books,"3,187.50",BRIGHTSOLID PUBLISHING LTD
Revenue,Childrens Services,5105645505,08.01.2014,Adult Social Care - Workforce Development,Training,230.00,BROADHURST RESIDENTIAL HOME
Revenue,Community Wellbeing & Social Care,5105648067,24.01.2014,Drug Misuse - Adults,Payment to Private Contractors,"1,886.43",BROADREACH HOUSE
Revenue,Economy & Environment,5105648467,29.01.2014,Transport Fleet Administration,Vehicle Fuel Costs,307.77,BROADWAY GARAGE
Revenue,Community Wellbeing & Social Care,5105650465,29.01.2014,NHS Health Check Programme,Payment to Private Contractors,"1,347.00",BROOKSIDE HEALTH CENTRE
Revenue,Community Wellbeing & Social Care,5105650465,29.01.2014,Stop Smoking Services & Interventions,Payment to Private Contractors,560.00,BROOKSIDE HEALTH CENTRE
Revenue,Community Wellbeing & Social Care,5105650465,29.01.2014,Contraception,Payment to Private Contractors,"1,420.00",BROOKSIDE HEALTH CENTRE
Revenue,Community Wellbeing & Social Care,5105650465,29.01.2014,STI Tests & Treatment,Payment to Private Contractors,35.00,BROOKSIDE HEALTH CENTRE
Revenue,Economy & Environment,5105645658,08.01.2014,Ryde Sports Centre,Operational Equipment,39.00,BROXAP LTD
Revenue,Resources,5105650487,29.01.2014,Telephones,Fixed Telephones,629.30,BT FINANCE
Revenue,Economy & Environment,5105645289,10.01.2014,Diversity & Workforce,Training,"5,910.00",BUCKINGHAMSHIRE & MILTON KEYNES
Revenue,Community Wellbeing & Social Care,5105649392,29.01.2014,REDACTED PERSONAL DATA,Order Settlement,577.36,BUCKLAND CARE LTD
Revenue,Community Wellbeing & Social Care,5105649392,29.01.2014,REDACTED PERSONAL DATA,Order Settlement,"1,622.60",BUCKLAND CARE LTD
Revenue,Community Wellbeing & Social Care,5105649392,29.01.2014,REDACTED PERSONAL DATA,Order Settlement,"1,699.88",BUCKLAND CARE LTD
Revenue,Community Wellbeing & Social Care,5105649392,29.01.2014,REDACTED PERSONAL DATA,Order Settlement,"1,998.08",BUCKLAND CARE LTD
Revenue,Community Wellbeing & Social Care,5105645022,03.01.2014,Elderly Mentally Ill Residential Care,Charges from Independent Providers,"1,998.08",BUCKLAND CARE LTD
Revenue,Community Wellbeing & Social Care,5105645022,03.01.2014,Elderly Mentally Ill Residential Care,Charges from Independent Providers,570.88,BUCKLAND CARE LTD
Revenue,Community Wellbeing & Social Care,5105649392,29.01.2014,Elderly Mentally Ill Residential Care,Charges from Independent Providers,"1,699.88",BUCKLAND CARE LTD
Revenue,Community Wellbeing & Social Care,5105649392,29.01.2014,Elderly Mentally Ill Residential Care,Charges from Independent Providers,"1,998.08",BUCKLAND CARE LTD
Revenue,Community Wellbeing & Social Care,5105649392,29.01.2014,Elderly Mentally Ill Residential Care,Charges from Independent Providers,"1,699.88",BUCKLAND CARE LTD
Revenue,Community Wellbeing & Social Care,5105649392,29.01.2014,Elderly Mentally Ill Residential Care,Charges from Independent Providers,"1,998.08",BUCKLAND CARE LTD
Revenue,Community Wellbeing & Social Care,5105649392,29.01.2014,Elderly Mentally Ill Residential Care,Charges from Independent Providers,"1,699.88",BUCKLAND CARE LTD
Revenue,Community Wellbeing & Social Care,5105649392,29.01.2014,Elderly Mentally Ill Residential Care,Charges from Independent Providers,"1,699.88",BUCKLAND CARE LTD
Revenue,Community Wellbeing & Social Care,5105649297,29.01.2014,Elderly Mentally Ill Residential Care,Charges from Independent Providers,"1,517.75",BUCKLAND CARE LTD
Revenue,Community Wellbeing & Social Care,5105645022,03.01.2014,Elderly Frail Residential Care,Charges from Independent Providers,"1,998.08",BUCKLAND CARE LTD
Revenue,Community Wellbeing & Social Care,5105645022,03.01.2014,Elderly Frail Residential Care,Charges from Independent Providers,"1,498.56",BUCKLAND CARE LTD
Revenue,Community Wellbeing & Social Care,5105645022,03.01.2014,Elderly Frail Residential Care,Charges from Independent Providers,985.15,BUCKLAND CARE LTD
Revenue,Community Wellbeing & Social Care,5105645022,03.01.2014,Elderly Frail Residential Care,Charges from Independent Providers,"1,622.60",BUCKLAND CARE LTD
Revenue,Community Wellbeing & Social Care,5105649392,29.01.2014,Elderly Frail Residential Care,Charges from Independent Providers,"1,622.60",BUCKLAND CARE LTD
Revenue,Community Wellbeing & Social Care,5105649392,29.01.2014,Elderly Frail Residential Care,Charges from Independent Providers,"1,622.60",BUCKLAND CARE LTD
Revenue,Community Wellbeing & Social Care,5105649392,29.01.2014,Elderly Frail Residential Care,Charges from Independent Providers,"1,622.60",BUCKLAND CARE LTD
Revenue,Community Wellbeing & Social Care,5105649392,29.01.2014,Elderly Frail Residential Care,Charges from Independent Providers,"1,998.08",BUCKLAND CARE LTD
Revenue,Community Wellbeing & Social Care,5105649392,29.01.2014,Elderly Frail Residential Care,Charges from Independent Providers,"1,622.60",BUCKLAND CARE LTD
Revenue,Community Wellbeing & Social Care,5105649392,29.01.2014,Elderly Frail Residential Care,Charges from Independent Providers,"1,622.60",BUCKLAND CARE LTD
Revenue,Community Wellbeing & Social Care,5105649392,29.01.2014,Elderly Frail Residential Care,Charges from Independent Providers,"1,998.08",BUCKLAND CARE LTD
Revenue,Community Wellbeing & Social Care,5105649392,29.01.2014,Elderly Frail Residential Care,Charges from Independent Providers,"1,998.08",BUCKLAND CARE LTD
Revenue,Community Wellbeing & Social Care,5105649392,29.01.2014,Elderly Frail Residential Care,Charges from Independent Providers,"1,998.08",BUCKLAND CARE LTD
Revenue,Community Wellbeing & Social Care,5105649392,29.01.2014,Elderly Frail Residential Care,Charges from Independent Providers,"1,622.60",BUCKLAND CARE LTD
Revenue,Community Wellbeing & Social Care,5105649392,29.01.2014,Elderly Frail Residential Care,Charges from Independent Providers,"1,998.08",BUCKLAND CARE LTD
Revenue,Community Wellbeing & Social Care,5105647653,17.01.2014,Elderly Frail Residential Care,Charges from Independent Providers,570.88,BUCKLAND CARE LTD
Revenue,Community Wellbeing & Social Care,5105648094,22.01.2014,Elderly Frail Residential Care,Charges from Independent Providers,"2,212.16",BUCKLAND CARE LTD
Revenue,Community Wellbeing & Social Care,5105649375,29.01.2014,Elderly Mentally Ill Nursing Island,Regular Respite Care,"2,672.32",BUCKLAND CARE LTD
Revenue,Community Wellbeing & Social Care,5105649375,29.01.2014,Elderly Mentally Ill Nursing Island,Charges from Independent Providers,"2,672.32",BUCKLAND CARE LTD
Revenue,Community Wellbeing & Social Care,5105649375,29.01.2014,REDACTED PERSONAL DATA,Order Settlement,"2,672.32",BUCKLAND CARE LTD
Revenue,Community Wellbeing & Social Care,5105649375,29.01.2014,REDACTED PERSONAL DATA,Order Settlement,"2,672.32",BUCKLAND CARE LTD
Revenue,Community Wellbeing & Social Care,5105649375,29.01.2014,REDACTED PERSONAL DATA,Order Settlement,"2,672.32",BUCKLAND CARE LTD
Revenue,Community Wellbeing & Social Care,5105649375,29.01.2014,REDACTED PERSONAL DATA,Order Settlement,732.20,BUCKLAND CARE LTD
Revenue,Community Wellbeing & Social Care,5105649375,29.01.2014,Funded Nursing Care Island,Charges from Independent Providers,439.32,BUCKLAND CARE LTD
Revenue,Community Wellbeing & Social Care,5105649375,29.01.2014,Funded Nursing Care Island,Charges from Independent Providers,439.32,BUCKLAND CARE LTD
Revenue,Community Wellbeing & Social Care,5105649375,29.01.2014,Funded Nursing Care Island,Charges from Independent Providers,439.32,BUCKLAND CARE LTD
Revenue,Community Wellbeing & Social Care,5105649375,29.01.2014,Funded Nursing Care Island,Charges from Independent Providers,439.32,BUCKLAND CARE LTD
Revenue,Community Wellbeing & Social Care,5105649375,29.01.2014,Funded Nursing Care Island,Charges from Independent Providers,439.32,BUCKLAND CARE LTD
Revenue,Community Wellbeing & Social Care,5105649375,29.01.2014,Funded Nursing Care Island,Charges from Independent Providers,439.32,BUCKLAND CARE LTD
Revenue,Community Wellbeing & Social Care,5105649375,29.01.2014,Funded Nursing Care Island,Charges from Independent Providers,439.32,BUCKLAND CARE LTD
Revenue,Community Wellbeing & Social Care,5105649375,29.01.2014,Funded Nursing Care Island,Charges from Independent Providers,439.32,BUCKLAND CARE LTD
Revenue,Community Wellbeing & Social Care,5105649375,29.01.2014,Funded Nursing Care Island,Charges from Independent Providers,439.32,BUCKLAND CARE LTD
Revenue,Community Wellbeing & Social Care,5105645021,03.01.2014,Elderly Frail Nursing Island,Charges from Independent Providers,"1,908.80",BUCKLAND CARE LTD
Revenue,Community Wellbeing & Social Care,5105649375,29.01.2014,Elderly Frail Nursing Island,Charges from Independent Providers,"2,672.32",BUCKLAND CARE LTD
Revenue,Community Wellbeing & Social Care,5105649375,29.01.2014,Elderly Frail Nursing Island,Charges from Independent Providers,"2,672.32",BUCKLAND CARE LTD
Revenue,Community Wellbeing & Social Care,5105649375,29.01.2014,Elderly Frail Nursing Island,Charges from Independent Providers,"2,672.32",BUCKLAND CARE LTD
Revenue,Community Wellbeing & Social Care,5105649375,29.01.2014,Elderly Frail Nursing Island,Charges from Independent Providers,"2,672.32",BUCKLAND CARE LTD
Revenue,Community Wellbeing & Social Care,5105649375,29.01.2014,Elderly Frail Nursing Island,Charges from Independent Providers,"2,672.32",BUCKLAND CARE LTD
Revenue,Community Wellbeing & Social Care,5105649375,29.01.2014,Elderly Frail Nursing Island,Charges from Independent Providers,"2,672.32",BUCKLAND CARE LTD
Revenue,Community Wellbeing & Social Care,5105649375,29.01.2014,Elderly Frail Nursing Island,Charges from Independent Providers,"2,672.32",BUCKLAND CARE LTD
Revenue,Community Wellbeing & Social Care,5105649375,29.01.2014,Elderly Frail Nursing Island,Charges from Independent Providers,"2,672.32",BUCKLAND CARE LTD
Revenue,Community Wellbeing & Social Care,5105649375,29.01.2014,Elderly Frail Nursing Island,Charges from Independent Providers,"2,672.32",BUCKLAND CARE LTD
Revenue,Community Wellbeing & Social Care,5105646684,29.01.2014,Elderly Frail Nursing Island,Charges from Independent Providers,337.12,BUCKLAND CARE LTD
Revenue,Community Wellbeing & Social Care,5105645200,03.01.2014,Plean Dene,Consumable Cleaning Materials,306.28,BUNZL CLEANING & HYGIENE SUPPLIES LTD
Revenue,Community Wellbeing & Social Care,5105649739,29.01.2014,Elderly Frail Nursing Mainland,Charges from Independent Providers,"1,841.84",BUPA CARE HOME (BNH) LTD
Revenue,Resources,5105650242,31.01.2014,Human Resources,Training,"1,495.00",BUSINESS COACHING & DEVELOPMENT LTD
Revenue,Community Wellbeing & Social Care,5105648592,24.01.2014,40 Venner Avenue,Operational Equipment,165.83,BUYWISE
Revenue,Community Wellbeing & Social Care,5105648592,24.01.2014,40 Venner Avenue,Operational Equipment,83.33,BUYWISE
Revenue,Community Wellbeing & Social Care,5105650331,31.01.2014,Plean Dene,Minor Works,75.00,C & J GROUND MAINTENANCE
Revenue,Childrens Services,5105642425,08.01.2014,Beaulieu House,Grounds Maintenance,225.00,C & J GROUND MAINTENANCE
Revenue,Childrens Services,5105634143,08.01.2014,Beaulieu House,Grounds Maintenance,450.00,C & J GROUND MAINTENANCE
Revenue,Resources,5105650333,29.01.2014,Properties  - Other Properties,Grounds Maintenance,75.00,C & J GROUND MAINTENANCE
Revenue,Resources,5105650334,31.01.2014,Properties  - Other Properties,Grounds Maintenance,210.00,C & J GROUND MAINTENANCE
Revenue,Resources,5105646383,31.01.2014,Properties  - Other Properties,Grounds Maintenance,170.00,C & J GROUND MAINTENANCE
Revenue,Resources,5105650335,31.01.2014,Rechargeable Properties,Minor Works,575.00,C & J GROUND MAINTENANCE
Revenue,Resources,5105647601,24.01.2014,Rechargeable Properties,Grounds Maintenance,218.00,C & J GROUND MAINTENANCE
Revenue,Resources,5105647604,24.01.2014,Rechargeable Properties,Grounds Maintenance,350.00,C & J GROUND MAINTENANCE
Revenue,Economy & Environment,5105643936,24.01.2014,Fire Operations,Grounds Maintenance,"1,000.00",C & J GROUND MAINTENANCE
Revenue,Resources,5105650757,31.01.2014,Properties Industrial Estates,Grounds Maintenance,80.00,C & J GROUND MAINTENANCE
Revenue,Resources,5105650457,29.01.2014,Properties Industrial Estates,Grounds Maintenance,-80.00,C & J GROUND MAINTENANCE
Revenue,Resources,5105650332,29.01.2014,Properties Industrial Estates,Grounds Maintenance,80.00,C & J GROUND MAINTENANCE
Revenue,Childrens Services,5105645847,10.01.2014,In-house Fostering,Boarding Out Allowances,16.50,REDACTED PERSONAL DATA
Revenue,Childrens Services,5105648773,24.01.2014,In-house Fostering,Boarding Out Allowances,16.50,REDACTED PERSONAL DATA
Revenue,Childrens Services,5105650691,31.01.2014,In-house Fostering,Boarding Out Allowances,16.50,REDACTED PERSONAL DATA
Revenue,Childrens Services,5105647390,17.01.2014,In-house Fostering,Boarding Out Allowances,16.50,REDACTED PERSONAL DATA
Revenue,Childrens Services,5105645128,03.01.2014,In-house Fostering,Boarding Out Allowances,16.50,REDACTED PERSONAL DATA
Revenue,Childrens Services,5105648744,24.01.2014,Children placed with Family & Friends,Boarding Out Allowances,257.29,REDACTED PERSONAL DATA
Revenue,Childrens Services,5105645818,10.01.2014,Children placed with Family & Friends,Boarding Out Allowances,257.29,REDACTED PERSONAL DATA
Revenue,Childrens Services,5105650662,31.01.2014,Children placed with Family & Friends,Boarding Out Allowances,257.29,REDACTED PERSONAL DATA
Revenue,Childrens Services,5105647361,17.01.2014,Children placed with Family & Friends,Boarding Out Allowances,257.29,REDACTED PERSONAL DATA
Revenue,Childrens Services,5105645099,03.01.2014,Children placed with Family & Friends,Boarding Out Allowances,257.29,REDACTED PERSONAL DATA
Revenue,Childrens Services,5105650636,31.01.2014,Special Guardianship Order Costs,Support Children,125.79,REDACTED PERSONAL DATA
Revenue,Childrens Services,5105647336,17.01.2014,Special Guardianship Order Costs,Support Children,125.79,REDACTED PERSONAL DATA
Revenue,Childrens Services,5105648716,24.01.2014,Special Guardianship Order Costs,Support Children,125.79,REDACTED PERSONAL DATA
Revenue,Childrens Services,5105645794,10.01.2014,Special Guardianship Order Costs,Support Children,125.79,REDACTED PERSONAL DATA
Revenue,Childrens Services,5105645075,03.01.2014,Special Guardianship Order Costs,Support Children,125.79,REDACTED PERSONAL DATA
Revenue,Economy & Environment,5105648065,20.01.2014,Play Areas Health & Safety work,Payment to Private Contractors,27.49,C BREWER & SONS LTD
Revenue,Economy & Environment,5105647078,15.01.2014,Fort Victoria,General Materials,102.61,C BREWER & SONS LTD
Revenue,Childrens Services,5105648780,24.01.2014,Children placed with Family & Friends,Boarding Out Allowances,130.20,REDACTED PERSONAL DATA
Revenue,Childrens Services,5105645135,03.01.2014,Children placed with Family & Friends,Boarding Out Allowances,130.20,REDACTED PERSONAL DATA
Revenue,Childrens Services,5105645854,10.01.2014,Children placed with Family & Friends,Boarding Out Allowances,130.20,REDACTED PERSONAL DATA
Revenue,Childrens Services,5105650698,31.01.2014,Children placed with Family & Friends,Boarding Out Allowances,130.20,REDACTED PERSONAL DATA
Revenue,Childrens Services,5105647397,17.01.2014,Children placed with Family & Friends,Boarding Out Allowances,130.20,REDACTED PERSONAL DATA
Revenue,Childrens Services,5105646658,15.01.2014,Court Work & Consultancy Services,Legal Fees - Other Parties,"1,450.00",12 COLLEGE PLACE BARRISTERS
Revenue,Childrens Services,5105645829,10.01.2014,Adoption Costs,Support Children,125.79,REDACTED PERSONAL DATA
Revenue,Childrens Services,5105645829,10.01.2014,Adoption Costs,Support Children,132.69,REDACTED PERSONAL DATA
Revenue,Childrens Services,5105650673,31.01.2014,Adoption Costs,Support Children,125.79,REDACTED PERSONAL DATA
Revenue,Childrens Services,5105650673,31.01.2014,Adoption Costs,Support Children,132.69,REDACTED PERSONAL DATA
Revenue,Childrens Services,5105648755,24.01.2014,Adoption Costs,Support Children,125.79,REDACTED PERSONAL DATA
Revenue,Childrens Services,5105648755,24.01.2014,Adoption Costs,Support Children,132.69,REDACTED PERSONAL DATA
Revenue,Childrens Services,5105647372,17.01.2014,Adoption Costs,Support Children,125.79,REDACTED PERSONAL DATA
Revenue,Childrens Services,5105647372,17.01.2014,Adoption Costs,Support Children,132.69,REDACTED PERSONAL DATA
Revenue,Childrens Services,5105645110,03.01.2014,Adoption Costs,Support Children,125.79,REDACTED PERSONAL DATA
Revenue,Childrens Services,5105645110,03.01.2014,Adoption Costs,Support Children,132.69,REDACTED PERSONAL DATA
Revenue,Resources,5105649194,24.01.2014,Staff Benefits,Payment to Private Contractors,138.72,REDACTED PERSONAL DATA
Revenue,Childrens Services,5105645094,03.01.2014,Leaving Care Costs,Support Children,120.89,REDACTED PERSONAL DATA
Revenue,Childrens Services,5105645094,03.01.2014,Leaving Care Costs,Support Children,60.45,REDACTED PERSONAL DATA
Revenue,Childrens Services,5105648739,24.01.2014,Leaving Care Costs,Support Children,120.89,REDACTED PERSONAL DATA
Revenue,Childrens Services,5105648739,24.01.2014,Leaving Care Costs,Support Children,120.89,REDACTED PERSONAL DATA
Revenue,Childrens Services,5105648739,24.01.2014,Leaving Care Costs,Support Children,60.45,REDACTED PERSONAL DATA
Revenue,Childrens Services,5105645094,03.01.2014,Leaving Care Costs,Support Children,120.89,REDACTED PERSONAL DATA
Revenue,Childrens Services,5105650657,31.01.2014,Leaving Care Costs,Support Children,120.89,REDACTED PERSONAL DATA
Revenue,Childrens Services,5105650657,31.01.2014,Leaving Care Costs,Support Children,120.89,REDACTED PERSONAL DATA
Revenue,Childrens Services,5105650657,31.01.2014,Leaving Care Costs,Support Children,60.45,REDACTED PERSONAL DATA
Revenue,Childrens Services,5105645094,03.01.2014,Leaving Care Costs,Accommodation Costs - Service Users,57.50,REDACTED PERSONAL DATA
Revenue,Childrens Services,5105650657,31.01.2014,Leaving Care Costs,Accommodation Costs - Service Users,57.50,REDACTED PERSONAL DATA
Revenue,Childrens Services,5105650657,31.01.2014,Leaving Care Costs,Accommodation Costs - Service Users,57.50,REDACTED PERSONAL DATA
Revenue,Childrens Services,5105647356,17.01.2014,Leaving Care Costs,Accommodation Costs - Service Users,57.50,REDACTED PERSONAL DATA
Revenue,Childrens Services,5105648739,24.01.2014,Leaving Care Costs,Accommodation Costs - Service Users,57.50,REDACTED PERSONAL DATA
Revenue,Childrens Services,5105648739,24.01.2014,Leaving Care Costs,Accommodation Costs - Service Users,57.50,REDACTED PERSONAL DATA
Revenue,Childrens Services,5105645094,03.01.2014,Leaving Care Costs,Accommodation Costs - Service Users,57.50,REDACTED PERSONAL DATA
Revenue,Childrens Services,5105645813,10.01.2014,Leaving Care Costs,Accommodation Costs - Service Users,57.50,REDACTED PERSONAL DATA
Revenue,Childrens Services,5105645813,10.01.2014,Leaving Care Costs,Accommodation Costs - Service Users,57.50,REDACTED PERSONAL DATA
Revenue,Childrens Services,5105647356,17.01.2014,Leaving Care Costs,Accommodation Costs - Service Users,57.50,REDACTED PERSONAL DATA
Revenue,Childrens Services,5105645813,10.01.2014,Leaving Care Costs,Support Children,120.89,REDACTED PERSONAL DATA
Revenue,Childrens Services,5105645813,10.01.2014,Leaving Care Costs,Support Children,120.89,REDACTED PERSONAL DATA
Revenue,Childrens Services,5105645813,10.01.2014,Leaving Care Costs,Support Children,60.45,REDACTED PERSONAL DATA
Revenue,Childrens Services,5105647356,17.01.2014,Leaving Care Costs,Support Children,120.89,REDACTED PERSONAL DATA
Revenue,Childrens Services,5105647356,17.01.2014,Leaving Care Costs,Support Children,60.45,REDACTED PERSONAL DATA
Revenue,Childrens Services,5105647356,17.01.2014,Leaving Care Costs,Support Children,120.89,REDACTED PERSONAL DATA
Revenue,Childrens Services,5105650652,31.01.2014,Special Guardianship Order Costs,Support Children,125.79,REDACTED PERSONAL DATA
Revenue,Childrens Services,5105647351,17.01.2014,Special Guardianship Order Costs,Support Children,125.79,REDACTED PERSONAL DATA
Revenue,Childrens Services,5105648734,24.01.2014,Special Guardianship Order Costs,Support Children,125.79,REDACTED PERSONAL DATA
Revenue,Childrens Services,5105645808,10.01.2014,Special Guardianship Order Costs,Support Children,125.79,REDACTED PERSONAL DATA
Revenue,Childrens Services,5105645089,03.01.2014,Special Guardianship Order Costs,Support Children,125.79,REDACTED PERSONAL DATA
Revenue,Childrens Services,5105645797,10.01.2014,Adoption Costs,Support Children,168.39,REDACTED PERSONAL DATA
Revenue,Childrens Services,5105645797,10.01.2014,Adoption Costs,Support Children,168.39,REDACTED PERSONAL DATA
Revenue,Childrens Services,5105650639,31.01.2014,Adoption Costs,Support Children,168.39,REDACTED PERSONAL DATA
Revenue,Childrens Services,5105650639,31.01.2014,Adoption Costs,Support Children,168.39,REDACTED PERSONAL DATA
Revenue,Childrens Services,5105647339,17.01.2014,Adoption Costs,Support Children,168.39,REDACTED PERSONAL DATA
Revenue,Childrens Services,5105647339,17.01.2014,Adoption Costs,Support Children,168.39,REDACTED PERSONAL DATA
Revenue,Childrens Services,5105648719,24.01.2014,Adoption Costs,Support Children,168.39,REDACTED PERSONAL DATA
Revenue,Childrens Services,5105648719,24.01.2014,Adoption Costs,Support Children,168.39,REDACTED PERSONAL DATA
Revenue,Childrens Services,5105645078,03.01.2014,Adoption Costs,Support Children,168.39,REDACTED PERSONAL DATA
Revenue,Childrens Services,5105645078,03.01.2014,Adoption Costs,Support Children,168.39,REDACTED PERSONAL DATA
Revenue,Childrens Services,5105650722,31.01.2014,Special Guardianship Order Costs,Support Children,116.80,REDACTED PERSONAL DATA
Revenue,Childrens Services,5105645880,10.01.2014,Special Guardianship Order Costs,Support Children,116.80,REDACTED PERSONAL DATA
Revenue,Childrens Services,5105647421,17.01.2014,Special Guardianship Order Costs,Support Children,116.80,REDACTED PERSONAL DATA
Revenue,Childrens Services,5105645161,03.01.2014,Special Guardianship Order Costs,Support Children,116.80,REDACTED PERSONAL DATA
Revenue,Childrens Services,5105648804,24.01.2014,Special Guardianship Order Costs,Support Children,116.80,REDACTED PERSONAL DATA
Revenue,Childrens Services,5105645791,10.01.2014,In-house Fostering,Boarding Out Allowances,136.42,REDACTED PERSONAL DATA
Revenue,Childrens Services,5105650633,31.01.2014,In-house Fostering,Boarding Out Allowances,221.13,REDACTED PERSONAL DATA
Revenue,Childrens Services,5105650633,31.01.2014,In-house Fostering,Boarding Out Allowances,250.00,REDACTED PERSONAL DATA
Revenue,Childrens Services,5105645072,03.01.2014,In-house Fostering,Boarding Out Allowances,268.21,REDACTED PERSONAL DATA
Revenue,Childrens Services,5105645072,03.01.2014,In-house Fostering,Boarding Out Allowances,238.87,REDACTED PERSONAL DATA
Revenue,Childrens Services,5105645791,10.01.2014,In-house Fostering,Boarding Out Allowances,221.13,REDACTED PERSONAL DATA
Revenue,Childrens Services,5105645791,10.01.2014,In-house Fostering,Boarding Out Allowances,10.00,REDACTED PERSONAL DATA
Revenue,Childrens Services,5105645072,03.01.2014,In-house Fostering,Boarding Out Allowances,221.13,REDACTED PERSONAL DATA
Revenue,Childrens Services,5105650633,31.01.2014,In-house Fostering,Boarding Out Allowances,268.21,REDACTED PERSONAL DATA
Revenue,Childrens Services,5105648713,24.01.2014,In-house Fostering,Boarding Out Allowances,221.13,REDACTED PERSONAL DATA
Revenue,Childrens Services,5105648713,24.01.2014,In-house Fostering,Boarding Out Allowances,250.00,REDACTED PERSONAL DATA
Revenue,Childrens Services,5105648713,24.01.2014,In-house Fostering,Boarding Out Allowances,268.21,REDACTED PERSONAL DATA
Revenue,Childrens Services,5105648713,24.01.2014,In-house Fostering,Boarding Out Allowances,221.13,REDACTED PERSONAL DATA
Revenue,Childrens Services,5105648713,24.01.2014,In-house Fostering,Boarding Out Allowances,10.00,REDACTED PERSONAL DATA
Revenue,Childrens Services,5105647333,17.01.2014,In-house Fostering,Boarding Out Allowances,268.21,REDACTED PERSONAL DATA
Revenue,Childrens Services,5105647333,17.01.2014,In-house Fostering,Boarding Out Allowances,221.13,REDACTED PERSONAL DATA
Revenue,Childrens Services,5105647333,17.01.2014,In-house Fostering,Boarding Out Allowances,250.00,REDACTED PERSONAL DATA
Revenue,Childrens Services,5105650633,31.01.2014,In-house Fostering,Boarding Out Allowances,221.13,REDACTED PERSONAL DATA
Revenue,Childrens Services,5105650633,31.01.2014,In-house Fostering,Boarding Out Allowances,10.00,REDACTED PERSONAL DATA
Revenue,Childrens Services,5105645791,10.01.2014,In-house Fostering,Boarding Out Allowances,268.21,REDACTED PERSONAL DATA
Revenue,Childrens Services,5105647333,17.01.2014,In-house Fostering,Boarding Out Allowances,221.13,REDACTED PERSONAL DATA
Revenue,Childrens Services,5105647333,17.01.2014,In-house Fostering,Boarding Out Allowances,10.00,REDACTED PERSONAL DATA
Revenue,Childrens Services,5105645072,03.01.2014,In-house Fostering,Boarding Out Allowances,10.00,REDACTED PERSONAL DATA
Revenue,Childrens Services,5105645072,03.01.2014,In-house Fostering,Boarding Out Allowances,221.13,REDACTED PERSONAL DATA
Revenue,Childrens Services,5105645317,06.01.2014,Leaving Care Costs,Support Children,120.89,REDACTED PERSONAL DATA
Revenue,Childrens Services,5105645728,10.01.2014,Leaving Care Costs,Support Children,120.89,REDACTED PERSONAL DATA
Revenue,Childrens Services,5105647269,17.01.2014,Leaving Care Costs,Support Children,120.89,REDACTED PERSONAL DATA
Revenue,Childrens Services,5105648649,24.01.2014,Leaving Care Costs,Support Children,120.89,REDACTED PERSONAL DATA
Revenue,Childrens Services,5105650569,31.01.2014,Leaving Care Costs,Support Children,120.89,REDACTED PERSONAL DATA
Revenue,Childrens Services,5105645317,06.01.2014,Leaving Care Costs,Accommodation Costs - Service Users,57.50,REDACTED PERSONAL DATA
Revenue,Childrens Services,5105650569,31.01.2014,Leaving Care Costs,Accommodation Costs - Service Users,57.50,REDACTED PERSONAL DATA
Revenue,Childrens Services,5105647269,17.01.2014,Leaving Care Costs,Accommodation Costs - Service Users,57.50,REDACTED PERSONAL DATA
Revenue,Childrens Services,5105648649,24.01.2014,Leaving Care Costs,Accommodation Costs - Service Users,57.50,REDACTED PERSONAL DATA
Revenue,Childrens Services,5105645728,10.01.2014,Leaving Care Costs,Accommodation Costs - Service Users,57.50,REDACTED PERSONAL DATA
Revenue,Resources,5105648199,24.01.2014,Litigation Costs,Legal Fees - Other Parties,51.08,REDACTED PERSONAL DATA
Revenue,Childrens Services,5105650608,31.01.2014,In-house Fostering,Boarding Out Allowances,221.13,REDACTED PERSONAL DATA
Revenue,Childrens Services,5105645767,10.01.2014,In-house Fostering,Boarding Out Allowances,221.13,REDACTED PERSONAL DATA
Revenue,Childrens Services,5105645767,10.01.2014,In-house Fostering,Boarding Out Allowances,15.00,REDACTED PERSONAL DATA
Revenue,Childrens Services,5105648688,24.01.2014,In-house Fostering,Boarding Out Allowances,221.13,REDACTED PERSONAL DATA
Revenue,Childrens Services,5105648688,24.01.2014,In-house Fostering,Boarding Out Allowances,221.13,REDACTED PERSONAL DATA
Revenue,Childrens Services,5105648688,24.01.2014,In-house Fostering,Boarding Out Allowances,15.00,REDACTED PERSONAL DATA
Revenue,Childrens Services,5105650608,31.01.2014,In-house Fostering,Boarding Out Allowances,221.13,REDACTED PERSONAL DATA
Revenue,Childrens Services,5105650608,31.01.2014,In-house Fostering,Boarding Out Allowances,15.00,REDACTED PERSONAL DATA
Revenue,Childrens Services,5105647308,17.01.2014,In-house Fostering,Boarding Out Allowances,221.13,REDACTED PERSONAL DATA
Revenue,Childrens Services,5105647308,17.01.2014,In-house Fostering,Boarding Out Allowances,15.00,REDACTED PERSONAL DATA
Revenue,Childrens Services,5105645047,03.01.2014,In-house Fostering,Boarding Out Allowances,15.00,REDACTED PERSONAL DATA
Revenue,Childrens Services,5105645047,03.01.2014,In-house Fostering,Boarding Out Allowances,221.13,REDACTED PERSONAL DATA
Revenue,Childrens Services,5105647328,17.01.2014,Children placed with Family & Friends,Boarding Out Allowances,100.00,REDACTED PERSONAL DATA
Revenue,Childrens Services,5105648708,24.01.2014,Children placed with Family & Friends,Boarding Out Allowances,181.79,REDACTED PERSONAL DATA
Revenue,Childrens Services,5105648708,24.01.2014,Children placed with Family & Friends,Boarding Out Allowances,100.00,REDACTED PERSONAL DATA
Revenue,Childrens Services,5105650628,31.01.2014,Children placed with Family & Friends,Boarding Out Allowances,181.79,REDACTED PERSONAL DATA
Revenue,Childrens Services,5105650628,31.01.2014,Children placed with Family & Friends,Boarding Out Allowances,100.00,REDACTED PERSONAL DATA
Revenue,Childrens Services,5105645068,03.01.2014,Children placed with Family & Friends,Boarding Out Allowances,181.79,REDACTED PERSONAL DATA
Revenue,Childrens Services,5105645068,03.01.2014,Children placed with Family & Friends,Boarding Out Allowances,100.00,REDACTED PERSONAL DATA
Revenue,Childrens Services,5105647328,17.01.2014,Children placed with Family & Friends,Boarding Out Allowances,181.79,REDACTED PERSONAL DATA
Revenue,Childrens Services,5105645787,10.01.2014,Children placed with Family & Friends,Boarding Out Allowances,181.79,REDACTED PERSONAL DATA
Revenue,Childrens Services,5105645787,10.01.2014,Children placed with Family & Friends,Boarding Out Allowances,100.00,REDACTED PERSONAL DATA
Revenue,Economy & Environment,5105648253,22.01.2014,Parks and Gardens Misc Equip & Works,Payment to Private Contractors,"1,363.14",C N SERVICES
Revenue,Economy & Environment,5105648253,22.01.2014,Play Areas Health & Safety work,Payment to Private Contractors,38.12,C N SERVICES
Revenue,Economy & Environment,5105648255,22.01.2014,Play Areas Health & Safety work,Payment to Private Contractors,295.50,C N SERVICES
Revenue,Economy & Environment,5105645591,08.01.2014,Beach Safety & Inspection / Beach Awards,Payment to Private Contractors,215.50,C N SERVICES
Revenue,Economy & Environment,5105648251,22.01.2014,Other Grounds Maintenance,Payment to Private Contractors,719.25,C N SERVICES
Revenue,Economy & Environment,5105645589,08.01.2014,Ryde Depot,Payment to Private Contractors,"1,258.00",C N SERVICES
Revenue,Childrens Services,5105645040,03.01.2014,In-house Fostering,Regular Respite Care,120.00,REDACTED PERSONAL DATA
Revenue,Childrens Services,5105645760,10.01.2014,In-house Fostering,Regular Respite Care,120.00,REDACTED PERSONAL DATA
Revenue,Childrens Services,5105650601,31.01.2014,In-house Fostering,Regular Respite Care,120.00,REDACTED PERSONAL DATA
Revenue,Childrens Services,5105647301,17.01.2014,In-house Fostering,Regular Respite Care,120.00,REDACTED PERSONAL DATA
Revenue,Childrens Services,5105648681,24.01.2014,In-house Fostering,Regular Respite Care,120.00,REDACTED PERSONAL DATA
Revenue,Resources,5105649205,24.01.2014,Staff Benefits,Payment to Private Contractors,240.00,REDACTED PERSONAL DATA
Revenue,Childrens Services,5105650643,31.01.2014,In-house Fostering,Boarding Out Allowances,130.20,REDACTED PERSONAL DATA
Revenue,Childrens Services,5105645800,10.01.2014,In-house Fostering,Boarding Out Allowances,130.20,REDACTED PERSONAL DATA
Revenue,Childrens Services,5105645800,10.01.2014,In-house Fostering,Boarding Out Allowances,10.00,REDACTED PERSONAL DATA
Revenue,Childrens Services,5105648723,24.01.2014,In-house Fostering,Boarding Out Allowances,130.20,REDACTED PERSONAL DATA
Revenue,Childrens Services,5105648723,24.01.2014,In-house Fostering,Boarding Out Allowances,130.20,REDACTED PERSONAL DATA
Revenue,Childrens Services,5105648723,24.01.2014,In-house Fostering,Boarding Out Allowances,10.00,REDACTED PERSONAL DATA
Revenue,Childrens Services,5105647343,17.01.2014,In-house Fostering,Boarding Out Allowances,130.20,REDACTED PERSONAL DATA
Revenue,Childrens Services,5105650643,31.01.2014,In-house Fostering,Boarding Out Allowances,130.20,REDACTED PERSONAL DATA
Revenue,Childrens Services,5105650643,31.01.2014,In-house Fostering,Boarding Out Allowances,10.00,REDACTED PERSONAL DATA
Revenue,Childrens Services,5105645081,03.01.2014,In-house Fostering,Boarding Out Allowances,10.00,REDACTED PERSONAL DATA
Revenue,Childrens Services,5105647343,17.01.2014,In-house Fostering,Boarding Out Allowances,130.20,REDACTED PERSONAL DATA
Revenue,Childrens Services,5105647343,17.01.2014,In-house Fostering,Boarding Out Allowances,10.00,REDACTED PERSONAL DATA
Revenue,Childrens Services,5105645081,03.01.2014,In-house Fostering,Boarding Out Allowances,130.20,REDACTED PERSONAL DATA
Revenue,Childrens Services,5105645170,03.01.2014,Children placed with Family & Friends,Boarding Out Allowances,181.79,REDACTED PERSONAL DATA
Revenue,Childrens Services,5105648813,24.01.2014,Children placed with Family & Friends,Boarding Out Allowances,181.79,REDACTED PERSONAL DATA
Revenue,Childrens Services,5105650731,31.01.2014,Children placed with Family & Friends,Boarding Out Allowances,181.79,REDACTED PERSONAL DATA
Revenue,Childrens Services,5105647430,17.01.2014,Children placed with Family & Friends,Boarding Out Allowances,181.79,REDACTED PERSONAL DATA
Revenue,Childrens Services,5105645889,10.01.2014,Children placed with Family & Friends,Boarding Out Allowances,181.79,REDACTED PERSONAL DATA
Revenue,Childrens Services,5105650666,31.01.2014,Special Guardianship Order Costs,Support Children,125.79,REDACTED PERSONAL DATA
Revenue,Childrens Services,5105645822,10.01.2014,Special Guardianship Order Costs,Support Children,125.79,REDACTED PERSONAL DATA
Revenue,Childrens Services,5105647365,17.01.2014,Special Guardianship Order Costs,Support Children,125.79,REDACTED PERSONAL DATA
Revenue,Childrens Services,5105645103,03.01.2014,Special Guardianship Order Costs,Support Children,125.79,REDACTED PERSONAL DATA
Revenue,Childrens Services,5105648748,24.01.2014,Special Guardianship Order Costs,Support Children,125.79,REDACTED PERSONAL DATA
Revenue,Community Wellbeing & Social Care,5105649328,29.01.2014,Learning Disability Residential Care,Charges from Independent Providers,"1,811.88",REDACTED PERSONAL DATA
Revenue,Childrens Services,5105645792,10.01.2014,Adoption Costs,Support Children,132.69,REDACTED PERSONAL DATA
Revenue,Childrens Services,5105650634,31.01.2014,Adoption Costs,Support Children,132.69,REDACTED PERSONAL DATA
Revenue,Childrens Services,5105647334,17.01.2014,Adoption Costs,Support Children,132.69,REDACTED PERSONAL DATA
Revenue,Childrens Services,5105648714,24.01.2014,Adoption Costs,Support Children,132.69,REDACTED PERSONAL DATA
Revenue,Childrens Services,5105645073,03.01.2014,Adoption Costs,Support Children,132.69,REDACTED PERSONAL DATA
Revenue,Resources,5105647542,17.01.2014,ICT Contracts,Computer Maintenance,"2,701.63",CABLE & WIRELESS WORLDWIDE
Revenue,Childrens Services,5105651071,31.01.2014,Youth Offending Team,Computer Maintenance,110.50,CACI LIMITED
Revenue,Childrens Services,5105651071,31.01.2014,Youth Offending Team,Computer Maintenance,"4,250.00",CACI LIMITED
Revenue,Economy & Environment,5105645546,08.01.2014,Development Control,Hire of facilities,150.00,CALBOURNE RECREATION CENTRE
Revenue,Community Wellbeing & Social Care,5105646149,24.01.2014,Training - Childrens,Training,"9,800.00",CALDER TRAINING & CONSULTANCY LTD
Revenue,Community Wellbeing & Social Care,5105642668,15.01.2014,Workforce Development -  Westridge Centre,Gas,417.90,CALOR GAS LIMITED
Revenue,Community Wellbeing & Social Care,5105646671,22.01.2014,Workforce Development -  Westridge Centre,Gas,416.64,CALOR GAS LIMITED
Revenue,Resources,5105650192,29.01.2014,Fraud Section,Office Equipment,75.00,CANFORD AUDIO PLC
Revenue,Resources,5105650192,29.01.2014,Fraud Section,Office Equipment,24.50,CANFORD AUDIO PLC
Revenue,Economy & Environment,5105650524,29.01.2014,Planning Business Support,Office Equipment,133.14,CANON (UK) LTD
Revenue,Community Wellbeing & Social Care,5105646640,15.01.2014,Archives,Printing Costs,204.00,CAPITA BUSINESS SERVICES LTD
Capital,Resources,5105648493,24.01.2014,Server Farm,ICT Hardware & Software - Capital,"4,502.58",CAPITA BUSINESS SERVICES LTD
Capital,Resources,5105648493,24.01.2014,Server Farm,ICT Hardware & Software - Capital,"2,927.42",CAPITA BUSINESS SERVICES LTD
Capital,Resources,5105648493,24.01.2014,Server Farm,ICT Hardware & Software - Capital,250.00,CAPITA BUSINESS SERVICES LTD
Capital,Resources,5105648493,24.01.2014,Server Farm,ICT Hardware & Software - Capital,"2,250.00",CAPITA BUSINESS SERVICES LTD
Revenue,Childrens Services,5105650230,29.01.2014,Thompson House Tuition Centre (PRU),Professional Services,525.00,CAPITA BUSINESS SERVICES LTD
Revenue,Resources,5105646667,29.01.2014,Human Resources,Agency staff,250.00,CAPITA RESOURCING LTD
Revenue,Resources,5105646666,24.01.2014,Human Resources,Agency staff,"1,950.00",CAPITA RESOURCING LTD
Revenue,Childrens Services,5105650877,31.01.2014,Purchased Fostering,Charges from Independent Providers,"4,207.01",CAPSTONE FOSTER CARE LTD
Revenue,Childrens Services,5105645438,08.01.2014,Purchased Fostering,Charges from Independent Providers,-898.20,CAPSTONE FOSTER CARE LTD
Revenue,Childrens Services,5105645435,08.01.2014,Purchased Fostering,Charges from Independent Providers,"4,207.01",CAPSTONE FOSTER CARE LTD
Revenue,Economy & Environment,5105650500,29.01.2014,Fire Technical Support,Operational Equipment,100.00,CARDIAC SCIENCE HOLDINGS UK LTD
Revenue,Economy & Environment,5105650500,29.01.2014,Fire Technical Support,Postage,5.95,CARDIAC SCIENCE HOLDINGS UK LTD
Revenue,Community Wellbeing & Social Care,5105646493,15.01.2014,Physical Disability Homecare,Regular Respite Care,116.16,CARE FIRST IW LTD
Revenue,Community Wellbeing & Social Care,5105647451,17.01.2014,Mental Health Homecare,Charges from Independent Providers,174.24,CARE FIRST IW LTD
Revenue,Community Wellbeing & Social Care,5105646486,15.01.2014,Physical Disability Homecare,Charges from Independent Providers,"2,228.82",CARE FIRST IW LTD
Revenue,Community Wellbeing & Social Care,5105646494,15.01.2014,Elderly Frail Homecare,Regular Respite Care,232.32,CARE FIRST IW LTD
Revenue,Community Wellbeing & Social Care,5105646498,15.01.2014,Elderly Frail Homecare,Regular Respite Care,116.16,CARE FIRST IW LTD
Revenue,Community Wellbeing & Social Care,5105646500,15.01.2014,Elderly Frail Homecare,Regular Respite Care,348.48,CARE FIRST IW LTD
Revenue,Community Wellbeing & Social Care,5105646479,15.01.2014,Elderly Frail Homecare,Regular Respite Care,116.16,CARE FIRST IW LTD
Revenue,Community Wellbeing & Social Care,5105647708,17.01.2014,Elderly Frail Homecare,Charges from Independent Providers,87.12,CARE FIRST IW LTD
Revenue,Community Wellbeing & Social Care,5105647705,17.01.2014,Elderly Frail Homecare,Charges from Independent Providers,221.43,CARE FIRST IW LTD
Revenue,Community Wellbeing & Social Care,5105647706,17.01.2014,Elderly Frail Homecare,Charges from Independent Providers,116.16,CARE FIRST IW LTD
Revenue,Community Wellbeing & Social Care,5105647707,17.01.2014,Elderly Frail Homecare,Charges from Independent Providers,116.16,CARE FIRST IW LTD
Revenue,Community Wellbeing & Social Care,5105646496,15.01.2014,Elderly Frail Homecare,Charges from Independent Providers,203.28,CARE FIRST IW LTD
Revenue,Community Wellbeing & Social Care,5105646497,15.01.2014,Elderly Frail Homecare,Charges from Independent Providers,87.12,CARE FIRST IW LTD
Revenue,Community Wellbeing & Social Care,5105646505,15.01.2014,Elderly Frail Homecare,Charges from Independent Providers,196.02,CARE FIRST IW LTD
Revenue,Community Wellbeing & Social Care,5105646502,15.01.2014,Elderly Frail Homecare,Charges from Independent Providers,914.76,CARE FIRST IW LTD
Revenue,Community Wellbeing & Social Care,5105646499,15.01.2014,Elderly Frail Homecare,Charges from Independent Providers,170.61,CARE FIRST IW LTD
Revenue,Community Wellbeing & Social Care,5105646504,15.01.2014,Elderly Frail Homecare,Charges from Independent Providers,159.72,CARE FIRST IW LTD
Revenue,Community Wellbeing & Social Care,5105646501,15.01.2014,Elderly Frail Homecare,Charges from Independent Providers,159.72,CARE FIRST IW LTD
Revenue,Community Wellbeing & Social Care,5105646505,15.01.2014,Elderly Frail Homecare,Charges from Independent Providers,"1,219.68",CARE FIRST IW LTD
Revenue,Community Wellbeing & Social Care,5105646474,15.01.2014,Elderly Frail Homecare,Charges from Independent Providers,958.32,CARE FIRST IW LTD
Revenue,Community Wellbeing & Social Care,5105646488,15.01.2014,Elderly Frail Homecare,Charges from Independent Providers,203.28,CARE FIRST IW LTD
Revenue,Community Wellbeing & Social Care,5105646492,15.01.2014,Elderly Frail Homecare,Charges from Independent Providers,580.80,CARE FIRST IW LTD
Revenue,Community Wellbeing & Social Care,5105646490,15.01.2014,Elderly Frail Homecare,Charges from Independent Providers,54.45,CARE FIRST IW LTD
Revenue,Community Wellbeing & Social Care,5105646481,15.01.2014,Elderly Frail Homecare,Charges from Independent Providers,522.72,CARE FIRST IW LTD
Revenue,Community Wellbeing & Social Care,5105646478,15.01.2014,Elderly Frail Homecare,Charges from Independent Providers,174.24,CARE FIRST IW LTD
Revenue,Community Wellbeing & Social Care,5105646480,15.01.2014,Elderly Frail Homecare,Charges from Independent Providers,609.84,CARE FIRST IW LTD
Revenue,Community Wellbeing & Social Care,5105646482,15.01.2014,Elderly Frail Homecare,Charges from Independent Providers,"1,422.96",CARE FIRST IW LTD
Revenue,Community Wellbeing & Social Care,5105646483,15.01.2014,Elderly Frail Homecare,Charges from Independent Providers,166.98,CARE FIRST IW LTD
Revenue,Community Wellbeing & Social Care,5105646484,15.01.2014,Elderly Frail Homecare,Charges from Independent Providers,181.50,CARE FIRST IW LTD
Revenue,Community Wellbeing & Social Care,5105646476,15.01.2014,Elderly Frail Homecare,Charges from Independent Providers,"1,829.52",CARE FIRST IW LTD
Revenue,Community Wellbeing & Social Care,5105646475,15.01.2014,Elderly Frail Homecare,Charges from Independent Providers,"2,032.80",CARE FIRST IW LTD
Revenue,Community Wellbeing & Social Care,5105646489,15.01.2014,Elderly Frail Homecare,Charges from Independent Providers,399.30,CARE FIRST IW LTD
Revenue,Community Wellbeing & Social Care,5105646485,15.01.2014,Elderly Frail Homecare,Charges from Independent Providers,497.31,CARE FIRST IW LTD
Revenue,Community Wellbeing & Social Care,5105646495,15.01.2014,Elderly Frail Homecare,Charges from Independent Providers,907.50,CARE FIRST IW LTD
Revenue,Community Wellbeing & Social Care,5105646477,15.01.2014,Elderly Frail Homecare,Charges from Independent Providers,304.92,CARE FIRST IW LTD
Revenue,Community Wellbeing & Social Care,5105646491,15.01.2014,Elderly Mentally Ill Homecare,Charges from Independent Providers,"2,090.88",CARE FIRST IW LTD
Revenue,Community Wellbeing & Social Care,5105646503,15.01.2014,Elderly Mentally Ill Homecare,Charges from Independent Providers,228.69,CARE FIRST IW LTD
Revenue,Community Wellbeing & Social Care,5105647704,17.01.2014,Elderly Frail Managed Accounts,Charges from Independent Providers,261.36,CARE FIRST IW LTD
Revenue,Community Wellbeing & Social Care,5105645685,15.01.2014,Highmead,Grounds Maintenance,20.00,CARE IN THE GARDEN
Revenue,Community Wellbeing & Social Care,5105645670,15.01.2014,The Laurels,Grounds Maintenance,20.00,CARE IN THE GARDEN
Revenue,Childrens Services,5105645512,08.01.2014,Support for Looked After Children (Children Young Adults Disability),Charges from Independent Providers,275.88,CAREWATCH (SOUTHAMPTON NEW FOREST & IOW)
Revenue,Childrens Services,5105648418,22.01.2014,Support for Looked After Children (Children Young Adults Disability),Charges from Independent Providers,15.40,CAREWATCH (SOUTHAMPTON NEW FOREST & IOW)
Revenue,Childrens Services,5105648418,22.01.2014,Support for Looked After Children (Children Young Adults Disability),Charges from Independent Providers,174.24,CAREWATCH (SOUTHAMPTON NEW FOREST & IOW)
Revenue,Childrens Services,5105648416,22.01.2014,Support for Looked After Children (Children Young Adults Disability),Charges from Independent Providers,43.56,CAREWATCH (SOUTHAMPTON NEW FOREST & IOW)
Revenue,Childrens Services,5105648417,22.01.2014,Support for Looked After Children (Children Young Adults Disability),Charges from Independent Providers,174.24,CAREWATCH (SOUTHAMPTON NEW FOREST & IOW)
Revenue,Childrens Services,5105648417,22.01.2014,Support for Looked After Children (Children Young Adults Disability),Charges from Independent Providers,4.44,CAREWATCH (SOUTHAMPTON NEW FOREST & IOW)
Revenue,Childrens Services,5105648409,22.01.2014,Support for Looked After Children (Children Young Adults Disability),Charges from Independent Providers,206.91,CAREWATCH (SOUTHAMPTON NEW FOREST & IOW)
Revenue,Childrens Services,5105648409,22.01.2014,Support for Looked After Children (Children Young Adults Disability),Charges from Independent Providers,10.14,CAREWATCH (SOUTHAMPTON NEW FOREST & IOW)
Revenue,Community Wellbeing & Social Care,5105646452,15.01.2014,Mental Health Homecare,Charges from Independent Providers,134.31,CAREWATCH (SOUTHAMPTON NEW FOREST & IOW)
Revenue,Community Wellbeing & Social Care,5105646314,10.01.2014,Mental Health Homecare,Charges from Independent Providers,116.16,CAREWATCH (SOUTHAMPTON NEW FOREST & IOW)
Revenue,Community Wellbeing & Social Care,5105646351,10.01.2014,Mental Health Homecare,Charges from Independent Providers,203.28,CAREWATCH (SOUTHAMPTON NEW FOREST & IOW)
Revenue,Community Wellbeing & Social Care,5105646285,10.01.2014,Mental Health Homecare,Charges from Independent Providers,174.24,CAREWATCH (SOUTHAMPTON NEW FOREST & IOW)
Revenue,Community Wellbeing & Social Care,5105646281,10.01.2014,Mental Health Homecare,Charges from Independent Providers,87.12,CAREWATCH (SOUTHAMPTON NEW FOREST & IOW)
Revenue,Community Wellbeing & Social Care,5105646451,15.01.2014,Dementia Homecare,Charges from Independent Providers,711.48,CAREWATCH (SOUTHAMPTON NEW FOREST & IOW)
Revenue,Community Wellbeing & Social Care,5105647694,17.01.2014,Dementia Homecare,Charges from Independent Providers,"1,669.80",CAREWATCH (SOUTHAMPTON NEW FOREST & IOW)
Revenue,Community Wellbeing & Social Care,5105647696,17.01.2014,Dementia Homecare,Regular Respite Care,232.32,CAREWATCH (SOUTHAMPTON NEW FOREST & IOW)
Revenue,Community Wellbeing & Social Care,5105646369,10.01.2014,Physical Disability Homecare,Regular Respite Care,58.08,CAREWATCH (SOUTHAMPTON NEW FOREST & IOW)
Revenue,Community Wellbeing & Social Care,5105646352,10.01.2014,Physical Disability Homecare,Charges from Independent Providers,"2,061.84",CAREWATCH (SOUTHAMPTON NEW FOREST & IOW)
Revenue,Community Wellbeing & Social Care,5105646366,10.01.2014,Physical Disability Homecare,Charges from Independent Providers,130.68,CAREWATCH (SOUTHAMPTON NEW FOREST & IOW)
Revenue,Community Wellbeing & Social Care,5105646286,10.01.2014,Physical Disability Homecare,Charges from Independent Providers,711.78,CAREWATCH (SOUTHAMPTON NEW FOREST & IOW)
Revenue,Community Wellbeing & Social Care,5105646315,10.01.2014,Physical Disability Homecare,Charges from Independent Providers,972.84,CAREWATCH (SOUTHAMPTON NEW FOREST & IOW)
Revenue,Community Wellbeing & Social Care,5105646321,10.01.2014,Physical Disability Homecare,Charges from Independent Providers,"1,001.88",CAREWATCH (SOUTHAMPTON NEW FOREST & IOW)
Revenue,Community Wellbeing & Social Care,5105646305,10.01.2014,Physical Disability Homecare,Charges from Independent Providers,290.40,CAREWATCH (SOUTHAMPTON NEW FOREST & IOW)
Revenue,Community Wellbeing & Social Care,5105645900,10.01.2014,Physical Disability Homecare,Charges from Independent Providers,"1,764.18",CAREWATCH (SOUTHAMPTON NEW FOREST & IOW)
Revenue,Community Wellbeing & Social Care,5105646328,10.01.2014,Physical Disability Homecare,Charges from Independent Providers,217.80,CAREWATCH (SOUTHAMPTON NEW FOREST & IOW)
Revenue,Community Wellbeing & Social Care,5105646340,10.01.2014,Physical Disability Homecare,Charges from Independent Providers,"2,032.80",CAREWATCH (SOUTHAMPTON NEW FOREST & IOW)
Revenue,Community Wellbeing & Social Care,5105646323,10.01.2014,Physical Disability Homecare,Charges from Independent Providers,72.60,CAREWATCH (SOUTHAMPTON NEW FOREST & IOW)
Revenue,Community Wellbeing & Social Care,5105646290,10.01.2014,Physical Disability Homecare,Charges from Independent Providers,159.72,CAREWATCH (SOUTHAMPTON NEW FOREST & IOW)
Revenue,Community Wellbeing & Social Care,5105646291,10.01.2014,Physical Disability Homecare,Charges from Independent Providers,"1,219.68",CAREWATCH (SOUTHAMPTON NEW FOREST & IOW)
Revenue,Community Wellbeing & Social Care,5105646361,10.01.2014,Physical Disability Homecare,Charges from Independent Providers,471.90,CAREWATCH (SOUTHAMPTON NEW FOREST & IOW)
Revenue,Community Wellbeing & Social Care,5105646333,10.01.2014,Elderly Frail Homecare,Regular Respite Care,116.16,CAREWATCH (SOUTHAMPTON NEW FOREST & IOW)
Revenue,Community Wellbeing & Social Care,5105646332,10.01.2014,Elderly Frail Homecare,Regular Respite Care,304.92,CAREWATCH (SOUTHAMPTON NEW FOREST & IOW)
Revenue,Community Wellbeing & Social Care,5105646339,10.01.2014,Elderly Frail Homecare,Regular Respite Care,319.44,CAREWATCH (SOUTHAMPTON NEW FOREST & IOW)
Revenue,Community Wellbeing & Social Care,5105646349,10.01.2014,Elderly Frail Homecare,Regular Respite Care,87.12,CAREWATCH (SOUTHAMPTON NEW FOREST & IOW)
Revenue,Community Wellbeing & Social Care,5105646363,10.01.2014,Elderly Frail Homecare,Regular Respite Care,116.16,CAREWATCH (SOUTHAMPTON NEW FOREST & IOW)
Revenue,Community Wellbeing & Social Care,5105646345,10.01.2014,Elderly Frail Homecare,Regular Respite Care,116.16,CAREWATCH (SOUTHAMPTON NEW FOREST & IOW)
Revenue,Community Wellbeing & Social Care,5105646325,10.01.2014,Elderly Frail Homecare,Regular Respite Care,58.08,CAREWATCH (SOUTHAMPTON NEW FOREST & IOW)
Revenue,Community Wellbeing & Social Care,5105646324,10.01.2014,Elderly Frail Homecare,Regular Respite Care,87.12,CAREWATCH (SOUTHAMPTON NEW FOREST & IOW)
Revenue,Community Wellbeing & Social Care,5105646308,10.01.2014,Elderly Frail Homecare,Regular Respite Care,101.64,CAREWATCH (SOUTHAMPTON NEW FOREST & IOW)
Revenue,Community Wellbeing & Social Care,5105646309,10.01.2014,Elderly Frail Homecare,Regular Respite Care,232.32,CAREWATCH (SOUTHAMPTON NEW FOREST & IOW)
Revenue,Community Wellbeing & Social Care,5105646338,10.01.2014,Elderly Frail Homecare,Regular Respite Care,116.16,CAREWATCH (SOUTHAMPTON NEW FOREST & IOW)
Revenue,Community Wellbeing & Social Care,5105646331,10.01.2014,Elderly Frail Homecare,Regular Respite Care,116.16,CAREWATCH (SOUTHAMPTON NEW FOREST & IOW)
Revenue,Community Wellbeing & Social Care,5105646354,10.01.2014,Elderly Frail Homecare,Regular Respite Care,87.12,CAREWATCH (SOUTHAMPTON NEW FOREST & IOW)
Revenue,Community Wellbeing & Social Care,5105647693,17.01.2014,Elderly Frail Homecare,Charges from Independent Providers,580.80,CAREWATCH (SOUTHAMPTON NEW FOREST & IOW)
Revenue,Community Wellbeing & Social Care,5105647695,17.01.2014,Elderly Frail Homecare,Charges from Independent Providers,406.56,CAREWATCH (SOUTHAMPTON NEW FOREST & IOW)
Revenue,Community Wellbeing & Social Care,5105646334,10.01.2014,Elderly Frail Homecare,Charges from Independent Providers,392.04,CAREWATCH (SOUTHAMPTON NEW FOREST & IOW)
Revenue,Community Wellbeing & Social Care,5105646347,10.01.2014,Elderly Frail Homecare,Charges from Independent Providers,377.52,CAREWATCH (SOUTHAMPTON NEW FOREST & IOW)
Revenue,Community Wellbeing & Social Care,5105646312,10.01.2014,Elderly Frail Homecare,Charges from Independent Providers,813.12,CAREWATCH (SOUTHAMPTON NEW FOREST & IOW)
Revenue,Community Wellbeing & Social Care,5105646329,10.01.2014,Elderly Frail Homecare,Charges from Independent Providers,"1,074.48",CAREWATCH (SOUTHAMPTON NEW FOREST & IOW)
Revenue,Community Wellbeing & Social Care,5105646322,10.01.2014,Elderly Frail Homecare,Charges from Independent Providers,203.28,CAREWATCH (SOUTHAMPTON NEW FOREST & IOW)
Revenue,Community Wellbeing & Social Care,5105646362,10.01.2014,Elderly Frail Homecare,Charges from Independent Providers,152.46,CAREWATCH (SOUTHAMPTON NEW FOREST & IOW)
Revenue,Community Wellbeing & Social Care,5105646359,10.01.2014,Elderly Frail Homecare,Charges from Independent Providers,261.36,CAREWATCH (SOUTHAMPTON NEW FOREST & IOW)
Revenue,Community Wellbeing & Social Care,5105646353,10.01.2014,Elderly Frail Homecare,Charges from Independent Providers,435.60,CAREWATCH (SOUTHAMPTON NEW FOREST & IOW)
Revenue,Community Wellbeing & Social Care,5105646355,10.01.2014,Elderly Frail Homecare,Charges from Independent Providers,544.50,CAREWATCH (SOUTHAMPTON NEW FOREST & IOW)
Revenue,Community Wellbeing & Social Care,5105646358,10.01.2014,Elderly Frail Homecare,Charges from Independent Providers,377.52,CAREWATCH (SOUTHAMPTON NEW FOREST & IOW)
Revenue,Community Wellbeing & Social Care,5105646357,10.01.2014,Elderly Frail Homecare,Charges from Independent Providers,377.52,CAREWATCH (SOUTHAMPTON NEW FOREST & IOW)
Revenue,Community Wellbeing & Social Care,5105646343,10.01.2014,Elderly Frail Homecare,Charges from Independent Providers,203.28,CAREWATCH (SOUTHAMPTON NEW FOREST & IOW)
Revenue,Community Wellbeing & Social Care,5105646284,10.01.2014,Elderly Frail Homecare,Charges from Independent Providers,381.15,CAREWATCH (SOUTHAMPTON NEW FOREST & IOW)
